Workbook

Sheet Paso 1 Índice
B2: Metodología para valorar el impacto de riesgos relacionados a aspectos sociales
B4: La herramienta presente tiene como objetivo apoyar ene el análisis y aplicación de la MEVIMS, para desarrollar el análisis se deberán seguir los siguientes pasos:
B7: Paso 1: Perfil de Proyecto | D7: Perfil del proyecto
B8: Llenar la información general del proyecto | D8: Nombre
D9: Desarrollador
D10: Estado
D11: Municipio
B12: Paso 2: Identificar Riesgos | D12: Clave de Ficha UGAS
B13: Basado en la información obtenida de la Ficha de Caracterización, el analista deberá identificar los riesgos que pueden impactar financieramente el proyecto | D13: Tecnología
D14: Fecha de inicio de operación esperada
B17: Paso 3: Mitigantes
B18: En caso de existir un mecanismo de mitigación para los riesgos identificados, el analista deberá capturar, después de analizar la ficha de mitigación de la MEDIRSE, y basado en su experiencia, el porcentaje de ajuste al riesgo por mitigación
B20: Paso 4: Resultados
B21: En esta pestaña se podrá observar el resumen de los resultados del análisis
B23: Añadir nuevo proyecto a base de datos
B24: Sigue a esta pestaña para añadir un nuevo proyecto
B26: Añadir múltiples proyectos de un desarrollador a base de datos
B27: Sigue a esta pestaña para añadir un nuevo proyecto

Sheet Paso 2 Identificar Riesgos
B2: Metodología para valorar Impactos Sociales (MEVIMS)
B3: Basado en Matriz de impactos y riesgos genéricos de la MEDIRSE*
B5: Nombre del Proyecto | D5: ='Paso 1 Índice'!$E$8 -> 0
B7: Tipo de Proyecto | D7: ='Paso 1 Índice'!$E$13 -> 0
G8: PASO 1
B9: Dimensión | C9: ID | D9: Impacto Genérico | E9: Relación Impacto - Riesgo | F9: Riesgo Genérico Asociado | G9: Impacto: Aplica / No Aplica | H9: Nota del Analista
B10: Dimensión Socioeconómica | C10: R1.1 | D10: 1. Producción de bienes y servicios en lugares específicos | E10: Riesgos derivados de la modificación del área | F10: C1 Retraso
F11: C2 Conflicto
C12: R1.2 | D12: 2. Derrama económica por el usufructo y contraprestación de espacios o prestación de servicios. | E12: Riesgos derivados de renta o compra-venta del área dónde se desarrollará el proyecto | F12: C1 Retraso
F13: C2 Conflicto
F14: C3 Sanciones
F15: C4 Cancelación
C16: R1.3 | D16: 3. Salud y Seguridad | E16: Riesgos derivados de las condiciones de seguridad del personal involucrado en el proyecto y la población cercana | F16: C1 Retraso
F17: C2 Conflicto
F18: C3 Sanciones
C19: R1.4 | D19: 4. Entorno laboral | E19: Riesgos derivados de las condiciones Laborales del personal involucrado en el proyecto | F19: C1 Retraso
F20: C2 Conflicto
F21: C3 Sanciones
C22: R1.5 | D22: 5. Inversión Social | E22: Riesgos derivados de la negación de inversión social en la población con la que interactúa. | F22: C1 Retraso
F23: C2 Conflicto
B24: Dimensión Sociopolítica | C24: R2.1 | D24: 1. Mecanismos de Participación / 2. Representatividad / 3. Uso del territorio y libertad para decidir sobre él. | E24: Riesgo derivado de los procedimientos que permiten a los individuos de una sociedad involucrase en las decisiones relacionadas con el desarrollo del proyecto. | F24: C1 Retraso
F25: C2 Conflicto
F26: C3 Sanciones
F27: C4 Cancelación
C28: R2.2 | D28: 4. Formas de organización: Ejidos, comunidades agrarias, pueblos y comunidades indígenas y personas como propietarias del territorio. | E28: Riesgo derivado de ignorar las formas de organización local de: ejidos, comunidades agrarias, pueblos y comunidades indígenas. | F28: C1 Retraso
F29: C2 Conflicto
F30: C3 Sanciones
F31: C4 Cancelación
B32: Dimensión Socioambiental | C32: R3.1 | D32: 1. Uso y aprovechamiento de los recursos naturales / 2. Regulación de los recursos naturales | E32: Riesgo derivado del manejo sustentable y eficiente de los recursos existentes. | F32: C1 Retraso
F33: C2 Conflicto
F34: C3 Sanciones
C35: R3.2 | D35: 3. Manejo de Residuos / 4. Salud | E35: Riesgo derivado de problemas de salud por incorrecto manejo de residuos. | F35: C1 Retraso
F36: C2 Conflicto
F37: C3 Sanciones
F38: C4 Cancelación
B39: Dimensión Sociocultural | C39: R4.1 | D39: 1. Población Indígena | E39: Riesgo por no realizar correctamente una consulta indígena. | F39: C1 Retraso
F40: C2 Conflicto
F41: C3 Sanciones
F42: C4 Cancelación
C43: R4.2 | D43: 2. Patrimonio cultural material / 3. Patrimonio Cultural Arqueológico / 4. Producción y reproducción del patrimonio cultural | E43: Riesgo derivado de no identificar ni implementar mecanismos de resguardo y conservación al patrimonio cultural que tiene contacto con el proyecto. | F43: C1 Retraso
F44: C2 Conflicto
F45: C3 Sanciones
F46: C4 Cancelación

Sheet Paso 3 Mitigantes
B2: Metodología para valorar Impactos Sociales (MEVIMS)
B3: Basado en Matriz de impactos y riesgos genéricos de la MEDIRSE*
B5: Nombre del Proyecto | D5: ='Paso 1 Índice'!$E$8 -> 0
B7: Tipo de Proyecto | D7: ='Paso 1 Índice'!$E$13 -> 0
B9: Dimensión | C9: ID | D9: Impacto Genérico | E9: Relación Impacto - Riesgo | F9: Riesgo Genérico Asociado | G9: % de Ajuste al Riesgo | I9: % de Ajuste al Riesgo | J9: Descripción de la Mitigación Genérica | M9: ID | N9: Posible actividad de Mitigación | O9: Descripción | P9: Impacto | Q9: Rango de Reducción de Riesgo (%)
B10: Dimensión Socioeconómica | C10: R1.1 | D10: 1. Producción de bienes y servicios en lugares específicos | E10: Riesgos derivados de la modificación del área | F10: =IF('Paso 2 Identificar Riesgos'!G10="Aplica",'Paso 2 Identificar Riesgos'!F10,"") ->  | G10: =IF(F10="","",I10) ->  | M10: M1 Fondo de Contingencia | N10: Establecer un fondo de contingencia por el acreditado. | O10: Cantidad reservada para resolver imprevistos. | P10: Bajo | Q10: 1% - 33%
F11: =IF('Paso 2 Identificar Riesgos'!G11="Aplica",'Paso 2 Identificar Riesgos'!F11,"") ->  | G11: =IF(F11="","",I11) ->  | M11: M2 Garantías | N11: Definir montos de garantía. | O11: Cantidad definida en el contrato de crédito para dotar de una mayor seguridad al cumplimiento de ciertas condiciones. | P11: Bajo | Q11: 1% - 33%
C12: R1.2 | D12: 2. Derrama económica por el usufructo y contraprestación de espacios o prestación de servicios. | E12: Riesgos derivados de renta o compra-venta del área dónde se desarrollará el proyecto | F12: =IF('Paso 2 Identificar Riesgos'!G12="Aplica",'Paso 2 Identificar Riesgos'!F12,"") ->  | M12: M3 Acciones Correctivas | N12: Presupuesto Asignado a Acciones Correctivas | O12: Una vez que el riesgo ha sido detectado o ha ocurrido, el acreditado deberá de demostrar que ha asignado recursos para aplicar medidas correctivas y dar seguimiento. | P12: Bajo | Q12: 1% - 33%
F13: =IF('Paso 2 Identificar Riesgos'!G13="Aplica",'Paso 2 Identificar Riesgos'!F13,"") ->  | M13: M4 Seguro (Si aplicable) | N13: Seguro Aplicable | O13: La organización deberá contar con un seguro que contemple futuro incidentes donde tenga que pagar o liquidar a la fecha de protocolo del siniestro, constituye la primera valoración de la reserva. | P13: Medio | Q13: 34% - 66%
F14: =IF('Paso 2 Identificar Riesgos'!G14="Aplica",'Paso 2 Identificar Riesgos'!F14,"") ->  | M14: M5 Programas de Atención y Prevención | N14: Programas o campañas de atención y prevención | O14: El programa está relacionado con una inversión social definida por el acreditado, con el propósito de reducir los riesgos laborales y de salud. Estos programas están relacionados con los programas internos. | P14: Medio | Q14: 34% - 66%
F15: =IF('Paso 2 Identificar Riesgos'!G15="Aplica",'Paso 2 Identificar Riesgos'!F15,"") ->  | G15: =IF(F15="","",I15) ->  | M15: M6 Canales efectivos de comunicación | N15: Definir canales de comunicación con la comunidad/personal | O15: Mantener diversos canales de comunicación que le permitan acreditado identificar posibles riesgos e inconformidades previo a y durante el desarrollo del proyecto. | P15: Medio | Q15: 34% - 66%
C16: R1.3 | D16: 3. Seguridad | E16: Riesgos derivados de las condiciones de seguridad del personal involucrado en el proyecto y la población cercana | F16: =IF('Paso 2 Identificar Riesgos'!G16="Aplica",'Paso 2 Identificar Riesgos'!F16,"") ->  | J16: El cliente deberá presentar para su implementación los planes y políticas de Salud y Seguridad para los trabajadores, plan de respuesta a emergencias, así como planes de monitoreo a EPC en salud y seguridad. | M16: M7 Establecimiento de proyectos, programas y acciones Sociales | N16: Establecer proyectos sociales por el acreditado. | O16: Definir proyectos en materia de salud, seguridad, ambiental, etc. para generar capacidades y habilidades determinadas con el fin de prevenir y disminuir riesgos que interrumpan el proyecto. | P16: Alto | Q16: 67% - 100%
F17: =IF('Paso 2 Identificar Riesgos'!G17="Aplica",'Paso 2 Identificar Riesgos'!F17,"") ->  | J17: El cliente deberá presentar el plan de gestión de la seguridad privada conforme a los lineamientos internacionales del Corporación Financiera Internacional y los cuerpos de seguridad deberán recibir capacitación permanente en legislación existente en los tres niveles de gobierno y en derechos humanos. | M17: M8 Programa de Monitoreo de Cumplimiento Regulatorio | N17: Acciones de monitoreo de cumplimiento regulatorio por parte del acreditado. | O17: Definición de un sistema de gestión por parte del acreditado que permita confirmar que los riesgos sociales se están atendiendo y no existen riesgos. | P17: Alto | Q17: 67% - 100%
F18: =IF('Paso 2 Identificar Riesgos'!G18="Aplica",'Paso 2 Identificar Riesgos'!F18,"") ->  | J18: El cliente deberá presentar para su implementación los planes y políticas de Salud y Seguridad para los trabajadores, plan de respuesta a emergencias, así como planes de monitoreo a EPC en salud y seguridad.
C19: R1.4 | D19: 4. Entorno laboral | E19: Riesgos derivados de las condiciones Laborales del personal involucrado en el proyecto | F19: =IF('Paso 2 Identificar Riesgos'!G19="Aplica",'Paso 2 Identificar Riesgos'!F19,"") ->  | J19: El cliente deberá priorizar sus necesidades laborales con habitantes del área de influencia o áreas colindantes, además de clarificar a la población local las condiciones de trabajo temporal.
F20: =IF('Paso 2 Identificar Riesgos'!G20="Aplica",'Paso 2 Identificar Riesgos'!F20,"") ->  | J20: El cliente deberá priorizar sus necesidades laborales con habitantes del área de influencia o áreas colindantes, además de clarificar a la población local las condiciones de trabajo temporal.
F21: =IF('Paso 2 Identificar Riesgos'!G21="Aplica",'Paso 2 Identificar Riesgos'!F21,"") -> 
C22: R1.5 | D22: 5. Inversión Social | E22: Riesgos derivados de la negación de inversión social en la población con la que interactúa. | F22: =IF('Paso 2 Identificar Riesgos'!G22="Aplica",'Paso 2 Identificar Riesgos'!F22,"") ->  | J22: El cliente deberá difundir entre la población idetificada los procedimientos, requisitos y los criteriosde selección para acceder y participaren estos programas.
F23: =IF('Paso 2 Identificar Riesgos'!G23="Aplica",'Paso 2 Identificar Riesgos'!F23,"") ->  | J23: El cliente deberá difundir entre la población idetificada los procedimientos, requisitos y los criteriosde selección para acceder y participaren estos programas.
B24: Dimensión Sociopolítica | C24: R2.1 | D24: 1. Mecanismos de Participación / 2. Representatividad / 3. Uso del territorio y libertad para decidir sobre él. | E24: Riesgo derivado de los procedimientos que permiten a los individuos de una sociedad involucrase en las decisiones relacionadas con el desarrollo del proyecto. | F24: =IF('Paso 2 Identificar Riesgos'!G24="Aplica",'Paso 2 Identificar Riesgos'!F24,"") -> 
F25: =IF('Paso 2 Identificar Riesgos'!G25="Aplica",'Paso 2 Identificar Riesgos'!F25,"") -> 
F26: =IF('Paso 2 Identificar Riesgos'!G26="Aplica",'Paso 2 Identificar Riesgos'!F26,"") -> 
F27: =IF('Paso 2 Identificar Riesgos'!G27="Aplica",'Paso 2 Identificar Riesgos'!F27,"") -> 
C28: R2.2 | D28: 4. Formas de organización: Ejidos, comunidades agrarias, pueblos y comunidades indígenas y personas como propietarias del territorio. | E28: Riesgo derivado de ignorar las formas de organización local de: ejidos, comunidades agrarias, pueblos y comunidades indígenas. | F28: =IF('Paso 2 Identificar Riesgos'!G28="Aplica",'Paso 2 Identificar Riesgos'!F28,"") ->  | J28: El cliente deberá implementar un Plan de participación de Grupos de Interés considerando las principales preocupaciones de la población respecto a su salud y operación del parque fotovoltaico y acreditar que la población indígena en el área cercana al proyecto, no es susceptible de un proceso de consulta indígena.
F29: =IF('Paso 2 Identificar Riesgos'!G29="Aplica",'Paso 2 Identificar Riesgos'!F29,"") -> 
F30: =IF('Paso 2 Identificar Riesgos'!G30="Aplica",'Paso 2 Identificar Riesgos'!F30,"") -> 
F31: =IF('Paso 2 Identificar Riesgos'!G31="Aplica",'Paso 2 Identificar Riesgos'!F31,"") -> 
B32: Dimensión Socioambiental | C32: R3.1 | D32: 1. Uso y aprovechamiento de los recursos naturales / 2. Regulación de los recursos naturales | E32: Riesgo derivado del manejo sustentable y eficiente de los recursos existentes. | F32: =IF('Paso 2 Identificar Riesgos'!G32="Aplica",'Paso 2 Identificar Riesgos'!F32,"") ->  | J32: El cliente deberá implementar los planes para la prevención y/o mitigación de la erosión del suelo, así como desarrollar los planes de gestión de tráfico e informar a la comunidad sobre el aumento de niveles de ruido y tráfico.
F33: =IF('Paso 2 Identificar Riesgos'!G33="Aplica",'Paso 2 Identificar Riesgos'!F33,"") ->  | J33: Identificar la relación del proyecto con la ANP y de existir una relación directa establecer los mecanismos de atención de medidas de compensación y socializar su cumplimiento.
F34: =IF('Paso 2 Identificar Riesgos'!G34="Aplica",'Paso 2 Identificar Riesgos'!F34,"") ->  | J34: Identificar la fuente de agua de abastecimiento del proyecto durante las fases de construcción y operación incluyendo la elaboración e implantación de un programa de protección a los cuerpos de agua superficiales.
C35: R3.2 | D35: 3. Manejo de Residuos / 4. Salud | E35: Riesgo derivado de problemas de salud por incorrecto manejo de residuos. | F35: =IF('Paso 2 Identificar Riesgos'!G35="Aplica",'Paso 2 Identificar Riesgos'!F35,"") -> 
F36: =IF('Paso 2 Identificar Riesgos'!G36="Aplica",'Paso 2 Identificar Riesgos'!F36,"") -> 
F37: =IF('Paso 2 Identificar Riesgos'!G37="Aplica",'Paso 2 Identificar Riesgos'!F37,"") -> 
F38: =IF('Paso 2 Identificar Riesgos'!G38="Aplica",'Paso 2 Identificar Riesgos'!F38,"") -> 
B39: Dimensión Sociocultural | C39: R4.1 | D39: 1. Población Indígena | E39: Riesgo por no realizar correctamente una consulta indígena. | F39: =IF('Paso 2 Identificar Riesgos'!G39="Aplica",'Paso 2 Identificar Riesgos'!F39,"") -> 
F40: =IF('Paso 2 Identificar Riesgos'!G40="Aplica",'Paso 2 Identificar Riesgos'!F40,"") -> 
F41: =IF('Paso 2 Identificar Riesgos'!G41="Aplica",'Paso 2 Identificar Riesgos'!F41,"") -> 
F42: =IF('Paso 2 Identificar Riesgos'!G42="Aplica",'Paso 2 Identificar Riesgos'!F42,"") -> 
C43: R4.2 | D43: 2. Patrimonio cultural material / 3. Patrimonio Cultural Arqueológico / 4. Producción y reproducción del patrimonio cultural | E43: Riesgo derivado de no identificar ni implementar mecanismos de resguardo y conservación al patrimonio cultural que tiene contacto con el proyecto. | F43: =IF('Paso 2 Identificar Riesgos'!G43="Aplica",'Paso 2 Identificar Riesgos'!F43,"") ->  | J43: Identificar la relación del proyecto con el sitio arqueológico y ya que el mismo INAH estableció que existe una relación directa entre el sitio y el proyecto, el cliente debe establecer los mecanismos de socialización para la protección del patrimonio cultural y así evitar conflictos derivados de la desinformación.
F44: =IF('Paso 2 Identificar Riesgos'!G44="Aplica",'Paso 2 Identificar Riesgos'!F44,"") ->  | J44: Identificar la relación del proyecto con el sitio arqueológico y ya que el mismo INAH estableció que existe una relación directa entre el sitio y el proyecto, el cliente debe establecer los mecanismos de socialización para la protección del patrimonio cultural y así evitar conflictos derivados de la desinformación.
F45: =IF('Paso 2 Identificar Riesgos'!G45="Aplica",'Paso 2 Identificar Riesgos'!F45,"") -> 
F46: =IF('Paso 2 Identificar Riesgos'!G46="Aplica",'Paso 2 Identificar Riesgos'!F46,"") -> 

Sheet Resultados
B2: Metodología para valorar el impacto de riesgos relacionados a aspectos sociales
B3: Resumen de Resultados
B5: Nombre del Proyecto | D5: ='Paso 2 Identificar Riesgos'!D5 -> 0
B6: Tipo de Proyecto | D6: ='Paso 2 Identificar Riesgos'!D7 -> 0
B8: % de Riesgos Totales Presentes en el Proyecto | D8: ='Análisis detallado'!Q10 -> 
B9: Calificación del Proyecto | D9: ='Análisis detallado'!R10 -> 
B11: Calificaciones
B14: Calificación del Proyecto
B15: 81 - 100% | C15: V | D15: Riesgo Muy Alto
B17: 61 - 80% | C17: IV | D17: Riesgo Alto
B19: 41 - 60 | C19: III | D19: Riesgo Medio
B21: 21 - 40% | C21: II | D21: Riesgo Bajo
B23: 1 - 20% | C23: I | D23: Riesgo Muy Bajo

Sheet Definiciones (hidden)
B2: Clasificación de Riesgos
B3: Clasificación de Riesgos Genéricos Cuantificables, Posibles Complicaciones ($) y Etapas del Proyecto
B4: INPUT: | C4: Matriz de Impactos y Riesgos Genéricos del Componente A de la Medirse / Ficha UGAS
B6: Socioeconómica | C6: Clasificación Genérica (Anexo 3 MEDIRSE)
B7: R1.1 | C7: 1. Producción de bienes y servicios en lugares específicos | D7: [C1,C2/E(1-4)]
B8: R1.2 | C8: 2. Derrama económica por el usufructo y contraprestación de espacios o prestación de servicios | D8: [C1, C2, C3, C4 / E(1-4)]
B9: R1.3 | C9: 3. Seguridad | D9: [C1, C2/E(1-4)]
B10: R1.4 | C10: 4. Entorno laboral | D10: [C1, C2, C5 / E(1-4)]
B11: R1.5 | C11: 5. Inversión Social | D11: [C1, C2, C5 / E(1-4)]
D12: [C1,C2/E(1-4)]
B14: Sociopolítica
B15: R2.1 | C15: 1. Mecanismos de Participación / 2. Representatividad / 3. Uso del territorio y libertad para decidir sobre el . | D15: [C1,C2,C3,C4/E(1-4)]
B16: R2.2 | C16: 4. Formas de organización: Ejidos, comunidades agrarias, pueblos y comunidades indígenas y personas como propietarias del territorio. | D16: [C1,C2,C3,C4/E(1-4)]
B18: Socioambiental
B19: R3.1 | C19: 1. Uso y aprovechamiento de los recursos naturales / 2. Regulación de los recursos naturales | D19: [C1,C2,C3/E(1-4)]
B20: R3.2 | C20: 3. Manejo de Residuos / 4. Salud | D20: [C1,C2,C3,C5/E(1-4)]
B22: Sociocultural
B23: R4.1 | C23: 1. Población Indígena | D23: [C1,C2,C3,C4/E(1-4)]
B24: R4.2 | C24: 2. Patrimonio cultural material / 3. Patrimonio cultural arqueológico / 4. Producción y reproducción del patrimonio cultural | D24: [C1,C2,C3,C4/E(1-4)]
B27: Complicaciones
C29: Clave
B30: 1. Retraso | C30: C1
B31: 2. Conflicto | C31: C2
B32: 3. Sanciones | C32: C3
B33: 4. Cancelación | C33: C4
B36: C1 Retraso
B37: Retraso o suspensión de operaciones que se derive en un impacto económico para el proyecto
B38: C2 Conflicto
B39: Conflicto con terceras partes que se derive en costos adicionales significativos para resolverlo.
B40: C3 Sanciones
B41: Sanciones económicas impuestas por algún organismo regulador derivadas de actividades relacionadas con el proyecto. Retrasos derivados de las mismas. Incluye Laboral
B42: C4 Cancelación
B43: Cancelación del proyecto por violaciones graves a la regulación vigente, o por contingencias económicas más allá del poder de los inversionistas en el proyecto.

Sheet Análisis detallado
B2: Metodología para valorar Impactos Sociales (MEVIMS)
B3: Basado en Matriz de impactos y riesgos genéricos de la MEDIRSE*
B5: Nombre del Proyecto | D5: ='Paso 1 Índice'!E8 -> 0
B7: Tipo de Proyecto | D7: ='Paso 1 Índice'!E13 -> 0
B9: Dimensión | C9: ID | D9: Impacto Genérico | E9: Posible Riesgo | G9: i | H9: Aplica al proyecto analizado? | I9: Factor de Riesgo I: Gravedad | J9: Factor de Riesgo II: Frecuencia | K9: Ajuste por Mitigación del riesgo i | L9: Índice de Riesgo del riesgo i | M9: Índice de Riesgo del riesgo i, de los riesgos aplicables al proyecto por analizar | Q9: IRk | R9: Calificación General del Proyecto
B10: Dimensión Socioeconómica | C10: R1.1 | D10: 1. Producción de bienes y servicios en lugares específicos | E10: =IF('Paso 2 Identificar Riesgos'!G10="Aplica",'Paso 2 Identificar Riesgos'!F10,"") ->  | F10: =IF(E10="","",'Matriz Gravedad Probabilidad FV'!F6) ->  | G10: 1 | H10: =IF(F10="","","Si") ->  | I10: =IF($D$7="Fotovoltaica",'Matriz Gravedad Probabilidad FV'!G6,IF('Análisis detallado'!$D$7="Eólica",'Matriz Gravedad Probabilidad EO'!G6,IF('Análisis detallado'!$D$7="Mini-Hidro",""))) -> FALSE | J10: =IF($D$7="Fotovoltaica",'Matriz Gravedad Probabilidad FV'!H6,IF('Análisis detallado'!$D$7="Eólica",'Matriz Gravedad Probabilidad EO'!H6,IF('Análisis detallado'!$D$7="Mini-Hidro",""))) -> FALSE | K10: =IF('Paso 3 Mitigantes'!G10="",0,'Paso 3 Mitigantes'!G10) -> 0 | L10: =I10*J10*(1-K10) -> 0 | M10: =IF(H10="Si", L10,0) -> 0 | Q10: =L53 ->  | R10: =IF(AND(Q10>=0.01,Q10<=0.2),Resultados!$C$23,IF(AND(Q10>=0.21,Q10<=0.4),Resultados!$C$21,IF(AND(Q10>=0.41,Q10<=0.6),Resultados!$C$19,IF(AND(Q10>=0.61,Q10<=0.8),Resultados!$C$17,IF(AND(Q10>=0.81,Q10<=1),Resultados!$C$15,IF(Q10=0,"No Risk Identified")))))) -> 
E11: =IF('Paso 2 Identificar Riesgos'!G11="Aplica",'Paso 2 Identificar Riesgos'!F11,"") ->  | F11: =IF(E11="","",'Matriz Gravedad Probabilidad FV'!F7) ->  | G11: 2 | H11: =IF(F11="","","Si") ->  | I11: =IF($D$7="Fotovoltaica",'Matriz Gravedad Probabilidad FV'!G7,IF('Análisis detallado'!$D$7="Eólica",'Matriz Gravedad Probabilidad EO'!G7,IF('Análisis detallado'!$D$7="Mini-Hidro",""))) -> FALSE | J11: =IF($D$7="Fotovoltaica",'Matriz Gravedad Probabilidad FV'!H7,IF('Análisis detallado'!$D$7="Eólica",'Matriz Gravedad Probabilidad EO'!H7,IF('Análisis detallado'!$D$7="Mini-Hidro",""))) -> FALSE | K11: =IF('Paso 3 Mitigantes'!G11="",0,'Paso 3 Mitigantes'!G11) -> 0 | L11: =I11*J11*(1-K11) -> 0 | M11: =IF(H11="Si", L11,0) -> 0
C12: R1.2 | D12: 2. Derrama económica por el usufructo y contraprestación de espacios o prestación de servicios. | E12: =IF('Paso 2 Identificar Riesgos'!G12="Aplica",'Paso 2 Identificar Riesgos'!F12,"") ->  | F12: =IF(E12="","",'Matriz Gravedad Probabilidad FV'!F8) ->  | G12: 3 | I12: =IF($D$7="Fotovoltaica",'Matriz Gravedad Probabilidad FV'!G8,IF('Análisis detallado'!$D$7="Eólica",'Matriz Gravedad Probabilidad EO'!G8,IF('Análisis detallado'!$D$7="Mini-Hidro",""))) -> FALSE | J12: =IF($D$7="Fotovoltaica",'Matriz Gravedad Probabilidad FV'!H8,IF('Análisis detallado'!$D$7="Eólica",'Matriz Gravedad Probabilidad EO'!H8,IF('Análisis detallado'!$D$7="Mini-Hidro",""))) -> FALSE | K12: =IF('Paso 3 Mitigantes'!G12="",0,'Paso 3 Mitigantes'!G12) -> 0 | L12: 0 | M12: 0
E13: =IF('Paso 2 Identificar Riesgos'!G13="Aplica",'Paso 2 Identificar Riesgos'!F13,"") ->  | F13: =IF(E13="","",'Matriz Gravedad Probabilidad FV'!F9) ->  | G13: 4 | I13: =IF($D$7="Fotovoltaica",'Matriz Gravedad Probabilidad FV'!G9,IF('Análisis detallado'!$D$7="Eólica",'Matriz Gravedad Probabilidad EO'!G9,IF('Análisis detallado'!$D$7="Mini-Hidro",""))) -> FALSE | J13: =IF($D$7="Fotovoltaica",'Matriz Gravedad Probabilidad FV'!H9,IF('Análisis detallado'!$D$7="Eólica",'Matriz Gravedad Probabilidad EO'!H9,IF('Análisis detallado'!$D$7="Mini-Hidro",""))) -> FALSE | K13: =IF('Paso 3 Mitigantes'!G13="",0,'Paso 3 Mitigantes'!G13) -> 0 | L13: 0 | M13: 0
E14: =IF('Paso 2 Identificar Riesgos'!G14="Aplica",'Paso 2 Identificar Riesgos'!F14,"") ->  | F14: =IF(E14="","",'Matriz Gravedad Probabilidad FV'!F10) ->  | G14: 5 | I14: =IF($D$7="Fotovoltaica",'Matriz Gravedad Probabilidad FV'!G10,IF('Análisis detallado'!$D$7="Eólica",'Matriz Gravedad Probabilidad EO'!G10,IF('Análisis detallado'!$D$7="Mini-Hidro",""))) -> FALSE | J14: =IF($D$7="Fotovoltaica",'Matriz Gravedad Probabilidad FV'!H10,IF('Análisis detallado'!$D$7="Eólica",'Matriz Gravedad Probabilidad EO'!H10,IF('Análisis detallado'!$D$7="Mini-Hidro",""))) -> FALSE | K14: =IF('Paso 3 Mitigantes'!G14="",0,'Paso 3 Mitigantes'!G14) -> 0 | L14: 0 | M14: 0
E15: =IF('Paso 2 Identificar Riesgos'!G15="Aplica",'Paso 2 Identificar Riesgos'!F15,"") ->  | F15: =IF(E15="","",'Matriz Gravedad Probabilidad FV'!F11) ->  | G15: 6 | I15: =IF($D$7="Fotovoltaica",'Matriz Gravedad Probabilidad FV'!G11,IF('Análisis detallado'!$D$7="Eólica",'Matriz Gravedad Probabilidad EO'!G11,IF('Análisis detallado'!$D$7="Mini-Hidro",""))) -> FALSE | J15: =IF($D$7="Fotovoltaica",'Matriz Gravedad Probabilidad FV'!H11,IF('Análisis detallado'!$D$7="Eólica",'Matriz Gravedad Probabilidad EO'!H11,IF('Análisis detallado'!$D$7="Mini-Hidro",""))) -> FALSE | K15: =IF('Paso 3 Mitigantes'!G15="",0,'Paso 3 Mitigantes'!G15) -> 0 | L15: 0 | M15: 0
C16: R1.3 | D16: 3. Seguridad | E16: =IF('Paso 2 Identificar Riesgos'!G16="Aplica",'Paso 2 Identificar Riesgos'!F16,"") ->  | F16: =IF(E16="","",'Matriz Gravedad Probabilidad FV'!F12) ->  | G16: 7 | I16: =IF($D$7="Fotovoltaica",'Matriz Gravedad Probabilidad FV'!G12,IF('Análisis detallado'!$D$7="Eólica",'Matriz Gravedad Probabilidad EO'!G12,IF('Análisis detallado'!$D$7="Mini-Hidro",""))) -> FALSE | J16: =IF($D$7="Fotovoltaica",'Matriz Gravedad Probabilidad FV'!H12,IF('Análisis detallado'!$D$7="Eólica",'Matriz Gravedad Probabilidad EO'!H12,IF('Análisis detallado'!$D$7="Mini-Hidro",""))) -> FALSE | K16: =IF('Paso 3 Mitigantes'!G16="",0,'Paso 3 Mitigantes'!G16) -> 0 | L16: 0 | M16: 0
E17: =IF('Paso 2 Identificar Riesgos'!G17="Aplica",'Paso 2 Identificar Riesgos'!F17,"") ->  | F17: =IF(E17="","",'Matriz Gravedad Probabilidad FV'!F13) ->  | G17: 8 | I17: =IF($D$7="Fotovoltaica",'Matriz Gravedad Probabilidad FV'!G13,IF('Análisis detallado'!$D$7="Eólica",'Matriz Gravedad Probabilidad EO'!G13,IF('Análisis detallado'!$D$7="Mini-Hidro",""))) -> FALSE | J17: =IF($D$7="Fotovoltaica",'Matriz Gravedad Probabilidad FV'!H13,IF('Análisis detallado'!$D$7="Eólica",'Matriz Gravedad Probabilidad EO'!H13,IF('Análisis detallado'!$D$7="Mini-Hidro",""))) -> FALSE | K17: =IF('Paso 3 Mitigantes'!G17="",0,'Paso 3 Mitigantes'!G17) -> 0 | L17: 0 | M17: 0
E18: =IF('Paso 2 Identificar Riesgos'!G18="Aplica",'Paso 2 Identificar Riesgos'!F18,"") ->  | F18: =IF(E18="","",'Matriz Gravedad Probabilidad FV'!F14) ->  | G18: 9 | I18: =IF($D$7="Fotovoltaica",'Matriz Gravedad Probabilidad FV'!G14,IF('Análisis detallado'!$D$7="Eólica",'Matriz Gravedad Probabilidad EO'!G14,IF('Análisis detallado'!$D$7="Mini-Hidro",""))) -> FALSE | J18: =IF($D$7="Fotovoltaica",'Matriz Gravedad Probabilidad FV'!H14,IF('Análisis detallado'!$D$7="Eólica",'Matriz Gravedad Probabilidad EO'!H14,IF('Análisis detallado'!$D$7="Mini-Hidro",""))) -> FALSE | K18: =IF('Paso 3 Mitigantes'!G18="",0,'Paso 3 Mitigantes'!G18) -> 0 | L18: 0 | M18: 0
C19: R1.4 | D19: 4. Entorno laboral | E19: =IF('Paso 2 Identificar Riesgos'!G19="Aplica",'Paso 2 Identificar Riesgos'!F19,"") ->  | F19: =IF(E19="","",'Matriz Gravedad Probabilidad FV'!F15) ->  | G19: 10 | I19: =IF($D$7="Fotovoltaica",'Matriz Gravedad Probabilidad FV'!G15,IF('Análisis detallado'!$D$7="Eólica",'Matriz Gravedad Probabilidad EO'!G15,IF('Análisis detallado'!$D$7="Mini-Hidro",""))) -> FALSE | J19: =IF($D$7="Fotovoltaica",'Matriz Gravedad Probabilidad FV'!H15,IF('Análisis detallado'!$D$7="Eólica",'Matriz Gravedad Probabilidad EO'!H15,IF('Análisis detallado'!$D$7="Mini-Hidro",""))) -> FALSE | K19: =IF('Paso 3 Mitigantes'!G19="",0,'Paso 3 Mitigantes'!G19) -> 0 | L19: 0 | M19: 0
E20: =IF('Paso 2 Identificar Riesgos'!G20="Aplica",'Paso 2 Identificar Riesgos'!F20,"") ->  | F20: =IF(E20="","",'Matriz Gravedad Probabilidad FV'!F16) ->  | G20: 11 | I20: =IF($D$7="Fotovoltaica",'Matriz Gravedad Probabilidad FV'!G16,IF('Análisis detallado'!$D$7="Eólica",'Matriz Gravedad Probabilidad EO'!G16,IF('Análisis detallado'!$D$7="Mini-Hidro",""))) -> FALSE | J20: =IF($D$7="Fotovoltaica",'Matriz Gravedad Probabilidad FV'!H16,IF('Análisis detallado'!$D$7="Eólica",'Matriz Gravedad Probabilidad EO'!H16,IF('Análisis detallado'!$D$7="Mini-Hidro",""))) -> FALSE | K20: =IF('Paso 3 Mitigantes'!G20="",0,'Paso 3 Mitigantes'!G20) -> 0 | L20: 0 | M20: 0
E21: =IF('Paso 2 Identificar Riesgos'!G21="Aplica",'Paso 2 Identificar Riesgos'!F21,"") ->  | F21: =IF(E21="","",'Matriz Gravedad Probabilidad FV'!F17) ->  | G21: 12 | I21: =IF($D$7="Fotovoltaica",'Matriz Gravedad Probabilidad FV'!G17,IF('Análisis detallado'!$D$7="Eólica",'Matriz Gravedad Probabilidad EO'!G17,IF('Análisis detallado'!$D$7="Mini-Hidro",""))) -> FALSE | J21: =IF($D$7="Fotovoltaica",'Matriz Gravedad Probabilidad FV'!H17,IF('Análisis detallado'!$D$7="Eólica",'Matriz Gravedad Probabilidad EO'!H17,IF('Análisis detallado'!$D$7="Mini-Hidro",""))) -> FALSE | K21: =IF('Paso 3 Mitigantes'!G21="",0,'Paso 3 Mitigantes'!G21) -> 0 | L21: 0 | M21: 0
C22: R1.5 | D22: 5. Inversión Social | E22: =IF('Paso 2 Identificar Riesgos'!G22="Aplica",'Paso 2 Identificar Riesgos'!F22,"") ->  | F22: =IF(E22="","",'Matriz Gravedad Probabilidad FV'!F18) ->  | G22: 13 | I22: =IF($D$7="Fotovoltaica",'Matriz Gravedad Probabilidad FV'!G18,IF('Análisis detallado'!$D$7="Eólica",'Matriz Gravedad Probabilidad EO'!G18,IF('Análisis detallado'!$D$7="Mini-Hidro",""))) -> FALSE | J22: =IF($D$7="Fotovoltaica",'Matriz Gravedad Probabilidad FV'!H18,IF('Análisis detallado'!$D$7="Eólica",'Matriz Gravedad Probabilidad EO'!H18,IF('Análisis detallado'!$D$7="Mini-Hidro",""))) -> FALSE | K22: =IF('Paso 3 Mitigantes'!G22="",0,'Paso 3 Mitigantes'!G22) -> 0 | L22: 0 | M22: 0
E23: =IF('Paso 2 Identificar Riesgos'!G23="Aplica",'Paso 2 Identificar Riesgos'!F23,"") ->  | F23: =IF(E23="","",'Matriz Gravedad Probabilidad FV'!F19) ->  | G23: 14 | I23: =IF($D$7="Fotovoltaica",'Matriz Gravedad Probabilidad FV'!G19,IF('Análisis detallado'!$D$7="Eólica",'Matriz Gravedad Probabilidad EO'!G19,IF('Análisis detallado'!$D$7="Mini-Hidro",""))) -> FALSE | J23: =IF($D$7="Fotovoltaica",'Matriz Gravedad Probabilidad FV'!H19,IF('Análisis detallado'!$D$7="Eólica",'Matriz Gravedad Probabilidad EO'!H19,IF('Análisis detallado'!$D$7="Mini-Hidro",""))) -> FALSE | K23: =IF('Paso 3 Mitigantes'!G23="",0,'Paso 3 Mitigantes'!G23) -> 0 | L23: 0 | M23: 0
B24: Dimensión Sociopolítica | C24: R2.1 | D24: 1. Mecanismos de Participación / 2. Representatividad / 3. Uso del territorio y libertad para decidir sobre él. | E24: =IF('Paso 2 Identificar Riesgos'!G24="Aplica",'Paso 2 Identificar Riesgos'!F24,"") ->  | F24: =IF(E24="","",'Matriz Gravedad Probabilidad FV'!F20) ->  | G24: 15 | I24: =IF($D$7="Fotovoltaica",'Matriz Gravedad Probabilidad FV'!G20,IF('Análisis detallado'!$D$7="Eólica",'Matriz Gravedad Probabilidad EO'!G20,IF('Análisis detallado'!$D$7="Mini-Hidro",""))) -> FALSE | J24: =IF($D$7="Fotovoltaica",'Matriz Gravedad Probabilidad FV'!H20,IF('Análisis detallado'!$D$7="Eólica",'Matriz Gravedad Probabilidad EO'!H20,IF('Análisis detallado'!$D$7="Mini-Hidro",""))) -> FALSE | K24: =IF('Paso 3 Mitigantes'!G24="",0,'Paso 3 Mitigantes'!G24) -> 0 | L24: 0 | M24: 0
E25: =IF('Paso 2 Identificar Riesgos'!G25="Aplica",'Paso 2 Identificar Riesgos'!F25,"") ->  | F25: =IF(E25="","",'Matriz Gravedad Probabilidad FV'!F21) ->  | G25: 16 | I25: =IF($D$7="Fotovoltaica",'Matriz Gravedad Probabilidad FV'!G21,IF('Análisis detallado'!$D$7="Eólica",'Matriz Gravedad Probabilidad EO'!G21,IF('Análisis detallado'!$D$7="Mini-Hidro",""))) -> FALSE | J25: =IF($D$7="Fotovoltaica",'Matriz Gravedad Probabilidad FV'!H21,IF('Análisis detallado'!$D$7="Eólica",'Matriz Gravedad Probabilidad EO'!H21,IF('Análisis detallado'!$D$7="Mini-Hidro",""))) -> FALSE | K25: =IF('Paso 3 Mitigantes'!G25="",0,'Paso 3 Mitigantes'!G25) -> 0 | L25: =I25*J25*(1-K25) -> 0 | M25: 0
E26: =IF('Paso 2 Identificar Riesgos'!G26="Aplica",'Paso 2 Identificar Riesgos'!F26,"") ->  | F26: =IF(E26="","",'Matriz Gravedad Probabilidad FV'!F22) ->  | G26: 17 | I26: =IF($D$7="Fotovoltaica",'Matriz Gravedad Probabilidad FV'!G22,IF('Análisis detallado'!$D$7="Eólica",'Matriz Gravedad Probabilidad EO'!G22,IF('Análisis detallado'!$D$7="Mini-Hidro",""))) -> FALSE | J26: =IF($D$7="Fotovoltaica",'Matriz Gravedad Probabilidad FV'!H22,IF('Análisis detallado'!$D$7="Eólica",'Matriz Gravedad Probabilidad EO'!H22,IF('Análisis detallado'!$D$7="Mini-Hidro",""))) -> FALSE | K26: =IF('Paso 3 Mitigantes'!G26="",0,'Paso 3 Mitigantes'!G26) -> 0 | L26: 0 | M26: 0
E27: =IF('Paso 2 Identificar Riesgos'!G27="Aplica",'Paso 2 Identificar Riesgos'!F27,"") ->  | F27: =IF(E27="","",'Matriz Gravedad Probabilidad FV'!F23) ->  | G27: 18 | I27: =IF($D$7="Fotovoltaica",'Matriz Gravedad Probabilidad FV'!G23,IF('Análisis detallado'!$D$7="Eólica",'Matriz Gravedad Probabilidad EO'!G23,IF('Análisis detallado'!$D$7="Mini-Hidro",""))) -> FALSE | J27: =IF($D$7="Fotovoltaica",'Matriz Gravedad Probabilidad FV'!H23,IF('Análisis detallado'!$D$7="Eólica",'Matriz Gravedad Probabilidad EO'!H23,IF('Análisis detallado'!$D$7="Mini-Hidro",""))) -> FALSE | K27: =IF('Paso 3 Mitigantes'!G27="",0,'Paso 3 Mitigantes'!G27) -> 0 | L27: 0 | M27: 0
C28: R2.2 | D28: 4. Formas de organización: Ejidos, comunidades agrarias, pueblos y comunidades indígenas y personas como propietarias del territorio. | E28: =IF('Paso 2 Identificar Riesgos'!G28="Aplica",'Paso 2 Identificar Riesgos'!F28,"") ->  | F28: =IF(E28="","",'Matriz Gravedad Probabilidad FV'!F24) ->  | G28: 19 | I28: =IF($D$7="Fotovoltaica",'Matriz Gravedad Probabilidad FV'!G24,IF('Análisis detallado'!$D$7="Eólica",'Matriz Gravedad Probabilidad EO'!G24,IF('Análisis detallado'!$D$7="Mini-Hidro",""))) -> FALSE | J28: =IF($D$7="Fotovoltaica",'Matriz Gravedad Probabilidad FV'!H24,IF('Análisis detallado'!$D$7="Eólica",'Matriz Gravedad Probabilidad EO'!H24,IF('Análisis detallado'!$D$7="Mini-Hidro",""))) -> FALSE | K28: =IF('Paso 3 Mitigantes'!G28="",0,'Paso 3 Mitigantes'!G28) -> 0 | L28: 0 | M28: 0
E29: =IF('Paso 2 Identificar Riesgos'!G29="Aplica",'Paso 2 Identificar Riesgos'!F29,"") ->  | F29: =IF(E29="","",'Matriz Gravedad Probabilidad FV'!F25) ->  | G29: 20 | I29: =IF($D$7="Fotovoltaica",'Matriz Gravedad Probabilidad FV'!G25,IF('Análisis detallado'!$D$7="Eólica",'Matriz Gravedad Probabilidad EO'!G25,IF('Análisis detallado'!$D$7="Mini-Hidro",""))) -> FALSE | J29: =IF($D$7="Fotovoltaica",'Matriz Gravedad Probabilidad FV'!H25,IF('Análisis detallado'!$D$7="Eólica",'Matriz Gravedad Probabilidad EO'!H25,IF('Análisis detallado'!$D$7="Mini-Hidro",""))) -> FALSE | K29: =IF('Paso 3 Mitigantes'!G29="",0,'Paso 3 Mitigantes'!G29) -> 0 | L29: 0 | M29: 0
E30: =IF('Paso 2 Identificar Riesgos'!G30="Aplica",'Paso 2 Identificar Riesgos'!F30,"") ->  | F30: =IF(E30="","",'Matriz Gravedad Probabilidad FV'!F26) ->  | G30: 21 | I30: =IF($D$7="Fotovoltaica",'Matriz Gravedad Probabilidad FV'!G26,IF('Análisis detallado'!$D$7="Eólica",'Matriz Gravedad Probabilidad EO'!G26,IF('Análisis detallado'!$D$7="Mini-Hidro",""))) -> FALSE | J30: =IF($D$7="Fotovoltaica",'Matriz Gravedad Probabilidad FV'!H26,IF('Análisis detallado'!$D$7="Eólica",'Matriz Gravedad Probabilidad EO'!H26,IF('Análisis detallado'!$D$7="Mini-Hidro",""))) -> FALSE | K30: =IF('Paso 3 Mitigantes'!G30="",0,'Paso 3 Mitigantes'!G30) -> 0 | L30: 0 | M30: 0
E31: =IF('Paso 2 Identificar Riesgos'!G31="Aplica",'Paso 2 Identificar Riesgos'!F31,"") ->  | F31: =IF(E31="","",'Matriz Gravedad Probabilidad FV'!F27) ->  | G31: 22 | I31: =IF($D$7="Fotovoltaica",'Matriz Gravedad Probabilidad FV'!G27,IF('Análisis detallado'!$D$7="Eólica",'Matriz Gravedad Probabilidad EO'!G27,IF('Análisis detallado'!$D$7="Mini-Hidro",""))) -> FALSE | J31: =IF($D$7="Fotovoltaica",'Matriz Gravedad Probabilidad FV'!H27,IF('Análisis detallado'!$D$7="Eólica",'Matriz Gravedad Probabilidad EO'!H27,IF('Análisis detallado'!$D$7="Mini-Hidro",""))) -> FALSE | K31: =IF('Paso 3 Mitigantes'!G31="",0,'Paso 3 Mitigantes'!G31) -> 0 | L31: 0 | M31: 0
B32: Dimensión Socioambiental | C32: R3.1 | D32: 1. Uso y aprovechamiento de los recursos naturales / 2. Regulación de los recursos naturales | E32: =IF('Paso 2 Identificar Riesgos'!G32="Aplica",'Paso 2 Identificar Riesgos'!F32,"") ->  | F32: =IF(E32="","",'Matriz Gravedad Probabilidad FV'!F28) ->  | G32: 23 | I32: =IF($D$7="Fotovoltaica",'Matriz Gravedad Probabilidad FV'!G28,IF('Análisis detallado'!$D$7="Eólica",'Matriz Gravedad Probabilidad EO'!G28,IF('Análisis detallado'!$D$7="Mini-Hidro",""))) -> FALSE | J32: =IF($D$7="Fotovoltaica",'Matriz Gravedad Probabilidad FV'!H28,IF('Análisis detallado'!$D$7="Eólica",'Matriz Gravedad Probabilidad EO'!H28,IF('Análisis detallado'!$D$7="Mini-Hidro",""))) -> FALSE | K32: =IF('Paso 3 Mitigantes'!G32="",0,'Paso 3 Mitigantes'!G32) -> 0 | L32: 0 | M32: 0
E33: =IF('Paso 2 Identificar Riesgos'!G33="Aplica",'Paso 2 Identificar Riesgos'!F33,"") ->  | F33: =IF(E33="","",'Matriz Gravedad Probabilidad FV'!F29) ->  | G33: 24 | I33: =IF($D$7="Fotovoltaica",'Matriz Gravedad Probabilidad FV'!G29,IF('Análisis detallado'!$D$7="Eólica",'Matriz Gravedad Probabilidad EO'!G29,IF('Análisis detallado'!$D$7="Mini-Hidro",""))) -> FALSE | J33: =IF($D$7="Fotovoltaica",'Matriz Gravedad Probabilidad FV'!H29,IF('Análisis detallado'!$D$7="Eólica",'Matriz Gravedad Probabilidad EO'!H29,IF('Análisis detallado'!$D$7="Mini-Hidro",""))) -> FALSE | K33: =IF('Paso 3 Mitigantes'!G33="",0,'Paso 3 Mitigantes'!G33) -> 0 | L33: 0 | M33: 0
E34: =IF('Paso 2 Identificar Riesgos'!G34="Aplica",'Paso 2 Identificar Riesgos'!F34,"") ->  | F34: =IF(E34="","",'Matriz Gravedad Probabilidad FV'!F30) ->  | G34: 25 | I34: =IF($D$7="Fotovoltaica",'Matriz Gravedad Probabilidad FV'!G30,IF('Análisis detallado'!$D$7="Eólica",'Matriz Gravedad Probabilidad EO'!G30,IF('Análisis detallado'!$D$7="Mini-Hidro",""))) -> FALSE | J34: =IF($D$7="Fotovoltaica",'Matriz Gravedad Probabilidad FV'!H30,IF('Análisis detallado'!$D$7="Eólica",'Matriz Gravedad Probabilidad EO'!H30,IF('Análisis detallado'!$D$7="Mini-Hidro",""))) -> FALSE | K34: =IF('Paso 3 Mitigantes'!G34="",0,'Paso 3 Mitigantes'!G34) -> 0 | L34: 0 | M34: 0
C35: R3.2 | D35: 3. Manejo de Residuos / 4. Salud | E35: =IF('Paso 2 Identificar Riesgos'!G35="Aplica",'Paso 2 Identificar Riesgos'!F35,"") ->  | F35: =IF(E35="","",'Matriz Gravedad Probabilidad FV'!F31) ->  | G35: 26 | I35: =IF($D$7="Fotovoltaica",'Matriz Gravedad Probabilidad FV'!G31,IF('Análisis detallado'!$D$7="Eólica",'Matriz Gravedad Probabilidad EO'!G31,IF('Análisis detallado'!$D$7="Mini-Hidro",""))) -> FALSE | J35: =IF($D$7="Fotovoltaica",'Matriz Gravedad Probabilidad FV'!H31,IF('Análisis detallado'!$D$7="Eólica",'Matriz Gravedad Probabilidad EO'!H31,IF('Análisis detallado'!$D$7="Mini-Hidro",""))) -> FALSE | K35: =IF('Paso 3 Mitigantes'!G35="",0,'Paso 3 Mitigantes'!G35) -> 0 | L35: 0 | M35: 0
E36: =IF('Paso 2 Identificar Riesgos'!G36="Aplica",'Paso 2 Identificar Riesgos'!F36,"") ->  | F36: =IF(E36="","",'Matriz Gravedad Probabilidad FV'!F32) ->  | G36: 27 | I36: =IF($D$7="Fotovoltaica",'Matriz Gravedad Probabilidad FV'!G32,IF('Análisis detallado'!$D$7="Eólica",'Matriz Gravedad Probabilidad EO'!G32,IF('Análisis detallado'!$D$7="Mini-Hidro",""))) -> FALSE | J36: =IF($D$7="Fotovoltaica",'Matriz Gravedad Probabilidad FV'!H32,IF('Análisis detallado'!$D$7="Eólica",'Matriz Gravedad Probabilidad EO'!H32,IF('Análisis detallado'!$D$7="Mini-Hidro",""))) -> FALSE | K36: =IF('Paso 3 Mitigantes'!G36="",0,'Paso 3 Mitigantes'!G36) -> 0 | L36: 0 | M36: 0
E37: =IF('Paso 2 Identificar Riesgos'!G37="Aplica",'Paso 2 Identificar Riesgos'!F37,"") ->  | F37: =IF(E37="","",'Matriz Gravedad Probabilidad FV'!F33) ->  | G37: 28 | I37: =IF($D$7="Fotovoltaica",'Matriz Gravedad Probabilidad FV'!G33,IF('Análisis detallado'!$D$7="Eólica",'Matriz Gravedad Probabilidad EO'!G33,IF('Análisis detallado'!$D$7="Mini-Hidro",""))) -> FALSE | J37: =IF($D$7="Fotovoltaica",'Matriz Gravedad Probabilidad FV'!H33,IF('Análisis detallado'!$D$7="Eólica",'Matriz Gravedad Probabilidad EO'!H33,IF('Análisis detallado'!$D$7="Mini-Hidro",""))) -> FALSE | K37: =IF('Paso 3 Mitigantes'!G37="",0,'Paso 3 Mitigantes'!G37) -> 0 | L37: 0 | M37: 0
E38: =IF('Paso 2 Identificar Riesgos'!G38="Aplica",'Paso 2 Identificar Riesgos'!F38,"") ->  | F38: =IF(E38="","",'Matriz Gravedad Probabilidad FV'!F34) ->  | G38: 29 | I38: =IF($D$7="Fotovoltaica",'Matriz Gravedad Probabilidad FV'!G34,IF('Análisis detallado'!$D$7="Eólica",'Matriz Gravedad Probabilidad EO'!G34,IF('Análisis detallado'!$D$7="Mini-Hidro",""))) -> FALSE | J38: =IF($D$7="Fotovoltaica",'Matriz Gravedad Probabilidad FV'!H34,IF('Análisis detallado'!$D$7="Eólica",'Matriz Gravedad Probabilidad EO'!H34,IF('Análisis detallado'!$D$7="Mini-Hidro",""))) -> FALSE | K38: =IF('Paso 3 Mitigantes'!G38="",0,'Paso 3 Mitigantes'!G38) -> 0 | L38: 0 | M38: 0
B39: Dimensión Sociocultural | C39: R4.1 | D39: 1. Población Indígena | E39: =IF('Paso 2 Identificar Riesgos'!G39="Aplica",'Paso 2 Identificar Riesgos'!F39,"") ->  | F39: =IF(E39="","",'Matriz Gravedad Probabilidad FV'!F35) ->  | G39: 30 | I39: =IF($D$7="Fotovoltaica",'Matriz Gravedad Probabilidad FV'!G35,IF('Análisis detallado'!$D$7="Eólica",'Matriz Gravedad Probabilidad EO'!G35,IF('Análisis detallado'!$D$7="Mini-Hidro",""))) -> FALSE | J39: =IF($D$7="Fotovoltaica",'Matriz Gravedad Probabilidad FV'!H35,IF('Análisis detallado'!$D$7="Eólica",'Matriz Gravedad Probabilidad EO'!H35,IF('Análisis detallado'!$D$7="Mini-Hidro",""))) -> FALSE | K39: =IF('Paso 3 Mitigantes'!G39="",0,'Paso 3 Mitigantes'!G39) -> 0 | L39: 0 | M39: 0
E40: =IF('Paso 2 Identificar Riesgos'!G40="Aplica",'Paso 2 Identificar Riesgos'!F40,"") ->  | F40: =IF(E40="","",'Matriz Gravedad Probabilidad FV'!F36) ->  | G40: 31 | I40: =IF($D$7="Fotovoltaica",'Matriz Gravedad Probabilidad FV'!G36,IF('Análisis detallado'!$D$7="Eólica",'Matriz Gravedad Probabilidad EO'!G36,IF('Análisis detallado'!$D$7="Mini-Hidro",""))) -> FALSE | J40: =IF($D$7="Fotovoltaica",'Matriz Gravedad Probabilidad FV'!H36,IF('Análisis detallado'!$D$7="Eólica",'Matriz Gravedad Probabilidad EO'!H36,IF('Análisis detallado'!$D$7="Mini-Hidro",""))) -> FALSE | K40: =IF('Paso 3 Mitigantes'!G40="",0,'Paso 3 Mitigantes'!G40) -> 0 | L40: 0 | M40: 0
E41: =IF('Paso 2 Identificar Riesgos'!G41="Aplica",'Paso 2 Identificar Riesgos'!F41,"") ->  | F41: =IF(E41="","",'Matriz Gravedad Probabilidad FV'!F37) ->  | G41: 32 | I41: =IF($D$7="Fotovoltaica",'Matriz Gravedad Probabilidad FV'!G37,IF('Análisis detallado'!$D$7="Eólica",'Matriz Gravedad Probabilidad EO'!G37,IF('Análisis detallado'!$D$7="Mini-Hidro",""))) -> FALSE | J41: =IF($D$7="Fotovoltaica",'Matriz Gravedad Probabilidad FV'!H37,IF('Análisis detallado'!$D$7="Eólica",'Matriz Gravedad Probabilidad EO'!H37,IF('Análisis detallado'!$D$7="Mini-Hidro",""))) -> FALSE | K41: =IF('Paso 3 Mitigantes'!G41="",0,'Paso 3 Mitigantes'!G41) -> 0 | L41: 0 | M41: 0
E42: =IF('Paso 2 Identificar Riesgos'!G42="Aplica",'Paso 2 Identificar Riesgos'!F42,"") ->  | F42: =IF(E42="","",'Matriz Gravedad Probabilidad FV'!F38) ->  | G42: 33 | I42: =IF($D$7="Fotovoltaica",'Matriz Gravedad Probabilidad FV'!G38,IF('Análisis detallado'!$D$7="Eólica",'Matriz Gravedad Probabilidad EO'!G38,IF('Análisis detallado'!$D$7="Mini-Hidro",""))) -> FALSE | J42: =IF($D$7="Fotovoltaica",'Matriz Gravedad Probabilidad FV'!H38,IF('Análisis detallado'!$D$7="Eólica",'Matriz Gravedad Probabilidad EO'!H38,IF('Análisis detallado'!$D$7="Mini-Hidro",""))) -> FALSE | K42: =IF('Paso 3 Mitigantes'!G42="",0,'Paso 3 Mitigantes'!G42) -> 0 | L42: 0 | M42: 0
C43: R4.2 | D43: 2. Patrimonio cultural material / 3. Patrimonio Cultural Arqueológico / 4. Producción y reproducción del patrimonio cultural | E43: =IF('Paso 2 Identificar Riesgos'!G43="Aplica",'Paso 2 Identificar Riesgos'!F43,"") ->  | F43: =IF(E43="","",'Matriz Gravedad Probabilidad FV'!F39) ->  | G43: 34 | I43: =IF($D$7="Fotovoltaica",'Matriz Gravedad Probabilidad FV'!G39,IF('Análisis detallado'!$D$7="Eólica",'Matriz Gravedad Probabilidad EO'!G39,IF('Análisis detallado'!$D$7="Mini-Hidro",""))) -> FALSE | J43: =IF($D$7="Fotovoltaica",'Matriz Gravedad Probabilidad FV'!H39,IF('Análisis detallado'!$D$7="Eólica",'Matriz Gravedad Probabilidad EO'!H39,IF('Análisis detallado'!$D$7="Mini-Hidro",""))) -> FALSE | K43: =IF('Paso 3 Mitigantes'!G43="",0,'Paso 3 Mitigantes'!G43) -> 0 | L43: 0 | M43: 0
E44: =IF('Paso 2 Identificar Riesgos'!G44="Aplica",'Paso 2 Identificar Riesgos'!F44,"") ->  | F44: =IF(E44="","",'Matriz Gravedad Probabilidad FV'!F40) ->  | G44: 35 | I44: =IF($D$7="Fotovoltaica",'Matriz Gravedad Probabilidad FV'!G40,IF('Análisis detallado'!$D$7="Eólica",'Matriz Gravedad Probabilidad EO'!G40,IF('Análisis detallado'!$D$7="Mini-Hidro",""))) -> FALSE | J44: =IF($D$7="Fotovoltaica",'Matriz Gravedad Probabilidad FV'!H40,IF('Análisis detallado'!$D$7="Eólica",'Matriz Gravedad Probabilidad EO'!H40,IF('Análisis detallado'!$D$7="Mini-Hidro",""))) -> FALSE | K44: =IF('Paso 3 Mitigantes'!G44="",0,'Paso 3 Mitigantes'!G44) -> 0 | L44: 0 | M44: 0
E45: =IF('Paso 2 Identificar Riesgos'!G45="Aplica",'Paso 2 Identificar Riesgos'!F45,"") ->  | F45: =IF(E45="","",'Matriz Gravedad Probabilidad FV'!F41) ->  | G45: 36 | I45: =IF($D$7="Fotovoltaica",'Matriz Gravedad Probabilidad FV'!G41,IF('Análisis detallado'!$D$7="Eólica",'Matriz Gravedad Probabilidad EO'!G41,IF('Análisis detallado'!$D$7="Mini-Hidro",""))) -> FALSE | J45: =IF($D$7="Fotovoltaica",'Matriz Gravedad Probabilidad FV'!H41,IF('Análisis detallado'!$D$7="Eólica",'Matriz Gravedad Probabilidad EO'!H41,IF('Análisis detallado'!$D$7="Mini-Hidro",""))) -> FALSE | K45: =IF('Paso 3 Mitigantes'!G45="",0,'Paso 3 Mitigantes'!G45) -> 0 | L45: 0 | M45: 0
E46: =IF('Paso 2 Identificar Riesgos'!G46="Aplica",'Paso 2 Identificar Riesgos'!F46,"") ->  | F46: =IF(E46="","",'Matriz Gravedad Probabilidad FV'!F42) ->  | G46: 37 | I46: =IF($D$7="Fotovoltaica",'Matriz Gravedad Probabilidad FV'!G42,IF('Análisis detallado'!$D$7="Eólica",'Matriz Gravedad Probabilidad EO'!G42,IF('Análisis detallado'!$D$7="Mini-Hidro",""))) -> FALSE | J46: =IF($D$7="Fotovoltaica",'Matriz Gravedad Probabilidad FV'!H42,IF('Análisis detallado'!$D$7="Eólica",'Matriz Gravedad Probabilidad EO'!H42,IF('Análisis detallado'!$D$7="Mini-Hidro",""))) -> FALSE | K46: =IF('Paso 3 Mitigantes'!G46="",0,'Paso 3 Mitigantes'!G46) -> 0 | L46: 0 | M46: 0
L49: =SUM(L10:L46) -> 0 | M49: =SUM(M10:M46) -> 0
L53: =M49/L49 -> 

Sheet Retroalimentación Individual
B2: Formato para agregar un proyecto individual a la base de datos
B5: Perfil del proyecto | J5: Paso 1: Perfil de Proyecto
B6: Nombre | C6: La noria 2 | J6: Llenar la información general del proyecto
B7: Desarrollador | C7: Acciona
B8: Estado | C8: Durango | J8: Paso 2: Llenar Matriz de Gravedad
B9: Municipio | C9: Durango | J9: Llenar la información general del proyecto
B10: Clave de Ficha UGAS | C10: 02-504
B11: Tecnología | C11: Fotovoltaica | J11: Paso 3: Dar Click en botón de "Agregar"
B12: Fecha de inicio de operación esperada | C12: 9684 | J12: Llenar la información general del proyecto
J14: Dar Click en botón de "Limpiar Base" para resetear la información en esta pestaña
B15: Dimensión | C15: ID | D15: Impacto Genérico | E15: Relación Impacto - Riesgo | F15: Riesgo Genérico Asociado | G15: Gravedad
B16: Dimensión Socioeconómica | C16: R1.1 | D16: 1. Producción de bienes y servicios en lugares específicos | E16: Riesgos derivados de la modificación del área | F16: C1 Retraso | G16: No ocurrió
F17: C2 Conflicto | G17: No ocurrió
C18: R1.2 | D18: 2. Derrama económica por el usufructo y contraprestación de espacios. | E18: Riesgos derivados de renta o compra-venta del área dónde se desarrollará el proyecto | F18: C1 Retraso | G18: No ocurrió
F19: C2 Conflicto | G19: No ocurrió
F20: C3 Sanciones | G20: No ocurrió
F21: C4 Cancelación | G21: No ocurrió
C22: R1.3 | D22: 3. Seguridad | E22: Riesgos derivados de las condiciones de seguridad del personal involucrado en el proyecto y la población cercana | F22: C1 Retraso | G22: No ocurrió
F23: C2 Conflicto | G23: No ocurrió
F24: C3 Sanciones | G24: No ocurrió
C25: R1.4 | D25: 4. Entorno laboral | E25: Riesgos derivados de las condiciones Laborales del personal involucrado en el proyecto | F25: C1 Retraso | G25: No ocurrió
F26: C2 Conflicto | G26: No ocurrió
F27: C3 Sanciones | G27: No ocurrió
C28: R1.5 | D28: 5. Inversión Social | E28: Riesgos derivados de la negación de inversión social en la población con la que interactúa. | F28: C1 Retraso | G28: No ocurrió
F29: C2 Conflicto | G29: No ocurrió
B30: Dimensión Sociopolítica | C30: R2.1 | D30: 1. Mecanismos de Participación / 2. Representatividad / 3. Uso del territorio y libertad para decidir sobre él. | E30: Riesgo derivado de los procedimientos que permiten a los individuos de una sociedad involucrase en las decisiones relacionadas con el desarrollo del proyecto. | F30: C1 Retraso | G30: No ocurrió
F31: C2 Conflicto | G31: No ocurrió
F32: C3 Sanciones | G32: No ocurrió
F33: C4 Cancelación | G33: No ocurrió
C34: R2.2 | D34: 4. Formas de organización: Ejidos, comunidades agrarias, pueblos y comunidades indígenas y personas como propietarias del territorio. | E34: Riesgo derivado de ignorar las formas de organización local de: ejidos, comunidades agrarias, pueblos y comunidades indígenas. | F34: C1 Retraso | G34: No ocurrió
F35: C2 Conflicto | G35: No ocurrió
F36: C3 Sanciones | G36: No ocurrió
F37: C4 Cancelación | G37: No ocurrió
B38: Dimensión Socioambiental | C38: R3.1 | D38: 1. Uso y aprovechamiento de los recursos naturales / 2. Regulación de los recursos naturales | E38: Riesgo derivado del manejo sustentable y eficiente de los recursos existentes. | F38: C1 Retraso | G38: No ocurrió
F39: C2 Conflicto | G39: No ocurrió
F40: C3 Sanciones | G40: No ocurrió
C41: R3.2 | D41: 3. Manejo de Residuos / 4. Salud | E41: Riesgo derivado de problemas de salud por incorrecto manejo de residuos. | F41: C1 Retraso | G41: No ocurrió
F42: C2 Conflicto | G42: No ocurrió
F43: C3 Sanciones | G43: No ocurrió
F44: C4 Cancelación | G44: No ocurrió
B45: Dimensión Sociocultural | C45: R4.1 | D45: 1. Población Indígena | E45: Riesgo por no realizar correctamente una consulta indígena. | F45: C1 Retraso | G45: No ocurrió
F46: C2 Conflicto | G46: No ocurrió
F47: C3 Sanciones | G47: No ocurrió
F48: C4 Cancelación | G48: No ocurrió
C49: R4.2 | D49: 2. Patrimonio cultural material / 3. Patrimonio Cultural Arqueológico / 4. Producción y reproducción del patrimonio cultural | E49: Riesgo derivado de no identificar ni implementar mecanismos de resguardo y conservación al patrimonio cultural que tiene contacto con el proyecto. | F49: C1 Retraso | G49: No ocurrió
F50: C2 Conflicto | G50: No ocurrió
F51: C3 Sanciones | G51: No ocurrió
F52: C4 Cancelación | G52: No ocurrió

Sheet Retroalimentación Múltiple
B2: Formato para agregar un proyecto a la base de datos
B5: Perfil del proyecto | K5: Paso 1: Perfil de Proyecto
B6: Número de proyectos | K6: Llenar la información general del proyecto
B7: Desarrollador
B8: Estado | K8: Paso 2: Llenar Matriz de Gravedad y Frecuencia
B9: Municipio | K9: Llenar la información general del proyecto
B10: Clave de Ficha UGAS
B11: Tecnología | K11: Paso 3: Dar Click en botón de "Agregar"
B12: Fecha de inicio de operación esperada | K12: Llenar la información general del proyecto
K14: Dar Click en botón de "Limpiar Base" para resetear la información en esta pestaña
B15: Dimensión | C15: ID | D15: Impacto Genérico | E15: Relación Impacto - Riesgo | F15: Riesgo Genérico Asociado | G15: Gravedad | H15: Frecuencia
B16: Dimensión Socioeconómica | C16: R1.1 | D16: 1. Producción de bienes y servicios en lugares específicos | E16: Riesgos derivados de la modificación del área | F16: C1 Retraso
F17: C2 Conflicto
C18: R1.2 | D18: 2. Derrama económica por el usufructo y contraprestación de espacios. | E18: Riesgos derivados de renta o compra-venta del área dónde se desarrollará el proyecto | F18: C1 Retraso
F19: C2 Conflicto
F20: C3 Sanciones
F21: C4 Cancelación
C22: R1.3 | D22: 3. Seguridad | E22: Riesgos derivados de las condiciones de seguridad del personal involucrado en el proyecto y la población cercana | F22: C1 Retraso
F23: C2 Conflicto
F24: C3 Sanciones
C25: R1.4 | D25: 4. Entorno laboral | E25: Riesgos derivados de las condiciones Laborales del personal involucrado en el proyecto | F25: C1 Retraso
F26: C2 Conflicto
F27: C3 Sanciones
C28: R1.5 | D28: 5. Inversión Social | E28: Riesgos derivados de la negación de inversión social en la población con la que interactúa. | F28: C1 Retraso
F29: C2 Conflicto
B30: Dimensión Sociopolítica | C30: R2.1 | D30: 1. Mecanismos de Participación / 2. Representatividad / 3. Uso del territorio y libertad para decidir sobre él. | E30: Riesgo derivado de los procedimientos que permiten a los individuos de una sociedad involucrase en las decisiones relacionadas con el desarrollo del proyecto. | F30: C1 Retraso
F31: C2 Conflicto
F32: C3 Sanciones
F33: C4 Cancelación
C34: R2.2 | D34: 4. Formas de organización: Ejidos, comunidades agrarias, pueblos y comunidades indígenas y personas como propietarias del territorio. | E34: Riesgo derivado de ignorar las formas de organización local de: ejidos, comunidades agrarias, pueblos y comunidades indígenas. | F34: C1 Retraso
F35: C2 Conflicto
F36: C3 Sanciones
F37: C4 Cancelación
B38: Dimensión Socioambiental | C38: R3.1 | D38: 1. Uso y aprovechamiento de los recursos naturales / 2. Regulación de los recursos naturales | E38: Riesgo derivado del manejo sustentable y eficiente de los recursos existentes. | F38: C1 Retraso
F39: C2 Conflicto
F40: C3 Sanciones
C41: R3.2 | D41: 3. Manejo de Residuos / 4. Salud | E41: Riesgo derivado de problemas de salud por incorrecto manejo de residuos. | F41: C1 Retraso
F42: C2 Conflicto
F43: C3 Sanciones
F44: C4 Cancelación
B45: Dimensión Sociocultural | C45: R4.1 | D45: 1. Población Indígena | E45: Riesgo por no realizar correctamente una consulta indígena. | F45: C1 Retraso
F46: C2 Conflicto
F47: C3 Sanciones
F48: C4 Cancelación
C49: R4.2 | D49: 2. Patrimonio cultural material / 3. Patrimonio Cultural Arqueológico / 4. Producción y reproducción del patrimonio cultural | E49: Riesgo derivado de no identificar ni implementar mecanismos de resguardo y conservación al patrimonio cultural que tiene contacto con el proyecto. | F49: C1 Retraso
F50: C2 Conflicto
F51: C3 Sanciones
F52: C4 Cancelación

Sheet Matriz Gravedad Probabilidad EO
B2: Matriz de Gravedad y Probabilidad
G4: 0.5 | H4: 0.5
B5: Dimensión | C5: ID | D5: Impacto Genérico | E5: Riesgo Genérico Asociado | G5: Gravedad | H5: Frecuencia | I5: Ponderado Factores
B6: Dimensión Socioeconómica | C6: R1.1 | D6: 1. Producción de bienes y servicios en lugares específicos | E6: C1 Retraso | F6: R1.1 C1 | G6: =AVERAGE('Cuestionario Eólica'!G11,'Cuestionario Eólica'!J11,'Cuestionario Eólica'!M11,'Cuestionario Eólica'!P11,'Cuestionario Eólica'!S11,'Cuestionario Eólica'!V11,'Cuestionario Eólica'!Y11,'Cuestionario Eólica'!AB11,'Cuestionario Eólica'!AE11,'Cuestionario Eólica'!AH11) -> 7.75 | H6: =AVERAGE('Cuestionario Eólica'!H11,'Cuestionario Eólica'!K11,'Cuestionario Eólica'!N11,'Cuestionario Eólica'!Q11,'Cuestionario Eólica'!T11,'Cuestionario Eólica'!W11,'Cuestionario Eólica'!Z11,'Cuestionario Eólica'!AC11,'Cuestionario Eólica'!AF11,'Cuestionario Eólica'!AI11) -> 4.25 | I6: =G6*H6 -> 32.9375
E7: C2 Conflicto | F7: R1.1 C2 | G7: =AVERAGE('Cuestionario Eólica'!G12,'Cuestionario Eólica'!J12,'Cuestionario Eólica'!M12,'Cuestionario Eólica'!P12,'Cuestionario Eólica'!S12,'Cuestionario Eólica'!V12,'Cuestionario Eólica'!Y12,'Cuestionario Eólica'!AB12,'Cuestionario Eólica'!AE12,'Cuestionario Eólica'!AH12) -> 4.714285714 | H7: =AVERAGE('Cuestionario Eólica'!H12,'Cuestionario Eólica'!K12,'Cuestionario Eólica'!N12,'Cuestionario Eólica'!Q12,'Cuestionario Eólica'!T12,'Cuestionario Eólica'!W12,'Cuestionario Eólica'!Z12,'Cuestionario Eólica'!AC12,'Cuestionario Eólica'!AF12,'Cuestionario Eólica'!AI12) -> 4.857142857 | I7: =G7*H7 -> 22.89795918
C8: R1.2 | D8: 2. Derrama económica por el usufructo y contraprestación de espacios o prestación de servicios. | E8: C1 Retraso | F8: R1.2 C1 | G8: =AVERAGE('Cuestionario Eólica'!G13,'Cuestionario Eólica'!J13,'Cuestionario Eólica'!M13,'Cuestionario Eólica'!P13,'Cuestionario Eólica'!S13,'Cuestionario Eólica'!V13,'Cuestionario Eólica'!Y13,'Cuestionario Eólica'!AB13,'Cuestionario Eólica'!AE13,'Cuestionario Eólica'!AH13) -> 7.25 | H8: =AVERAGE('Cuestionario Eólica'!H13,'Cuestionario Eólica'!K13,'Cuestionario Eólica'!N13,'Cuestionario Eólica'!Q13,'Cuestionario Eólica'!T13,'Cuestionario Eólica'!W13,'Cuestionario Eólica'!Z13,'Cuestionario Eólica'!AC13,'Cuestionario Eólica'!AF13,'Cuestionario Eólica'!AI13) -> 5.125 | I8: 37.15625
E9: C2 Conflicto | F9: R1.2 C2 | G9: =AVERAGE('Cuestionario Eólica'!G14,'Cuestionario Eólica'!J14,'Cuestionario Eólica'!M14,'Cuestionario Eólica'!P14,'Cuestionario Eólica'!S14,'Cuestionario Eólica'!V14,'Cuestionario Eólica'!Y14,'Cuestionario Eólica'!AB14,'Cuestionario Eólica'!AE14,'Cuestionario Eólica'!AH14) -> 5.375 | H9: =AVERAGE('Cuestionario Eólica'!H14,'Cuestionario Eólica'!K14,'Cuestionario Eólica'!N14,'Cuestionario Eólica'!Q14,'Cuestionario Eólica'!T14,'Cuestionario Eólica'!W14,'Cuestionario Eólica'!Z14,'Cuestionario Eólica'!AC14,'Cuestionario Eólica'!AF14,'Cuestionario Eólica'!AI14) -> 5.75 | I9: 30.90625
E10: C3 Sanciones | F10: R1.2 C3 | G10: =AVERAGE('Cuestionario Eólica'!G15,'Cuestionario Eólica'!J15,'Cuestionario Eólica'!M15,'Cuestionario Eólica'!P15,'Cuestionario Eólica'!S15,'Cuestionario Eólica'!V15,'Cuestionario Eólica'!Y15,'Cuestionario Eólica'!AB15,'Cuestionario Eólica'!AE15,'Cuestionario Eólica'!AH15) -> 5.714285714 | H10: =AVERAGE('Cuestionario Eólica'!H15,'Cuestionario Eólica'!K15,'Cuestionario Eólica'!N15,'Cuestionario Eólica'!Q15,'Cuestionario Eólica'!T15,'Cuestionario Eólica'!W15,'Cuestionario Eólica'!Z15,'Cuestionario Eólica'!AC15,'Cuestionario Eólica'!AF15,'Cuestionario Eólica'!AI15) -> 2.571428571 | I10: 14.69387755
E11: C4 Cancelación | F11: R1.2 C4 | G11: =AVERAGE('Cuestionario Eólica'!G16,'Cuestionario Eólica'!J16,'Cuestionario Eólica'!M16,'Cuestionario Eólica'!P16,'Cuestionario Eólica'!S16,'Cuestionario Eólica'!V16,'Cuestionario Eólica'!Y16,'Cuestionario Eólica'!AB16,'Cuestionario Eólica'!AE16,'Cuestionario Eólica'!AH16) -> 8.625 | H11: =AVERAGE('Cuestionario Eólica'!H16,'Cuestionario Eólica'!K16,'Cuestionario Eólica'!N16,'Cuestionario Eólica'!Q16,'Cuestionario Eólica'!T16,'Cuestionario Eólica'!W16,'Cuestionario Eólica'!Z16,'Cuestionario Eólica'!AC16,'Cuestionario Eólica'!AF16,'Cuestionario Eólica'!AI16) -> 2.75 | I11: 23.71875
C12: R1.3 | D12: 3. Seguridad | E12: C1 Retraso | F12: R1.3 C1 | G12: =AVERAGE('Cuestionario Eólica'!G17,'Cuestionario Eólica'!J17,'Cuestionario Eólica'!M17,'Cuestionario Eólica'!P17,'Cuestionario Eólica'!S17,'Cuestionario Eólica'!V17,'Cuestionario Eólica'!Y17,'Cuestionario Eólica'!AB17,'Cuestionario Eólica'!AE17,'Cuestionario Eólica'!AH17) -> 5.625 | H12: =AVERAGE('Cuestionario Eólica'!H17,'Cuestionario Eólica'!K17,'Cuestionario Eólica'!N17,'Cuestionario Eólica'!Q17,'Cuestionario Eólica'!T17,'Cuestionario Eólica'!W17,'Cuestionario Eólica'!Z17,'Cuestionario Eólica'!AC17,'Cuestionario Eólica'!AF17,'Cuestionario Eólica'!AI17) -> 2.875 | I12: 16.171875
E13: C2 Conflicto | F13: R1.3 C2 | G13: =AVERAGE('Cuestionario Eólica'!G18,'Cuestionario Eólica'!J18,'Cuestionario Eólica'!M18,'Cuestionario Eólica'!P18,'Cuestionario Eólica'!S18,'Cuestionario Eólica'!V18,'Cuestionario Eólica'!Y18,'Cuestionario Eólica'!AB18,'Cuestionario Eólica'!AE18,'Cuestionario Eólica'!AH18) -> 6 | H13: =AVERAGE('Cuestionario Eólica'!H18,'Cuestionario Eólica'!K18,'Cuestionario Eólica'!N18,'Cuestionario Eólica'!Q18,'Cuestionario Eólica'!T18,'Cuestionario Eólica'!W18,'Cuestionario Eólica'!Z18,'Cuestionario Eólica'!AC18,'Cuestionario Eólica'!AF18,'Cuestionario Eólica'!AI18) -> 3.75 | I13: 22.5
E14: C3 Sanciones | F14: R1.3 C3 | G14: =AVERAGE('Cuestionario Eólica'!G19,'Cuestionario Eólica'!J19,'Cuestionario Eólica'!M19,'Cuestionario Eólica'!P19,'Cuestionario Eólica'!S19,'Cuestionario Eólica'!V19,'Cuestionario Eólica'!Y19,'Cuestionario Eólica'!AB19,'Cuestionario Eólica'!AE19,'Cuestionario Eólica'!AH19) -> 6.285714286 | H14: =AVERAGE('Cuestionario Eólica'!H19,'Cuestionario Eólica'!K19,'Cuestionario Eólica'!N19,'Cuestionario Eólica'!Q19,'Cuestionario Eólica'!T19,'Cuestionario Eólica'!W19,'Cuestionario Eólica'!Z19,'Cuestionario Eólica'!AC19,'Cuestionario Eólica'!AF19,'Cuestionario Eólica'!AI19) -> 2.857142857 | I14: 17.95918367
C15: R1.4 | D15: 4. Entorno laboral | E15: C1 Retraso | F15: R1.4 C1 | G15: =AVERAGE('Cuestionario Eólica'!G20,'Cuestionario Eólica'!J20,'Cuestionario Eólica'!M20,'Cuestionario Eólica'!P20,'Cuestionario Eólica'!S20,'Cuestionario Eólica'!V20,'Cuestionario Eólica'!Y20,'Cuestionario Eólica'!AB20,'Cuestionario Eólica'!AE20,'Cuestionario Eólica'!AH20) -> 6.875 | H15: =AVERAGE('Cuestionario Eólica'!H20,'Cuestionario Eólica'!K20,'Cuestionario Eólica'!N20,'Cuestionario Eólica'!Q20,'Cuestionario Eólica'!T20,'Cuestionario Eólica'!W20,'Cuestionario Eólica'!Z20,'Cuestionario Eólica'!AC20,'Cuestionario Eólica'!AF20,'Cuestionario Eólica'!AI20) -> 3.5 | I15: 24.0625
E16: C2 Conflicto | F16: R1.4 C2 | G16: =AVERAGE('Cuestionario Eólica'!G21,'Cuestionario Eólica'!J21,'Cuestionario Eólica'!M21,'Cuestionario Eólica'!P21,'Cuestionario Eólica'!S21,'Cuestionario Eólica'!V21,'Cuestionario Eólica'!Y21,'Cuestionario Eólica'!AB21,'Cuestionario Eólica'!AE21,'Cuestionario Eólica'!AH21) -> 6 | H16: =AVERAGE('Cuestionario Eólica'!H21,'Cuestionario Eólica'!K21,'Cuestionario Eólica'!N21,'Cuestionario Eólica'!Q21,'Cuestionario Eólica'!T21,'Cuestionario Eólica'!W21,'Cuestionario Eólica'!Z21,'Cuestionario Eólica'!AC21,'Cuestionario Eólica'!AF21,'Cuestionario Eólica'!AI21) -> 3.25 | I16: 19.5
E17: C3 Sanciones | F17: R1.4 C3 | G17: =AVERAGE('Cuestionario Eólica'!G22,'Cuestionario Eólica'!J22,'Cuestionario Eólica'!M22,'Cuestionario Eólica'!P22,'Cuestionario Eólica'!S22,'Cuestionario Eólica'!V22,'Cuestionario Eólica'!Y22,'Cuestionario Eólica'!AB22,'Cuestionario Eólica'!AE22,'Cuestionario Eólica'!AH22) -> 6.142857143 | H17: =AVERAGE('Cuestionario Eólica'!H22,'Cuestionario Eólica'!K22,'Cuestionario Eólica'!N22,'Cuestionario Eólica'!Q22,'Cuestionario Eólica'!T22,'Cuestionario Eólica'!W22,'Cuestionario Eólica'!Z22,'Cuestionario Eólica'!AC22,'Cuestionario Eólica'!AF22,'Cuestionario Eólica'!AI22) -> 2.428571429 | I17: 14.91836735
C18: R1.5 | D18: 5. Inversión Social | E18: C1 Retraso | F18: R1.4 C1 | G18: =AVERAGE('Cuestionario Eólica'!G23,'Cuestionario Eólica'!J23,'Cuestionario Eólica'!M23,'Cuestionario Eólica'!P23,'Cuestionario Eólica'!S23,'Cuestionario Eólica'!V23,'Cuestionario Eólica'!Y23,'Cuestionario Eólica'!AB23,'Cuestionario Eólica'!AE23,'Cuestionario Eólica'!AH23) -> 5.125 | H18: =AVERAGE('Cuestionario Eólica'!H23,'Cuestionario Eólica'!K23,'Cuestionario Eólica'!N23,'Cuestionario Eólica'!Q23,'Cuestionario Eólica'!T23,'Cuestionario Eólica'!W23,'Cuestionario Eólica'!Z23,'Cuestionario Eólica'!AC23,'Cuestionario Eólica'!AF23,'Cuestionario Eólica'!AI23) -> 3.625 | I18: 18.578125
E19: C2 Conflicto | F19: R1.4 C2 | G19: =AVERAGE('Cuestionario Eólica'!G24,'Cuestionario Eólica'!J24,'Cuestionario Eólica'!M24,'Cuestionario Eólica'!P24,'Cuestionario Eólica'!S24,'Cuestionario Eólica'!V24,'Cuestionario Eólica'!Y24,'Cuestionario Eólica'!AB24,'Cuestionario Eólica'!AE24,'Cuestionario Eólica'!AH24) -> 4.75 | H19: =AVERAGE('Cuestionario Eólica'!H24,'Cuestionario Eólica'!K24,'Cuestionario Eólica'!N24,'Cuestionario Eólica'!Q24,'Cuestionario Eólica'!T24,'Cuestionario Eólica'!W24,'Cuestionario Eólica'!Z24,'Cuestionario Eólica'!AC24,'Cuestionario Eólica'!AF24,'Cuestionario Eólica'!AI24) -> 3.625 | I19: 17.21875
B20: Dimensión Sociopolítica | C20: R2.1 | D20: 1. Mecanismos de Participación / 2. Representatividad / 3. Uso del territorio y libertad para decidir sobre él. | E20: C1 Retraso | F20: R2.1 C1 | G20: =AVERAGE('Cuestionario Eólica'!G25,'Cuestionario Eólica'!J25,'Cuestionario Eólica'!M25,'Cuestionario Eólica'!P25,'Cuestionario Eólica'!S25,'Cuestionario Eólica'!V25,'Cuestionario Eólica'!Y25,'Cuestionario Eólica'!AB25,'Cuestionario Eólica'!AE25,'Cuestionario Eólica'!AH25) -> 5.875 | H20: =AVERAGE('Cuestionario Eólica'!H25,'Cuestionario Eólica'!K25,'Cuestionario Eólica'!N25,'Cuestionario Eólica'!Q25,'Cuestionario Eólica'!T25,'Cuestionario Eólica'!W25,'Cuestionario Eólica'!Z25,'Cuestionario Eólica'!AC25,'Cuestionario Eólica'!AF25,'Cuestionario Eólica'!AI25) -> 4.5 | I20: 26.4375
E21: C2 Conflicto | F21: R2.1 C2 | G21: =AVERAGE('Cuestionario Eólica'!G26,'Cuestionario Eólica'!J26,'Cuestionario Eólica'!M26,'Cuestionario Eólica'!P26,'Cuestionario Eólica'!S26,'Cuestionario Eólica'!V26,'Cuestionario Eólica'!Y26,'Cuestionario Eólica'!AB26,'Cuestionario Eólica'!AE26,'Cuestionario Eólica'!AH26) -> 4.5 | H21: =AVERAGE('Cuestionario Eólica'!H26,'Cuestionario Eólica'!K26,'Cuestionario Eólica'!N26,'Cuestionario Eólica'!Q26,'Cuestionario Eólica'!T26,'Cuestionario Eólica'!W26,'Cuestionario Eólica'!Z26,'Cuestionario Eólica'!AC26,'Cuestionario Eólica'!AF26,'Cuestionario Eólica'!AI26) -> 4 | I21: 18
E22: C3 Sanciones | F22: R2.1 C3 | G22: =AVERAGE('Cuestionario Eólica'!G27,'Cuestionario Eólica'!J27,'Cuestionario Eólica'!M27,'Cuestionario Eólica'!P27,'Cuestionario Eólica'!S27,'Cuestionario Eólica'!V27,'Cuestionario Eólica'!Y27,'Cuestionario Eólica'!AB27,'Cuestionario Eólica'!AE27,'Cuestionario Eólica'!AH27) -> 5 | H22: =AVERAGE('Cuestionario Eólica'!H27,'Cuestionario Eólica'!K27,'Cuestionario Eólica'!N27,'Cuestionario Eólica'!Q27,'Cuestionario Eólica'!T27,'Cuestionario Eólica'!W27,'Cuestionario Eólica'!Z27,'Cuestionario Eólica'!AC27,'Cuestionario Eólica'!AF27,'Cuestionario Eólica'!AI27) -> 2.571428571 | I22: 12.85714286
E23: C4 Cancelación | F23: R2.1 C4 | G23: =AVERAGE('Cuestionario Eólica'!G28,'Cuestionario Eólica'!J28,'Cuestionario Eólica'!M28,'Cuestionario Eólica'!P28,'Cuestionario Eólica'!S28,'Cuestionario Eólica'!V28,'Cuestionario Eólica'!Y28,'Cuestionario Eólica'!AB28,'Cuestionario Eólica'!AE28,'Cuestionario Eólica'!AH28) -> 7.75 | H23: =AVERAGE('Cuestionario Eólica'!H28,'Cuestionario Eólica'!K28,'Cuestionario Eólica'!N28,'Cuestionario Eólica'!Q28,'Cuestionario Eólica'!T28,'Cuestionario Eólica'!W28,'Cuestionario Eólica'!Z28,'Cuestionario Eólica'!AC28,'Cuestionario Eólica'!AF28,'Cuestionario Eólica'!AI28) -> 2.5 | I23: 19.375
C24: R2.2 | D24: 4. Formas de organización: Ejidos, comunidades agrarias, pueblos y comunidades indígenas y personas como propietarias del territorio. | E24: C1 Retraso | F24: R2.2 C1 | G24: =AVERAGE('Cuestionario Eólica'!G29,'Cuestionario Eólica'!J29,'Cuestionario Eólica'!M29,'Cuestionario Eólica'!P29,'Cuestionario Eólica'!S29,'Cuestionario Eólica'!V29,'Cuestionario Eólica'!Y29,'Cuestionario Eólica'!AB29,'Cuestionario Eólica'!AE29,'Cuestionario Eólica'!AH29) -> 6.75 | H24: =AVERAGE('Cuestionario Eólica'!H29,'Cuestionario Eólica'!K29,'Cuestionario Eólica'!N29,'Cuestionario Eólica'!Q29,'Cuestionario Eólica'!T29,'Cuestionario Eólica'!W29,'Cuestionario Eólica'!Z29,'Cuestionario Eólica'!AC29,'Cuestionario Eólica'!AF29,'Cuestionario Eólica'!AI29) -> 4.25 | I24: 28.6875
E25: C2 Conflicto | F25: R2.2 C2 | G25: =AVERAGE('Cuestionario Eólica'!G30,'Cuestionario Eólica'!J30,'Cuestionario Eólica'!M30,'Cuestionario Eólica'!P30,'Cuestionario Eólica'!S30,'Cuestionario Eólica'!V30,'Cuestionario Eólica'!Y30,'Cuestionario Eólica'!AB30,'Cuestionario Eólica'!AE30,'Cuestionario Eólica'!AH30) -> 5.75 | H25: =AVERAGE('Cuestionario Eólica'!H30,'Cuestionario Eólica'!K30,'Cuestionario Eólica'!N30,'Cuestionario Eólica'!Q30,'Cuestionario Eólica'!T30,'Cuestionario Eólica'!W30,'Cuestionario Eólica'!Z30,'Cuestionario Eólica'!AC30,'Cuestionario Eólica'!AF30,'Cuestionario Eólica'!AI30) -> 4 | I25: 23
E26: C3 Sanciones | F26: R2.2 C3 | G26: =AVERAGE('Cuestionario Eólica'!G31,'Cuestionario Eólica'!J31,'Cuestionario Eólica'!M31,'Cuestionario Eólica'!P31,'Cuestionario Eólica'!S31,'Cuestionario Eólica'!V31,'Cuestionario Eólica'!Y31,'Cuestionario Eólica'!AB31,'Cuestionario Eólica'!AE31,'Cuestionario Eólica'!AH31) -> 5 | H26: =AVERAGE('Cuestionario Eólica'!H31,'Cuestionario Eólica'!K31,'Cuestionario Eólica'!N31,'Cuestionario Eólica'!Q31,'Cuestionario Eólica'!T31,'Cuestionario Eólica'!W31,'Cuestionario Eólica'!Z31,'Cuestionario Eólica'!AC31,'Cuestionario Eólica'!AF31,'Cuestionario Eólica'!AI31) -> 2.571428571 | I26: 12.85714286
E27: C4 Cancelación | F27: R2.2 C4 | G27: =AVERAGE('Cuestionario Eólica'!G32,'Cuestionario Eólica'!J32,'Cuestionario Eólica'!M32,'Cuestionario Eólica'!P32,'Cuestionario Eólica'!S32,'Cuestionario Eólica'!V32,'Cuestionario Eólica'!Y32,'Cuestionario Eólica'!AB32,'Cuestionario Eólica'!AE32,'Cuestionario Eólica'!AH32) -> 7.625 | H27: =AVERAGE('Cuestionario Eólica'!H32,'Cuestionario Eólica'!K32,'Cuestionario Eólica'!N32,'Cuestionario Eólica'!Q32,'Cuestionario Eólica'!T32,'Cuestionario Eólica'!W32,'Cuestionario Eólica'!Z32,'Cuestionario Eólica'!AC32,'Cuestionario Eólica'!AF32,'Cuestionario Eólica'!AI32) -> 2.375 | I27: 18.109375
B28: Dimensión Socioambiental | C28: R3.1 | D28: 1. Uso y aprovechamiento de los recursos naturales / 2. Regulación de los recursos naturales | E28: C1 Retraso | F28: R3.1 C1 | G28: =AVERAGE('Cuestionario Eólica'!G33,'Cuestionario Eólica'!J33,'Cuestionario Eólica'!M33,'Cuestionario Eólica'!P33,'Cuestionario Eólica'!S33,'Cuestionario Eólica'!V33,'Cuestionario Eólica'!Y33,'Cuestionario Eólica'!AB33,'Cuestionario Eólica'!AE33,'Cuestionario Eólica'!AH33) -> 6.75 | H28: =AVERAGE('Cuestionario Eólica'!H33,'Cuestionario Eólica'!K33,'Cuestionario Eólica'!N33,'Cuestionario Eólica'!Q33,'Cuestionario Eólica'!T33,'Cuestionario Eólica'!W33,'Cuestionario Eólica'!Z33,'Cuestionario Eólica'!AC33,'Cuestionario Eólica'!AF33,'Cuestionario Eólica'!AI33) -> 3.25 | I28: 21.9375
E29: C2 Conflicto | F29: R3.1 C2 | G29: =AVERAGE('Cuestionario Eólica'!G34,'Cuestionario Eólica'!J34,'Cuestionario Eólica'!M34,'Cuestionario Eólica'!P34,'Cuestionario Eólica'!S34,'Cuestionario Eólica'!V34,'Cuestionario Eólica'!Y34,'Cuestionario Eólica'!AB34,'Cuestionario Eólica'!AE34,'Cuestionario Eólica'!AH34) -> 6.125 | H29: =AVERAGE('Cuestionario Eólica'!H34,'Cuestionario Eólica'!K34,'Cuestionario Eólica'!N34,'Cuestionario Eólica'!Q34,'Cuestionario Eólica'!T34,'Cuestionario Eólica'!W34,'Cuestionario Eólica'!Z34,'Cuestionario Eólica'!AC34,'Cuestionario Eólica'!AF34,'Cuestionario Eólica'!AI34) -> 3.125 | I29: 19.140625
E30: C3 Sanciones | F30: R3.1 C3 | G30: =AVERAGE('Cuestionario Eólica'!G35,'Cuestionario Eólica'!J35,'Cuestionario Eólica'!M35,'Cuestionario Eólica'!P35,'Cuestionario Eólica'!S35,'Cuestionario Eólica'!V35,'Cuestionario Eólica'!Y35,'Cuestionario Eólica'!AB35,'Cuestionario Eólica'!AE35,'Cuestionario Eólica'!AH35) -> 7 | H30: =AVERAGE('Cuestionario Eólica'!H35,'Cuestionario Eólica'!K35,'Cuestionario Eólica'!N35,'Cuestionario Eólica'!Q35,'Cuestionario Eólica'!T35,'Cuestionario Eólica'!W35,'Cuestionario Eólica'!Z35,'Cuestionario Eólica'!AC35,'Cuestionario Eólica'!AF35,'Cuestionario Eólica'!AI35) -> 2.857142857 | I30: 20
C31: R3.2 | D31: 3. Manejo de Residuos / 4. Salud | E31: C1 Retraso | F31: R3.2 C1 | G31: =AVERAGE('Cuestionario Eólica'!G36,'Cuestionario Eólica'!J36,'Cuestionario Eólica'!M36,'Cuestionario Eólica'!P36,'Cuestionario Eólica'!S36,'Cuestionario Eólica'!V36,'Cuestionario Eólica'!Y36,'Cuestionario Eólica'!AB36,'Cuestionario Eólica'!AE36,'Cuestionario Eólica'!AH36) -> 6.25 | H31: =AVERAGE('Cuestionario Eólica'!H36,'Cuestionario Eólica'!K36,'Cuestionario Eólica'!N36,'Cuestionario Eólica'!Q36,'Cuestionario Eólica'!T36,'Cuestionario Eólica'!W36,'Cuestionario Eólica'!Z36,'Cuestionario Eólica'!AC36,'Cuestionario Eólica'!AF36,'Cuestionario Eólica'!AI36) -> 3.875 | I31: 24.21875
E32: C2 Conflicto | F32: R3.2 C2 | G32: =AVERAGE('Cuestionario Eólica'!G37,'Cuestionario Eólica'!J37,'Cuestionario Eólica'!M37,'Cuestionario Eólica'!P37,'Cuestionario Eólica'!S37,'Cuestionario Eólica'!V37,'Cuestionario Eólica'!Y37,'Cuestionario Eólica'!AB37,'Cuestionario Eólica'!AE37,'Cuestionario Eólica'!AH37) -> 6.25 | H32: =AVERAGE('Cuestionario Eólica'!H37,'Cuestionario Eólica'!K37,'Cuestionario Eólica'!N37,'Cuestionario Eólica'!Q37,'Cuestionario Eólica'!T37,'Cuestionario Eólica'!W37,'Cuestionario Eólica'!Z37,'Cuestionario Eólica'!AC37,'Cuestionario Eólica'!AF37,'Cuestionario Eólica'!AI37) -> 3.625 | I32: 22.65625
E33: C3 Sanciones | F33: R3.2 C3 | G33: =AVERAGE('Cuestionario Eólica'!G38,'Cuestionario Eólica'!J38,'Cuestionario Eólica'!M38,'Cuestionario Eólica'!P38,'Cuestionario Eólica'!S38,'Cuestionario Eólica'!V38,'Cuestionario Eólica'!Y38,'Cuestionario Eólica'!AB38,'Cuestionario Eólica'!AE38,'Cuestionario Eólica'!AH38) -> 6.714285714 | H33: =AVERAGE('Cuestionario Eólica'!H38,'Cuestionario Eólica'!K38,'Cuestionario Eólica'!N38,'Cuestionario Eólica'!Q38,'Cuestionario Eólica'!T38,'Cuestionario Eólica'!W38,'Cuestionario Eólica'!Z38,'Cuestionario Eólica'!AC38,'Cuestionario Eólica'!AF38,'Cuestionario Eólica'!AI38) -> 2.714285714 | I33: 18.2244898
E34: C4 Cancelación | F34: R3.2 C4 | G34: =AVERAGE('Cuestionario Eólica'!G39,'Cuestionario Eólica'!J39,'Cuestionario Eólica'!M39,'Cuestionario Eólica'!P39,'Cuestionario Eólica'!S39,'Cuestionario Eólica'!V39,'Cuestionario Eólica'!Y39,'Cuestionario Eólica'!AB39,'Cuestionario Eólica'!AE39,'Cuestionario Eólica'!AH39) -> 9 | H34: =AVERAGE('Cuestionario Eólica'!H39,'Cuestionario Eólica'!K39,'Cuestionario Eólica'!N39,'Cuestionario Eólica'!Q39,'Cuestionario Eólica'!T39,'Cuestionario Eólica'!W39,'Cuestionario Eólica'!Z39,'Cuestionario Eólica'!AC39,'Cuestionario Eólica'!AF39,'Cuestionario Eólica'!AI39) -> 3.125 | I34: 28.125
B35: Dimensión Sociocultural | C35: R4.1 | D35: 1. Población Indígena | E35: C1 Retraso | F35: R4.1 C1 | G35: =AVERAGE('Cuestionario Eólica'!G40,'Cuestionario Eólica'!J40,'Cuestionario Eólica'!M40,'Cuestionario Eólica'!P40,'Cuestionario Eólica'!S40,'Cuestionario Eólica'!V40,'Cuestionario Eólica'!Y40,'Cuestionario Eólica'!AB40,'Cuestionario Eólica'!AE40,'Cuestionario Eólica'!AH40) -> 7.375 | H35: =AVERAGE('Cuestionario Eólica'!H40,'Cuestionario Eólica'!K40,'Cuestionario Eólica'!N40,'Cuestionario Eólica'!Q40,'Cuestionario Eólica'!T40,'Cuestionario Eólica'!W40,'Cuestionario Eólica'!Z40,'Cuestionario Eólica'!AC40,'Cuestionario Eólica'!AF40,'Cuestionario Eólica'!AI40) -> 4.625 | I35: 34.109375
E36: C2 Conflicto | F36: R4.1 C2 | G36: =AVERAGE('Cuestionario Eólica'!G41,'Cuestionario Eólica'!J41,'Cuestionario Eólica'!M41,'Cuestionario Eólica'!P41,'Cuestionario Eólica'!S41,'Cuestionario Eólica'!V41,'Cuestionario Eólica'!Y41,'Cuestionario Eólica'!AB41,'Cuestionario Eólica'!AE41,'Cuestionario Eólica'!AH41) -> 6.25 | H36: =AVERAGE('Cuestionario Eólica'!H41,'Cuestionario Eólica'!K41,'Cuestionario Eólica'!N41,'Cuestionario Eólica'!Q41,'Cuestionario Eólica'!T41,'Cuestionario Eólica'!W41,'Cuestionario Eólica'!Z41,'Cuestionario Eólica'!AC41,'Cuestionario Eólica'!AF41,'Cuestionario Eólica'!AI41) -> 5.125 | I36: 32.03125
E37: C3 Sanciones | F37: R4.1 C3 | G37: =AVERAGE('Cuestionario Eólica'!G42,'Cuestionario Eólica'!J42,'Cuestionario Eólica'!M42,'Cuestionario Eólica'!P42,'Cuestionario Eólica'!S42,'Cuestionario Eólica'!V42,'Cuestionario Eólica'!Y42,'Cuestionario Eólica'!AB42,'Cuestionario Eólica'!AE42,'Cuestionario Eólica'!AH42) -> 6.857142857 | H37: =AVERAGE('Cuestionario Eólica'!H42,'Cuestionario Eólica'!K42,'Cuestionario Eólica'!N42,'Cuestionario Eólica'!Q42,'Cuestionario Eólica'!T42,'Cuestionario Eólica'!W42,'Cuestionario Eólica'!Z42,'Cuestionario Eólica'!AC42,'Cuestionario Eólica'!AF42,'Cuestionario Eólica'!AI42) -> 2.428571429 | I37: 16.65306122
E38: C4 Cancelación | F38: R4.4 C4 | G38: =AVERAGE('Cuestionario Eólica'!G43,'Cuestionario Eólica'!J43,'Cuestionario Eólica'!M43,'Cuestionario Eólica'!P43,'Cuestionario Eólica'!S43,'Cuestionario Eólica'!V43,'Cuestionario Eólica'!Y43,'Cuestionario Eólica'!AB43,'Cuestionario Eólica'!AE43,'Cuestionario Eólica'!AH43) -> 8.75 | H38: =AVERAGE('Cuestionario Eólica'!H43,'Cuestionario Eólica'!K43,'Cuestionario Eólica'!N43,'Cuestionario Eólica'!Q43,'Cuestionario Eólica'!T43,'Cuestionario Eólica'!W43,'Cuestionario Eólica'!Z43,'Cuestionario Eólica'!AC43,'Cuestionario Eólica'!AF43,'Cuestionario Eólica'!AI43) -> 2.625 | I38: 22.96875
C39: R4.2 | D39: 2. Patrimonio cultural material / 3. Patrimonio Cultural Arqueológico / 4. Producción y reproducción del patrimonio cultural | E39: C1 Retraso | F39: R4.2 C1 | G39: =AVERAGE('Cuestionario Eólica'!G44,'Cuestionario Eólica'!J44,'Cuestionario Eólica'!M44,'Cuestionario Eólica'!P44,'Cuestionario Eólica'!S44,'Cuestionario Eólica'!V44,'Cuestionario Eólica'!Y44,'Cuestionario Eólica'!AB44,'Cuestionario Eólica'!AE44,'Cuestionario Eólica'!AH44) -> 6.625 | H39: =AVERAGE('Cuestionario Eólica'!H44,'Cuestionario Eólica'!K44,'Cuestionario Eólica'!N44,'Cuestionario Eólica'!Q44,'Cuestionario Eólica'!T44,'Cuestionario Eólica'!W44,'Cuestionario Eólica'!Z44,'Cuestionario Eólica'!AC44,'Cuestionario Eólica'!AF44,'Cuestionario Eólica'!AI44) -> 3.375 | I39: 22.359375
E40: C2 Conflicto | F40: R4.2 C2 | G40: =AVERAGE('Cuestionario Eólica'!G45,'Cuestionario Eólica'!J45,'Cuestionario Eólica'!M45,'Cuestionario Eólica'!P45,'Cuestionario Eólica'!S45,'Cuestionario Eólica'!V45,'Cuestionario Eólica'!Y45,'Cuestionario Eólica'!AB45,'Cuestionario Eólica'!AE45,'Cuestionario Eólica'!AH45) -> 5 | H40: =AVERAGE('Cuestionario Eólica'!H45,'Cuestionario Eólica'!K45,'Cuestionario Eólica'!N45,'Cuestionario Eólica'!Q45,'Cuestionario Eólica'!T45,'Cuestionario Eólica'!W45,'Cuestionario Eólica'!Z45,'Cuestionario Eólica'!AC45,'Cuestionario Eólica'!AF45,'Cuestionario Eólica'!AI45) -> 3.142857143 | I40: 15.71428571
E41: C3 Sanciones | F41: R4.2 C3 | G41: =AVERAGE('Cuestionario Eólica'!G46,'Cuestionario Eólica'!J46,'Cuestionario Eólica'!M46,'Cuestionario Eólica'!P46,'Cuestionario Eólica'!S46,'Cuestionario Eólica'!V46,'Cuestionario Eólica'!Y46,'Cuestionario Eólica'!AB46,'Cuestionario Eólica'!AE46,'Cuestionario Eólica'!AH46) -> 5.428571429 | H41: =AVERAGE('Cuestionario Eólica'!H46,'Cuestionario Eólica'!K46,'Cuestionario Eólica'!N46,'Cuestionario Eólica'!Q46,'Cuestionario Eólica'!T46,'Cuestionario Eólica'!W46,'Cuestionario Eólica'!Z46,'Cuestionario Eólica'!AC46,'Cuestionario Eólica'!AF46,'Cuestionario Eólica'!AI46) -> 2.428571429 | I41: 13.18367347
E42: C4 Cancelación | F42: R4.2 C4 | G42: =AVERAGE('Cuestionario Eólica'!G47,'Cuestionario Eólica'!J47,'Cuestionario Eólica'!M47,'Cuestionario Eólica'!P47,'Cuestionario Eólica'!S47,'Cuestionario Eólica'!V47,'Cuestionario Eólica'!Y47,'Cuestionario Eólica'!AB47,'Cuestionario Eólica'!AE47,'Cuestionario Eólica'!AH47) -> 7.75 | H42: =AVERAGE('Cuestionario Eólica'!H47,'Cuestionario Eólica'!K47,'Cuestionario Eólica'!N47,'Cuestionario Eólica'!Q47,'Cuestionario Eólica'!T47,'Cuestionario Eólica'!W47,'Cuestionario Eólica'!Z47,'Cuestionario Eólica'!AC47,'Cuestionario Eólica'!AF47,'Cuestionario Eólica'!AI47) -> 2.375 | I42: 18.40625
F43: TOTAL | G43: =SUM(G6:G42) -> 236.6071429 | H43: =SUM(H6:H42) -> 126.6785714 | I43: =SUM(I6:I42) -> 802.2716837

Sheet Matriz Gravedad Probabilidad FV
B2: Matriz de Gravedad y Probabilidad
G4: 0.5 | H4: 0.5
B5: Dimensión | C5: ID | D5: Impacto Genérico | E5: Riesgo Genérico Asociado | G5: Gravedad | H5: Frecuencia | I5: Ponderado Factores
B6: Dimensión Socioeconómica | C6: R1.1 | D6: 1. Producción de bienes y servicios en lugares específicos | E6: C1 Retraso | F6: R1.1 C1 | G6: =AVERAGE('Cuestionario FV'!G11,'Cuestionario FV'!J11,'Cuestionario FV'!M11,'Cuestionario FV'!P11,'Cuestionario FV'!S11,'Cuestionario FV'!V11,'Cuestionario FV'!Y11,'Cuestionario FV'!AB11,'Cuestionario FV'!AE11,'Cuestionario FV'!AH11) -> 7.714285714 | H6: =AVERAGE('Cuestionario FV'!H11,'Cuestionario FV'!K11,'Cuestionario FV'!N11,'Cuestionario FV'!Q11,'Cuestionario FV'!T11,'Cuestionario FV'!W11,'Cuestionario FV'!Z11,'Cuestionario FV'!AC11,'Cuestionario FV'!AF11,'Cuestionario FV'!AI11) -> 3.428571429 | I6: =H6*G6 -> 26.44897959
E7: C2 Conflicto | F7: R1.1 C2 | G7: =AVERAGE('Cuestionario FV'!G12,'Cuestionario FV'!J12,'Cuestionario FV'!M12,'Cuestionario FV'!P12,'Cuestionario FV'!S12,'Cuestionario FV'!V12,'Cuestionario FV'!Y12,'Cuestionario FV'!AB12,'Cuestionario FV'!AE12,'Cuestionario FV'!AH12) -> 5 | H7: =AVERAGE('Cuestionario FV'!H12,'Cuestionario FV'!K12,'Cuestionario FV'!N12,'Cuestionario FV'!Q12,'Cuestionario FV'!T12,'Cuestionario FV'!W12,'Cuestionario FV'!Z12,'Cuestionario FV'!AC12,'Cuestionario FV'!AF12,'Cuestionario FV'!AI12) -> 4 | I7: =H7*G7 -> 20
C8: R1.2 | D8: 2. Derrama económica por el usufructo y contraprestación de espacios o prestación de servicios. | E8: C1 Retraso | F8: R1.2 C1 | G8: =AVERAGE('Cuestionario FV'!G13,'Cuestionario FV'!J13,'Cuestionario FV'!M13,'Cuestionario FV'!P13,'Cuestionario FV'!S13,'Cuestionario FV'!V13,'Cuestionario FV'!Y13,'Cuestionario FV'!AB13,'Cuestionario FV'!AE13,'Cuestionario FV'!AH13) -> 7.142857143 | H8: =AVERAGE('Cuestionario FV'!H13,'Cuestionario FV'!K13,'Cuestionario FV'!N13,'Cuestionario FV'!Q13,'Cuestionario FV'!T13,'Cuestionario FV'!W13,'Cuestionario FV'!Z13,'Cuestionario FV'!AC13,'Cuestionario FV'!AF13,'Cuestionario FV'!AI13) -> 4.428571429 | I8: 31.63265306
E9: C2 Conflicto | F9: R1.2 C2 | G9: =AVERAGE('Cuestionario FV'!G14,'Cuestionario FV'!J14,'Cuestionario FV'!M14,'Cuestionario FV'!P14,'Cuestionario FV'!S14,'Cuestionario FV'!V14,'Cuestionario FV'!Y14,'Cuestionario FV'!AB14,'Cuestionario FV'!AE14,'Cuestionario FV'!AH14) -> 5.714285714 | H9: =AVERAGE('Cuestionario FV'!H14,'Cuestionario FV'!K14,'Cuestionario FV'!N14,'Cuestionario FV'!Q14,'Cuestionario FV'!T14,'Cuestionario FV'!W14,'Cuestionario FV'!Z14,'Cuestionario FV'!AC14,'Cuestionario FV'!AF14,'Cuestionario FV'!AI14) -> 5.142857143 | I9: 29.3877551
E10: C3 Sanciones | F10: R1.2 C3 | G10: =AVERAGE('Cuestionario FV'!G15,'Cuestionario FV'!J15,'Cuestionario FV'!M15,'Cuestionario FV'!P15,'Cuestionario FV'!S15,'Cuestionario FV'!V15,'Cuestionario FV'!Y15,'Cuestionario FV'!AB15,'Cuestionario FV'!AE15,'Cuestionario FV'!AH15) -> 6.166666667 | H10: =AVERAGE('Cuestionario FV'!H15,'Cuestionario FV'!K15,'Cuestionario FV'!N15,'Cuestionario FV'!Q15,'Cuestionario FV'!T15,'Cuestionario FV'!W15,'Cuestionario FV'!Z15,'Cuestionario FV'!AC15,'Cuestionario FV'!AF15,'Cuestionario FV'!AI15) -> 1.333333333 | I10: 8.222222222
E11: C4 Cancelación | F11: R1.2 C4 | G11: =AVERAGE('Cuestionario FV'!G16,'Cuestionario FV'!J16,'Cuestionario FV'!M16,'Cuestionario FV'!P16,'Cuestionario FV'!S16,'Cuestionario FV'!V16,'Cuestionario FV'!Y16,'Cuestionario FV'!AB16,'Cuestionario FV'!AE16,'Cuestionario FV'!AH16) -> 8.428571429 | H11: =AVERAGE('Cuestionario FV'!H16,'Cuestionario FV'!K16,'Cuestionario FV'!N16,'Cuestionario FV'!Q16,'Cuestionario FV'!T16,'Cuestionario FV'!W16,'Cuestionario FV'!Z16,'Cuestionario FV'!AC16,'Cuestionario FV'!AF16,'Cuestionario FV'!AI16) -> 1.714285714 | I11: 14.44897959
C12: R1.3 | D12: 3. Seguridad | E12: C1 Retraso | F12: R1.3 C1 | G12: =AVERAGE('Cuestionario FV'!G17,'Cuestionario FV'!J17,'Cuestionario FV'!M17,'Cuestionario FV'!P17,'Cuestionario FV'!S17,'Cuestionario FV'!V17,'Cuestionario FV'!Y17,'Cuestionario FV'!AB17,'Cuestionario FV'!AE17,'Cuestionario FV'!AH17) -> 5.857142857 | H12: =AVERAGE('Cuestionario FV'!H17,'Cuestionario FV'!K17,'Cuestionario FV'!N17,'Cuestionario FV'!Q17,'Cuestionario FV'!T17,'Cuestionario FV'!W17,'Cuestionario FV'!Z17,'Cuestionario FV'!AC17,'Cuestionario FV'!AF17,'Cuestionario FV'!AI17) -> 1.857142857 | I12: 10.87755102
E13: C2 Conflicto | F13: R1.3 C2 | G13: =AVERAGE('Cuestionario FV'!G18,'Cuestionario FV'!J18,'Cuestionario FV'!M18,'Cuestionario FV'!P18,'Cuestionario FV'!S18,'Cuestionario FV'!V18,'Cuestionario FV'!Y18,'Cuestionario FV'!AB18,'Cuestionario FV'!AE18,'Cuestionario FV'!AH18) -> 6.428571429 | H13: =AVERAGE('Cuestionario FV'!H18,'Cuestionario FV'!K18,'Cuestionario FV'!N18,'Cuestionario FV'!Q18,'Cuestionario FV'!T18,'Cuestionario FV'!W18,'Cuestionario FV'!Z18,'Cuestionario FV'!AC18,'Cuestionario FV'!AF18,'Cuestionario FV'!AI18) -> 2.857142857 | I13: 18.36734694
E14: C3 Sanciones | F14: R1.3 C3 | G14: =AVERAGE('Cuestionario FV'!G19,'Cuestionario FV'!J19,'Cuestionario FV'!M19,'Cuestionario FV'!P19,'Cuestionario FV'!S19,'Cuestionario FV'!V19,'Cuestionario FV'!Y19,'Cuestionario FV'!AB19,'Cuestionario FV'!AE19,'Cuestionario FV'!AH19) -> 6.833333333 | H14: =AVERAGE('Cuestionario FV'!H19,'Cuestionario FV'!K19,'Cuestionario FV'!N19,'Cuestionario FV'!Q19,'Cuestionario FV'!T19,'Cuestionario FV'!W19,'Cuestionario FV'!Z19,'Cuestionario FV'!AC19,'Cuestionario FV'!AF19,'Cuestionario FV'!AI19) -> 1.666666667 | I14: 11.38888889
C15: R1.4 | D15: 4. Entorno laboral | E15: C1 Retraso | F15: R1.4 C1 | G15: =AVERAGE('Cuestionario FV'!G20,'Cuestionario FV'!J20,'Cuestionario FV'!M20,'Cuestionario FV'!P20,'Cuestionario FV'!S20,'Cuestionario FV'!V20,'Cuestionario FV'!Y20,'Cuestionario FV'!AB20,'Cuestionario FV'!AE20,'Cuestionario FV'!AH20) -> 7 | H15: =AVERAGE('Cuestionario FV'!H20,'Cuestionario FV'!K20,'Cuestionario FV'!N20,'Cuestionario FV'!Q20,'Cuestionario FV'!T20,'Cuestionario FV'!W20,'Cuestionario FV'!Z20,'Cuestionario FV'!AC20,'Cuestionario FV'!AF20,'Cuestionario FV'!AI20) -> 2.571428571 | I15: 18
E16: C2 Conflicto | F16: R1.4 C2 | G16: =AVERAGE('Cuestionario FV'!G21,'Cuestionario FV'!J21,'Cuestionario FV'!M21,'Cuestionario FV'!P21,'Cuestionario FV'!S21,'Cuestionario FV'!V21,'Cuestionario FV'!Y21,'Cuestionario FV'!AB21,'Cuestionario FV'!AE21,'Cuestionario FV'!AH21) -> 6.428571429 | H16: =AVERAGE('Cuestionario FV'!H21,'Cuestionario FV'!K21,'Cuestionario FV'!N21,'Cuestionario FV'!Q21,'Cuestionario FV'!T21,'Cuestionario FV'!W21,'Cuestionario FV'!Z21,'Cuestionario FV'!AC21,'Cuestionario FV'!AF21,'Cuestionario FV'!AI21) -> 2.285714286 | I16: 14.69387755
E17: C3 Sanciones | F17: R1.4 C3 | G17: =AVERAGE('Cuestionario FV'!G22,'Cuestionario FV'!J22,'Cuestionario FV'!M22,'Cuestionario FV'!P22,'Cuestionario FV'!S22,'Cuestionario FV'!V22,'Cuestionario FV'!Y22,'Cuestionario FV'!AB22,'Cuestionario FV'!AE22,'Cuestionario FV'!AH22) -> 6.666666667 | H17: =AVERAGE('Cuestionario FV'!H22,'Cuestionario FV'!K22,'Cuestionario FV'!N22,'Cuestionario FV'!Q22,'Cuestionario FV'!T22,'Cuestionario FV'!W22,'Cuestionario FV'!Z22,'Cuestionario FV'!AC22,'Cuestionario FV'!AF22,'Cuestionario FV'!AI22) -> 1.166666667 | I17: 7.777777778
C18: R1.5 | D18: 5. Inversión Social | E18: C1 Retraso | F18: R1.4 C1 | G18: =AVERAGE('Cuestionario FV'!G23,'Cuestionario FV'!J23,'Cuestionario FV'!M23,'Cuestionario FV'!P23,'Cuestionario FV'!S23,'Cuestionario FV'!V23,'Cuestionario FV'!Y23,'Cuestionario FV'!AB23,'Cuestionario FV'!AE23,'Cuestionario FV'!AH23) -> 5.571428571 | H18: =AVERAGE('Cuestionario FV'!H23,'Cuestionario FV'!K23,'Cuestionario FV'!N23,'Cuestionario FV'!Q23,'Cuestionario FV'!T23,'Cuestionario FV'!W23,'Cuestionario FV'!Z23,'Cuestionario FV'!AC23,'Cuestionario FV'!AF23,'Cuestionario FV'!AI23) -> 2.714285714 | I18: 15.12244898
E19: C2 Conflicto | F19: R1.4 C2 | G19: =AVERAGE('Cuestionario FV'!G24,'Cuestionario FV'!J24,'Cuestionario FV'!M24,'Cuestionario FV'!P24,'Cuestionario FV'!S24,'Cuestionario FV'!V24,'Cuestionario FV'!Y24,'Cuestionario FV'!AB24,'Cuestionario FV'!AE24,'Cuestionario FV'!AH24) -> 5.142857143 | H19: =AVERAGE('Cuestionario FV'!H24,'Cuestionario FV'!K24,'Cuestionario FV'!N24,'Cuestionario FV'!Q24,'Cuestionario FV'!T24,'Cuestionario FV'!W24,'Cuestionario FV'!Z24,'Cuestionario FV'!AC24,'Cuestionario FV'!AF24,'Cuestionario FV'!AI24) -> 2.714285714 | I19: 13.95918367
B20: Dimensión Sociopolítica | C20: R2.1 | D20: 1. Mecanismos de Participación / 2. Representatividad / 3. Uso del territorio y libertad para decidir sobre él. | E20: C1 Retraso | F20: R2.1 C1 | G20: =AVERAGE('Cuestionario FV'!G25,'Cuestionario FV'!J25,'Cuestionario FV'!M25,'Cuestionario FV'!P25,'Cuestionario FV'!S25,'Cuestionario FV'!V25,'Cuestionario FV'!Y25,'Cuestionario FV'!AB25,'Cuestionario FV'!AE25,'Cuestionario FV'!AH25) -> 6.428571429 | H20: =AVERAGE('Cuestionario FV'!H25,'Cuestionario FV'!K25,'Cuestionario FV'!N25,'Cuestionario FV'!Q25,'Cuestionario FV'!T25,'Cuestionario FV'!W25,'Cuestionario FV'!Z25,'Cuestionario FV'!AC25,'Cuestionario FV'!AF25,'Cuestionario FV'!AI25) -> 3.714285714 | I20: 23.87755102
E21: C2 Conflicto | F21: R2.1 C2 | G21: =AVERAGE('Cuestionario FV'!G26,'Cuestionario FV'!J26,'Cuestionario FV'!M26,'Cuestionario FV'!P26,'Cuestionario FV'!S26,'Cuestionario FV'!V26,'Cuestionario FV'!Y26,'Cuestionario FV'!AB26,'Cuestionario FV'!AE26,'Cuestionario FV'!AH26) -> 4.857142857 | H21: =AVERAGE('Cuestionario FV'!H26,'Cuestionario FV'!K26,'Cuestionario FV'!N26,'Cuestionario FV'!Q26,'Cuestionario FV'!T26,'Cuestionario FV'!W26,'Cuestionario FV'!Z26,'Cuestionario FV'!AC26,'Cuestionario FV'!AF26,'Cuestionario FV'!AI26) -> 3.142857143 | I21: 15.26530612
E22: C3 Sanciones | F22: R2.1 C3 | G22: =AVERAGE('Cuestionario FV'!G27,'Cuestionario FV'!J27,'Cuestionario FV'!M27,'Cuestionario FV'!P27,'Cuestionario FV'!S27,'Cuestionario FV'!V27,'Cuestionario FV'!Y27,'Cuestionario FV'!AB27,'Cuestionario FV'!AE27,'Cuestionario FV'!AH27) -> 5.166666667 | H22: =AVERAGE('Cuestionario FV'!H27,'Cuestionario FV'!K27,'Cuestionario FV'!N27,'Cuestionario FV'!Q27,'Cuestionario FV'!T27,'Cuestionario FV'!W27,'Cuestionario FV'!Z27,'Cuestionario FV'!AC27,'Cuestionario FV'!AF27,'Cuestionario FV'!AI27) -> 1.333333333 | I22: 6.888888889
E23: C4 Cancelación | F23: R2.1 C4 | G23: =AVERAGE('Cuestionario FV'!G28,'Cuestionario FV'!J28,'Cuestionario FV'!M28,'Cuestionario FV'!P28,'Cuestionario FV'!S28,'Cuestionario FV'!V28,'Cuestionario FV'!Y28,'Cuestionario FV'!AB28,'Cuestionario FV'!AE28,'Cuestionario FV'!AH28) -> 7.714285714 | H23: =AVERAGE('Cuestionario FV'!H28,'Cuestionario FV'!K28,'Cuestionario FV'!N28,'Cuestionario FV'!Q28,'Cuestionario FV'!T28,'Cuestionario FV'!W28,'Cuestionario FV'!Z28,'Cuestionario FV'!AC28,'Cuestionario FV'!AF28,'Cuestionario FV'!AI28) -> 1.428571429 | I23: 11.02040816
C24: R2.2 | D24: 4. Formas de organización: Ejidos, comunidades agrarias, pueblos y comunidades indígenas y personas como propietarias del territorio. | E24: C1 Retraso | F24: R2.2 C1 | G24: =AVERAGE('Cuestionario FV'!G29,'Cuestionario FV'!J29,'Cuestionario FV'!M29,'Cuestionario FV'!P29,'Cuestionario FV'!S29,'Cuestionario FV'!V29,'Cuestionario FV'!Y29,'Cuestionario FV'!AB29,'Cuestionario FV'!AE29,'Cuestionario FV'!AH29) -> 7 | H24: =AVERAGE('Cuestionario FV'!H29,'Cuestionario FV'!K29,'Cuestionario FV'!N29,'Cuestionario FV'!Q29,'Cuestionario FV'!T29,'Cuestionario FV'!W29,'Cuestionario FV'!Z29,'Cuestionario FV'!AC29,'Cuestionario FV'!AF29,'Cuestionario FV'!AI29) -> 3.428571429 | I24: 24
E25: C2 Conflicto | F25: R2.2 C2 | G25: =AVERAGE('Cuestionario FV'!G30,'Cuestionario FV'!J30,'Cuestionario FV'!M30,'Cuestionario FV'!P30,'Cuestionario FV'!S30,'Cuestionario FV'!V30,'Cuestionario FV'!Y30,'Cuestionario FV'!AB30,'Cuestionario FV'!AE30,'Cuestionario FV'!AH30) -> 6 | H25: =AVERAGE('Cuestionario FV'!H30,'Cuestionario FV'!K30,'Cuestionario FV'!N30,'Cuestionario FV'!Q30,'Cuestionario FV'!T30,'Cuestionario FV'!W30,'Cuestionario FV'!Z30,'Cuestionario FV'!AC30,'Cuestionario FV'!AF30,'Cuestionario FV'!AI30) -> 3.142857143 | I25: 18.85714286
E26: C3 Sanciones | F26: R2.2 C3 | G26: =AVERAGE('Cuestionario FV'!G31,'Cuestionario FV'!J31,'Cuestionario FV'!M31,'Cuestionario FV'!P31,'Cuestionario FV'!S31,'Cuestionario FV'!V31,'Cuestionario FV'!Y31,'Cuestionario FV'!AB31,'Cuestionario FV'!AE31,'Cuestionario FV'!AH31) -> 5.166666667 | H26: =AVERAGE('Cuestionario FV'!H31,'Cuestionario FV'!K31,'Cuestionario FV'!N31,'Cuestionario FV'!Q31,'Cuestionario FV'!T31,'Cuestionario FV'!W31,'Cuestionario FV'!Z31,'Cuestionario FV'!AC31,'Cuestionario FV'!AF31,'Cuestionario FV'!AI31) -> 1.333333333 | I26: 6.888888889
E27: C4 Cancelación | F27: R2.2 C4 | G27: =AVERAGE('Cuestionario FV'!G32,'Cuestionario FV'!J32,'Cuestionario FV'!M32,'Cuestionario FV'!P32,'Cuestionario FV'!S32,'Cuestionario FV'!V32,'Cuestionario FV'!Y32,'Cuestionario FV'!AB32,'Cuestionario FV'!AE32,'Cuestionario FV'!AH32) -> 7.571428571 | H27: =AVERAGE('Cuestionario FV'!H32,'Cuestionario FV'!K32,'Cuestionario FV'!N32,'Cuestionario FV'!Q32,'Cuestionario FV'!T32,'Cuestionario FV'!W32,'Cuestionario FV'!Z32,'Cuestionario FV'!AC32,'Cuestionario FV'!AF32,'Cuestionario FV'!AI32) -> 1.285714286 | I27: 9.734693878
B28: Dimensión Socioambiental | C28: R3.1 | D28: 1. Uso y aprovechamiento de los recursos naturales / 2. Regulación de los recursos naturales | E28: C1 Retraso | F28: R3.1 C1 | G28: =AVERAGE('Cuestionario FV'!G33,'Cuestionario FV'!J33,'Cuestionario FV'!M33,'Cuestionario FV'!P33,'Cuestionario FV'!S33,'Cuestionario FV'!V33,'Cuestionario FV'!Y33,'Cuestionario FV'!AB33,'Cuestionario FV'!AE33,'Cuestionario FV'!AH33) -> 6.857142857 | H28: =AVERAGE('Cuestionario FV'!H33,'Cuestionario FV'!K33,'Cuestionario FV'!N33,'Cuestionario FV'!Q33,'Cuestionario FV'!T33,'Cuestionario FV'!W33,'Cuestionario FV'!Z33,'Cuestionario FV'!AC33,'Cuestionario FV'!AF33,'Cuestionario FV'!AI33) -> 2.285714286 | I28: 15.67346939
E29: C2 Conflicto | F29: R3.1 C2 | G29: =AVERAGE('Cuestionario FV'!G34,'Cuestionario FV'!J34,'Cuestionario FV'!M34,'Cuestionario FV'!P34,'Cuestionario FV'!S34,'Cuestionario FV'!V34,'Cuestionario FV'!Y34,'Cuestionario FV'!AB34,'Cuestionario FV'!AE34,'Cuestionario FV'!AH34) -> 6.428571429 | H29: =AVERAGE('Cuestionario FV'!H34,'Cuestionario FV'!K34,'Cuestionario FV'!N34,'Cuestionario FV'!Q34,'Cuestionario FV'!T34,'Cuestionario FV'!W34,'Cuestionario FV'!Z34,'Cuestionario FV'!AC34,'Cuestionario FV'!AF34,'Cuestionario FV'!AI34) -> 2.142857143 | I29: 13.7755102
E30: C3 Sanciones | F30: R3.1 C3 | G30: =AVERAGE('Cuestionario FV'!G35,'Cuestionario FV'!J35,'Cuestionario FV'!M35,'Cuestionario FV'!P35,'Cuestionario FV'!S35,'Cuestionario FV'!V35,'Cuestionario FV'!Y35,'Cuestionario FV'!AB35,'Cuestionario FV'!AE35,'Cuestionario FV'!AH35) -> 7.166666667 | H30: =AVERAGE('Cuestionario FV'!H35,'Cuestionario FV'!K35,'Cuestionario FV'!N35,'Cuestionario FV'!Q35,'Cuestionario FV'!T35,'Cuestionario FV'!W35,'Cuestionario FV'!Z35,'Cuestionario FV'!AC35,'Cuestionario FV'!AF35,'Cuestionario FV'!AI35) -> 1.666666667 | I30: 11.94444444
C31: R3.2 | D31: 3. Manejo de Residuos / 4. Salud | E31: C1 Retraso | F31: R3.2 C1 | G31: =AVERAGE('Cuestionario FV'!G36,'Cuestionario FV'!J36,'Cuestionario FV'!M36,'Cuestionario FV'!P36,'Cuestionario FV'!S36,'Cuestionario FV'!V36,'Cuestionario FV'!Y36,'Cuestionario FV'!AB36,'Cuestionario FV'!AE36,'Cuestionario FV'!AH36) -> 6.571428571 | H31: =AVERAGE('Cuestionario FV'!H36,'Cuestionario FV'!K36,'Cuestionario FV'!N36,'Cuestionario FV'!Q36,'Cuestionario FV'!T36,'Cuestionario FV'!W36,'Cuestionario FV'!Z36,'Cuestionario FV'!AC36,'Cuestionario FV'!AF36,'Cuestionario FV'!AI36) -> 3 | I31: 19.71428571
E32: C2 Conflicto | F32: R3.2 C2 | G32: =AVERAGE('Cuestionario FV'!G37,'Cuestionario FV'!J37,'Cuestionario FV'!M37,'Cuestionario FV'!P37,'Cuestionario FV'!S37,'Cuestionario FV'!V37,'Cuestionario FV'!Y37,'Cuestionario FV'!AB37,'Cuestionario FV'!AE37,'Cuestionario FV'!AH37) -> 6.571428571 | H32: =AVERAGE('Cuestionario FV'!H37,'Cuestionario FV'!K37,'Cuestionario FV'!N37,'Cuestionario FV'!Q37,'Cuestionario FV'!T37,'Cuestionario FV'!W37,'Cuestionario FV'!Z37,'Cuestionario FV'!AC37,'Cuestionario FV'!AF37,'Cuestionario FV'!AI37) -> 2.714285714 | I32: 17.83673469
E33: C3 Sanciones | F33: R3.2 C3 | G33: =AVERAGE('Cuestionario FV'!G38,'Cuestionario FV'!J38,'Cuestionario FV'!M38,'Cuestionario FV'!P38,'Cuestionario FV'!S38,'Cuestionario FV'!V38,'Cuestionario FV'!Y38,'Cuestionario FV'!AB38,'Cuestionario FV'!AE38,'Cuestionario FV'!AH38) -> 7 | H33: =AVERAGE('Cuestionario FV'!H38,'Cuestionario FV'!K38,'Cuestionario FV'!N38,'Cuestionario FV'!Q38,'Cuestionario FV'!T38,'Cuestionario FV'!W38,'Cuestionario FV'!Z38,'Cuestionario FV'!AC38,'Cuestionario FV'!AF38,'Cuestionario FV'!AI38) -> 1.5 | I33: 10.5
E34: C4 Cancelación | F34: R3.2 C4 | G34: =AVERAGE('Cuestionario FV'!G39,'Cuestionario FV'!J39,'Cuestionario FV'!M39,'Cuestionario FV'!P39,'Cuestionario FV'!S39,'Cuestionario FV'!V39,'Cuestionario FV'!Y39,'Cuestionario FV'!AB39,'Cuestionario FV'!AE39,'Cuestionario FV'!AH39) -> 8.857142857 | H34: =AVERAGE('Cuestionario FV'!H39,'Cuestionario FV'!K39,'Cuestionario FV'!N39,'Cuestionario FV'!Q39,'Cuestionario FV'!T39,'Cuestionario FV'!W39,'Cuestionario FV'!Z39,'Cuestionario FV'!AC39,'Cuestionario FV'!AF39,'Cuestionario FV'!AI39) -> 2.142857143 | I34: 18.97959184
B35: Dimensión Sociocultural | C35: R4.1 | D35: 1. Población Indígena | E35: C1 Retraso | F35: R4.1 C1 | G35: =AVERAGE('Cuestionario FV'!G40,'Cuestionario FV'!J40,'Cuestionario FV'!M40,'Cuestionario FV'!P40,'Cuestionario FV'!S40,'Cuestionario FV'!V40,'Cuestionario FV'!Y40,'Cuestionario FV'!AB40,'Cuestionario FV'!AE40,'Cuestionario FV'!AH40) -> 7.714285714 | H35: =AVERAGE('Cuestionario FV'!H40,'Cuestionario FV'!K40,'Cuestionario FV'!N40,'Cuestionario FV'!Q40,'Cuestionario FV'!T40,'Cuestionario FV'!W40,'Cuestionario FV'!Z40,'Cuestionario FV'!AC40,'Cuestionario FV'!AF40,'Cuestionario FV'!AI40) -> 3.857142857 | I35: 29.75510204
E36: C2 Conflicto | F36: R4.1 C2 | G36: =AVERAGE('Cuestionario FV'!G41,'Cuestionario FV'!J41,'Cuestionario FV'!M41,'Cuestionario FV'!P41,'Cuestionario FV'!S41,'Cuestionario FV'!V41,'Cuestionario FV'!Y41,'Cuestionario FV'!AB41,'Cuestionario FV'!AE41,'Cuestionario FV'!AH41) -> 6.571428571 | H36: =AVERAGE('Cuestionario FV'!H41,'Cuestionario FV'!K41,'Cuestionario FV'!N41,'Cuestionario FV'!Q41,'Cuestionario FV'!T41,'Cuestionario FV'!W41,'Cuestionario FV'!Z41,'Cuestionario FV'!AC41,'Cuestionario FV'!AF41,'Cuestionario FV'!AI41) -> 4.428571429 | I36: 29.10204082
E37: C3 Sanciones | F37: R4.1 C3 | G37: =AVERAGE('Cuestionario FV'!G42,'Cuestionario FV'!J42,'Cuestionario FV'!M42,'Cuestionario FV'!P42,'Cuestionario FV'!S42,'Cuestionario FV'!V42,'Cuestionario FV'!Y42,'Cuestionario FV'!AB42,'Cuestionario FV'!AE42,'Cuestionario FV'!AH42) -> 7.166666667 | H37: =AVERAGE('Cuestionario FV'!H42,'Cuestionario FV'!K42,'Cuestionario FV'!N42,'Cuestionario FV'!Q42,'Cuestionario FV'!T42,'Cuestionario FV'!W42,'Cuestionario FV'!Z42,'Cuestionario FV'!AC42,'Cuestionario FV'!AF42,'Cuestionario FV'!AI42) -> 1.166666667 | I37: 8.361111111
E38: C4 Cancelación | F38: R4.4 C4 | G38: =AVERAGE('Cuestionario FV'!G43,'Cuestionario FV'!J43,'Cuestionario FV'!M43,'Cuestionario FV'!P43,'Cuestionario FV'!S43,'Cuestionario FV'!V43,'Cuestionario FV'!Y43,'Cuestionario FV'!AB43,'Cuestionario FV'!AE43,'Cuestionario FV'!AH43) -> 8.571428571 | H38: =AVERAGE('Cuestionario FV'!H43,'Cuestionario FV'!K43,'Cuestionario FV'!N43,'Cuestionario FV'!Q43,'Cuestionario FV'!T43,'Cuestionario FV'!W43,'Cuestionario FV'!Z43,'Cuestionario FV'!AC43,'Cuestionario FV'!AF43,'Cuestionario FV'!AI43) -> 1.571428571 | I38: 13.46938776
C39: R4.2 | D39: 2. Patrimonio cultural material / 3. Patrimonio Cultural Arqueológico / 4. Producción y reproducción del patrimonio cultural | E39: C1 Retraso | F39: R4.2 C1 | G39: =AVERAGE('Cuestionario FV'!G44,'Cuestionario FV'!J44,'Cuestionario FV'!M44,'Cuestionario FV'!P44,'Cuestionario FV'!S44,'Cuestionario FV'!V44,'Cuestionario FV'!Y44,'Cuestionario FV'!AB44,'Cuestionario FV'!AE44,'Cuestionario FV'!AH44) -> 6.571428571 | H39: =AVERAGE('Cuestionario FV'!H44,'Cuestionario FV'!K44,'Cuestionario FV'!N44,'Cuestionario FV'!Q44,'Cuestionario FV'!T44,'Cuestionario FV'!W44,'Cuestionario FV'!Z44,'Cuestionario FV'!AC44,'Cuestionario FV'!AF44,'Cuestionario FV'!AI44) -> 2.428571429 | I39: 15.95918367
E40: C2 Conflicto | F40: R4.2 C2 | G40: =AVERAGE('Cuestionario FV'!G45,'Cuestionario FV'!J45,'Cuestionario FV'!M45,'Cuestionario FV'!P45,'Cuestionario FV'!S45,'Cuestionario FV'!V45,'Cuestionario FV'!Y45,'Cuestionario FV'!AB45,'Cuestionario FV'!AE45,'Cuestionario FV'!AH45) -> 5.333333333 | H40: =AVERAGE('Cuestionario FV'!H45,'Cuestionario FV'!K45,'Cuestionario FV'!N45,'Cuestionario FV'!Q45,'Cuestionario FV'!T45,'Cuestionario FV'!W45,'Cuestionario FV'!Z45,'Cuestionario FV'!AC45,'Cuestionario FV'!AF45,'Cuestionario FV'!AI45) -> 2 | I40: 10.66666667
E41: C3 Sanciones | F41: R4.2 C3 | G41: =AVERAGE('Cuestionario FV'!G46,'Cuestionario FV'!J46,'Cuestionario FV'!M46,'Cuestionario FV'!P46,'Cuestionario FV'!S46,'Cuestionario FV'!V46,'Cuestionario FV'!Y46,'Cuestionario FV'!AB46,'Cuestionario FV'!AE46,'Cuestionario FV'!AH46) -> 5.833333333 | H41: =AVERAGE('Cuestionario FV'!H46,'Cuestionario FV'!K46,'Cuestionario FV'!N46,'Cuestionario FV'!Q46,'Cuestionario FV'!T46,'Cuestionario FV'!W46,'Cuestionario FV'!Z46,'Cuestionario FV'!AC46,'Cuestionario FV'!AF46,'Cuestionario FV'!AI46) -> 1.166666667 | I41: 6.805555556
E42: C4 Cancelación | F42: R4.2 C4 | G42: =AVERAGE('Cuestionario FV'!G47,'Cuestionario FV'!J47,'Cuestionario FV'!M47,'Cuestionario FV'!P47,'Cuestionario FV'!S47,'Cuestionario FV'!V47,'Cuestionario FV'!Y47,'Cuestionario FV'!AB47,'Cuestionario FV'!AE47,'Cuestionario FV'!AH47) -> 7.714285714 | H42: =AVERAGE('Cuestionario FV'!H47,'Cuestionario FV'!K47,'Cuestionario FV'!N47,'Cuestionario FV'!Q47,'Cuestionario FV'!T47,'Cuestionario FV'!W47,'Cuestionario FV'!Z47,'Cuestionario FV'!AC47,'Cuestionario FV'!AF47,'Cuestionario FV'!AI47) -> 1.285714286 | I42: 9.918367347
F43: TOTAL | G43: =SUM(G6:G42) -> 244.9285714 | H43: =SUM(H6:H42) -> 90.04761905 | I43: =SUM(I6:I42) -> 589.3219955

Sheet DESVEST Cuestionario Probabilid (hidden)
B2: Cuestionario para cuantificación de Riesgos Ambientales y Sociales en Proyectos Energéticos
B4: Empresa: | D4: MULTIPLES EMPRESAS
B6: PASO 1: Califica en una escala del 1 - 10 donde 10 es MUY SEVERO y 1 es POCO SEVERO los riesgos derivados de los impactos Sociales y Ambientales definidos a continuación:
B7: PASO 2: Califica en una escala del 1 - 10 donde 10 es MUY PROBABLE y 1 es POCO PROBABLE los riesgos derivados de los impactos Sociales y Ambientales definidos a continuación:
B9: Naturaleza | C9: ID | D9: IMPACTO | E9: Definición del Impacto | F9: Posible Riesgo | G9: Probabilidad | H9: Probabilidad | I9: Probabilidad | J9: Probabilidad
B10: Riesgos Socioeconómicos | C10: R1.1 | D10: 1. Producción de bienes y servicios en lugares específicos | E10: Riesgos derivados de la modificación del área | F10: C1 Retraso | G10: 2 | H10: 3 | I10: 5 | J10: 7 | L10: =STDEV(G10:J10) -> 2.217355783
F11: C2 Conflicto | G11: 2 | H11: 6 | J11: 8 | L11: =STDEV(G11:J11) -> 3.055050463
C12: R1.2 | D12: 2. Derrama económica por el usufructo y contraprestación de espacios. | E12: Riesgos derivados de renta o compra-venta del área dónde se desarrollará el proyecto | F12: C1 Retraso | G12: 8 | H12: 3 | I12: 3 | J12: 3 | L12: 2.5
F13: C2 Conflicto | G13: 2 | H13: 4 | I13: 3 | J13: 6 | L13: 1.707825128
F14: C3 Sanciones | G14: 0 | H14: 2 | J14: 1 | L14: 1
F15: C4 Cancelación | G15: 2 | H15: 2 | I15: 2 | J15: 1 | L15: 0.5
C16: R1.3 | D16: 3. Seguridad | E16: Riesgos derivados de las condiciones de seguridad del personal involucrado en el proyecto y la población cercana | F16: C1 Retraso | G16: 1 | H16: 1 | I16: 1 | J16: 2 | L16: 0.5
F17: C2 Conflicto | G17: 1 | H17: 4 | I17: 5 | J17: 3 | L17: 1.707825128
F18: C3 Sanciones | G18: 5 | H18: 2 | J18: 1 | L18: 2.081665999
C19: R1.4 | D19: 4. Entorno laboral | E19: Riesgos derivados de las condiciones Laborales del personal involucrado en el proyecto | F19: C1 Retraso | G19: 3 | H19: 1 | I19: 4 | J19: 1 | L19: 1.5
F20: C2 Conflicto | G20: 0 | H20: 2 | I20: 5 | J20: 3 | L20: 2.081665999
F21: C3 Sanciones | G21: 0 | H21: 2 | J21: 1 | L21: 1
C22: R1.5 | D22: 5. Inversión Social | E22: Riesgos derivados de la negación de inversión social en la población con la que interactúa. | F22: C1 Retraso | G22: 3 | H22: 2 | I22: 2 | J22: 3 | L22: 0.5773502692
F23: C2 Conflicto | G23: 3 | H23: 2 | I23: 6 | J23: 2 | L23: 1.892969449
B24: Riesgos Sociopolíticos | C24: R2.1 | D24: 1. Mecanismos de Participación / 2. Representatividad / 3. Uso del territorio y libertad para decidir sobre él. | E24: Riesgo derivado de los procedimientos que permiten a los individuos de una sociedad involucrase en las decisiones relacionadas con el desarrollo del proyecto. | F24: C1 Retraso | G24: 8 | H24: 3 | I24: 5 | J24: 3 | L24: 2.362907813
F25: C2 Conflicto | G25: 4 | H25: 1 | I25: 6 | J25: 4 | L25: 2.061552813
F26: C3 Sanciones | G26: 0 | H26: 3 | J26: 1 | L26: 1.527525232
F27: C4 Cancelación | G27: 0 | H27: 2 | I27: 3 | J27: 1 | L27: 1.290994449
C28: R2.2 | D28: 4. Formas de organización: Ejidos, comunidades agrarias, pueblos y comunidades indígenas y personas como propietarias del territorio. | E28: Riesgo derivado de ignorar las formas de organización local de: ejidos, comunidades agrarias, pueblos y comunidades indígenas. | F28: C1 Retraso | G28: 5 | H28: 3 | I28: 4 | J28: 5 | L28: 0.9574271078
F29: C2 Conflicto | G29: 5 | H29: 3 | I29: 6 | J29: 1 | L29: 2.217355783
F30: C3 Sanciones | G30: 1 | H30: 3 | J30: 1 | L30: 1.154700538
F31: C4 Cancelación | G31: 0 | H31: 2 | I31: 3 | J31: 1 | L31: 1.290994449
B32: Socioambiental | C32: R3.1 | D32: 1. Uso y aprovechamiento de los recursos naturales / 2. Regulación de los recursos naturales | E32: Riesgo derivado del manejo sustentable y eficiente de los recursos existentes. | F32: C1 Retraso | G32: 0 | H32: 3 | I32: 4 | J32: 1 | L32: 1.825741858
F33: C2 Conflicto | G33: 0 | H33: 4 | I33: 3 | J33: 1 | L33: 1.825741858
F34: C3 Sanciones | G34: 2 | H34: 2 | J34: 1 | L34: 0.5773502692
C35: R3.2 | D35: 3. Manejo de Residuos / 4. Salud | E35: Riesgo derivado de problemas de salud por incorrecto manejo de residuos. | F35: C1 Retraso | G35: 10 | H35: 3 | I35: 2 | J35: 1 | L35: 4.082482905
F36: C2 Conflicto | G36: 10 | H36: 3 | I36: 2 | J36: 1 | L36: 4.082482905
F37: C3 Sanciones | G37: 2 | H37: 2 | J37: 1 | L37: 0.5773502692
F38: C4 Cancelación | G38: 2 | H38: 3 | I38: 1 | J38: 1 | L38: 0.9574271078
B39: Sociocultural | C39: R4.1 | D39: 1. Población Indígena | E39: Riesgo por no realizar correctamente una consulta indígena. | F39: C1 Retraso | G39: 8 | H39: 2 | I39: 5 | J39: 3 | L39: 2.645751311
F40: C2 Conflicto | G40: 7 | H40: 3 | I40: 6 | J40: 2 | L40: 2.380476143
F41: C3 Sanciones | G41: 0 | H41: 3 | J41: 1 | L41: 1.527525232
F42: C4 Cancelación | G42: 3 | H42: 3 | I42: 1 | J42: 1 | L42: 1.154700538
C43: R4.2 | D43: 2. Patrimonio cultural material / 3. Patrimonio Cultural Arqueológico / 4. Producción y reproducción del patrimonio cultural | E43: Riesgo derivado de no identificar ni implementar mecanismos de resguardo y conservación al patrimonio cultural que tiene contacto con el proyecto. | F43: C1 Retraso | G43: 5 | H43: 1 | I43: 4 | J43: 5 | L43: 1.892969449
F44: C2 Conflicto | G44: 1 | H44: 4 | J44: 2 | L44: 1.527525232
F45: C3 Sanciones | G45: 0 | H45: 3 | J45: 1 | L45: 1.527525232
F46: C4 Cancelación | G46: 2 | H46: 2 | I46: 3 | J46: 1 | L46: 0.8164965809
L48: =AVERAGE(L10:L46) -> 1.691532792

Sheet DESVEST Cuestionario Gravedad (hidden)
B2: Cuestionario para cuantificación de Riesgos Ambientales y Sociales en Proyectos Energéticos
B4: Empresa: | D4: MULTIPLES EMPRESAS
B6: PASO 1: Califica en una escala del 1 - 10 donde 10 es MUY SEVERO y 1 es POCO SEVERO los riesgos derivados de los impactos Sociales y Ambientales definidos a continuación:
B7: PASO 2: Califica en una escala del 1 - 10 donde 10 es MUY PROBABLE y 1 es POCO PROBABLE los riesgos derivados de los impactos Sociales y Ambientales definidos a continuación:
G8: 1 | H8: 2 | I8: 3 | J8: 4
B9: Naturaleza | C9: ID | D9: IMPACTO | E9: Definición del Impacto | F9: Posible Riesgo | G9: Gravedad | H9: Gravedad | I9: Gravedad | J9: Gravedad
B10: Riesgos Socioeconómicos | C10: R1.1 | D10: 1. Producción de bienes y servicios en lugares específicos | E10: Riesgos derivados de la modificación del área | F10: C1 Retraso | G10: 10 | H10: 8 | I10: 5 | J10: 10 | L10: =STDEV(G10:J10) -> 2.362907813
F11: C2 Conflicto | G11: 5 | H11: 7 | J11: 4 | L11: =STDEV(G11:J11) -> 1.527525232
C12: R1.2 | D12: 2. Derrama económica por el usufructo y contraprestación de espacios. | E12: Riesgos derivados de renta o compra-venta del área dónde se desarrollará el proyecto | F12: C1 Retraso | G12: 5 | H12: 7 | I12: 8 | J12: 4 | L12: =STDEV(G12:J12) -> 1.825741858
F13: C2 Conflicto | G13: 4 | H13: 7 | I13: 7 | J13: 4 | L13: 1.732050808
F14: C3 Sanciones | G14: 6 | H14: 9 | J14: 8 | L14: 1.527525232
F15: C4 Cancelación | G15: 9 | H15: 9 | I15: 10 | J15: 10 | L15: 0.5773502692
C16: R1.3 | D16: 3. Seguridad | E16: Riesgos derivados de las condiciones de seguridad del personal involucrado en el proyecto y la población cercana | F16: C1 Retraso | G16: 9 | H16: 6 | I16: 5 | J16: 4 | L16: 2.160246899
F17: C2 Conflicto | G17: 6 | H17: 7 | I17: 8 | J17: 4 | L17: 1.707825128
F18: C3 Sanciones | G18: 10 | H18: 9 | J18: 8 | L18: 1
C19: R1.4 | D19: 4. Entorno laboral | E19: Riesgos derivados de las condiciones Laborales del personal involucrado en el proyecto | F19: C1 Retraso | G19: 10 | H19: 6 | I19: 4 | J19: 3 | L19: 3.095695937
F20: C2 Conflicto | G20: 8 | H20: 8 | I20: 6 | J20: 4 | L20: 1.914854216
F21: C3 Sanciones | G21: 8 | H21: 10 | J21: 8 | L21: 1.154700538
C22: R1.5 | D22: 5. Inversión Social | E22: Riesgos derivados de la negación de inversión social en la población con la que interactúa. | F22: C1 Retraso | G22: 7 | H22: 6 | I22: 7 | J22: 6 | L22: 0.5773502692
F23: C2 Conflicto | G23: 7 | H23: 6 | I23: 4 | J23: 3 | L23: 1.825741858
B24: Riesgos Sociopolíticos | C24: R2.1 | D24: 1. Mecanismos de Participación / 2. Representatividad / 3. Uso del territorio y libertad para decidir sobre él. | E24: Riesgo derivado de los procedimientos que permiten a los individuos de una sociedad involucrase en las decisiones relacionadas con el desarrollo del proyecto. | F24: C1 Retraso | G24: 10 | H24: 7 | I24: 9 | J24: 5 | L24: 2.217355783
F25: C2 Conflicto | G25: 5 | H25: 5 | I25: 4 | J25: 4 | L25: 0.5773502692
F26: C3 Sanciones | G26: 2 | H26: 9 | J26: 7 | L26: 3.605551275
F27: C4 Cancelación | G27: 6 | H27: 9 | I27: 10 | J27: 10 | L27: 1.892969449
C28: R2.2 | D28: 4. Formas de organización: Ejidos, comunidades agrarias, pueblos y comunidades indígenas y personas como propietarias del territorio. | E28: Riesgo derivado de ignorar las formas de organización local de: ejidos, comunidades agrarias, pueblos y comunidades indígenas. | F28: C1 Retraso | G28: 10 | H28: 8 | I28: 7 | J28: 5 | L28: 2.081665999
F29: C2 Conflicto | G29: 9 | H29: 7 | I29: 4 | J29: 3 | L29: 2.753785274
F30: C3 Sanciones | G30: 2 | H30: 9 | J30: 7 | L30: 3.605551275
F31: C4 Cancelación | G31: 4 | H31: 10 | I31: 10 | J31: 10 | L31: 3
B32: Socioambiental | C32: R3.1 | D32: 1. Uso y aprovechamiento de los recursos naturales / 2. Regulación de los recursos naturales | E32: Riesgo derivado del manejo sustentable y eficiente de los recursos existentes. | F32: C1 Retraso | G32: 7 | H32: 9 | I32: 5 | J32: 3 | L32: 2.581988897
F33: C2 Conflicto | G33: 7 | H33: 7 | I33: 3 | J33: 8 | L33: 2.217355783
F34: C3 Sanciones | G34: 8 | H34: 10 | J34: 8 | L34: 1.154700538
C35: R3.2 | D35: 3. Manejo de Residuos / 4. Salud | E35: Riesgo derivado de problemas de salud por incorrecto manejo de residuos. | F35: C1 Retraso | G35: 10 | H35: 9 | I35: 2 | J35: 3 | L35: 4.082482905
F36: C2 Conflicto | G36: 10 | H36: 7 | I36: 2 | J36: 8 | L36: 3.403429643
F37: C3 Sanciones | G37: 8 | H37: 10 | J37: 8 | L37: 1.154700538
F38: C4 Cancelación | G38: 10 | H38: 9 | I38: 10 | J38: 10 | L38: 0.5
B39: Sociocultural | C39: R4.1 | D39: 1. Población Indígena | E39: Riesgo por no realizar correctamente una consulta indígena. | F39: C1 Retraso | G39: 5 | H39: 9 | I39: 9 | J39: 6 | L39: 2.061552813
F40: C2 Conflicto | G40: 10 | H40: 7 | I40: 4 | J40: 4 | L40: 2.872281323
F41: C3 Sanciones | G41: 10 | H41: 9 | J41: 8 | L41: 1
F42: C4 Cancelación | G42: 10 | H42: 9 | I42: 10 | J42: 10 | L42: 0.5
C43: R4.2 | D43: 2. Patrimonio cultural material / 3. Patrimonio Cultural Arqueológico / 4. Producción y reproducción del patrimonio cultural | E43: Riesgo derivado de no identificar ni implementar mecanismos de resguardo y conservación al patrimonio cultural que tiene contacto con el proyecto. | F43: C1 Retraso | G43: 5 | H43: 9 | I43: 8 | J43: 7 | L43: 1.707825128
F44: C2 Conflicto | G44: 5 | H44: 7 | J44: 4 | L44: 1.527525232
F45: C3 Sanciones | G45: 6 | H45: 10 | J45: 5 | L45: 2.645751311
F46: C4 Cancelación | G46: 7 | H46: 9 | I46: 10 | J46: 10 | L46: 1.414213562
J48: Desvest | L48: =AVERAGE(L10:L46) -> 1.93371765
J50: Analisis ANOVA | L50: Si son estadisticamente iguales

Sheet Matriz Gravedad Probabilidad MH (hidden)
B2: Matriz de Gravedad y Probabilidad
G4: 0.5 | H4: 0.5
B5: Dimensión | C5: ID | D5: Impacto Genérico | E5: Riesgo Genérico Asociado | G5: Gravedad | H5: Frecuencia | I5: Promedio Factores
B6: Dimensión Socioeconómica | C6: R1.1 | D6: 1. Producción de bienes y servicios en lugares específicos | E6: C1 Retraso | F6: R1.1 C1 | G6: =AVERAGE(#REF!,#REF!,#REF!,#REF!,#REF!,#REF!,#REF!,#REF!,#REF!,#REF!) ->  | H6: =AVERAGE(#REF!,#REF!,#REF!,#REF!,#REF!,#REF!,#REF!,#REF!,#REF!,#REF!) ->  | I6: =(G6*$G$4)+(H6*$H$4) -> 
E7: C2 Conflicto | F7: R1.1 C2 | G7: =AVERAGE(#REF!,#REF!,#REF!,#REF!,#REF!,#REF!,#REF!,#REF!,#REF!,#REF!) ->  | H7: =AVERAGE(#REF!,#REF!,#REF!,#REF!,#REF!,#REF!,#REF!,#REF!,#REF!,#REF!) -> 
C8: R1.2 | D8: 2. Derrama económica por el usufructo y contraprestación de espacios o prestación de servicios. | E8: C1 Retraso | F8: R1.2 C1 | G8: =AVERAGE(#REF!,#REF!,#REF!,#REF!,#REF!,#REF!,#REF!,#REF!,#REF!,#REF!) ->  | H8: =AVERAGE(#REF!,#REF!,#REF!,#REF!,#REF!,#REF!,#REF!,#REF!,#REF!,#REF!) -> 
E9: C2 Conflicto | F9: R1.2 C2 | G9: =AVERAGE(#REF!,#REF!,#REF!,#REF!,#REF!,#REF!,#REF!,#REF!,#REF!,#REF!) ->  | H9: =AVERAGE(#REF!,#REF!,#REF!,#REF!,#REF!,#REF!,#REF!,#REF!,#REF!,#REF!) -> 
E10: C3 Sanciones | F10: R1.2 C3 | G10: =AVERAGE(#REF!,#REF!,#REF!,#REF!,#REF!,#REF!,#REF!,#REF!,#REF!,#REF!) ->  | H10: =AVERAGE(#REF!,#REF!,#REF!,#REF!,#REF!,#REF!,#REF!,#REF!,#REF!,#REF!) -> 
E11: C4 Cancelación | F11: R1.2 C4 | G11: =AVERAGE(#REF!,#REF!,#REF!,#REF!,#REF!,#REF!,#REF!,#REF!,#REF!,#REF!) ->  | H11: =AVERAGE(#REF!,#REF!,#REF!,#REF!,#REF!,#REF!,#REF!,#REF!,#REF!,#REF!) -> 
C12: R1.3 | D12: 3. Seguridad | E12: C1 Retraso | F12: R1.3 C1 | G12: =AVERAGE(#REF!,#REF!,#REF!,#REF!,#REF!,#REF!,#REF!,#REF!,#REF!,#REF!) ->  | H12: =AVERAGE(#REF!,#REF!,#REF!,#REF!,#REF!,#REF!,#REF!,#REF!,#REF!,#REF!) -> 
E13: C2 Conflicto | F13: R1.3 C2 | G13: =AVERAGE(#REF!,#REF!,#REF!,#REF!,#REF!,#REF!,#REF!,#REF!,#REF!,#REF!) ->  | H13: =AVERAGE(#REF!,#REF!,#REF!,#REF!,#REF!,#REF!,#REF!,#REF!,#REF!,#REF!) -> 
E14: C3 Sanciones | F14: R1.3 C3 | G14: =AVERAGE(#REF!,#REF!,#REF!,#REF!,#REF!,#REF!,#REF!,#REF!,#REF!,#REF!) ->  | H14: =AVERAGE(#REF!,#REF!,#REF!,#REF!,#REF!,#REF!,#REF!,#REF!,#REF!,#REF!) -> 
C15: R1.4 | D15: 4. Entorno laboral | E15: C1 Retraso | F15: R1.4 C1 | G15: =AVERAGE(#REF!,#REF!,#REF!,#REF!,#REF!,#REF!,#REF!,#REF!,#REF!,#REF!) ->  | H15: =AVERAGE(#REF!,#REF!,#REF!,#REF!,#REF!,#REF!,#REF!,#REF!,#REF!,#REF!) -> 
E16: C2 Conflicto | F16: R1.4 C2 | G16: =AVERAGE(#REF!,#REF!,#REF!,#REF!,#REF!,#REF!,#REF!,#REF!,#REF!,#REF!) ->  | H16: =AVERAGE(#REF!,#REF!,#REF!,#REF!,#REF!,#REF!,#REF!,#REF!,#REF!,#REF!) -> 
E17: C3 Sanciones | F17: R1.4 C3 | G17: =AVERAGE(#REF!,#REF!,#REF!,#REF!,#REF!,#REF!,#REF!,#REF!,#REF!,#REF!) ->  | H17: =AVERAGE(#REF!,#REF!,#REF!,#REF!,#REF!,#REF!,#REF!,#REF!,#REF!,#REF!) -> 
C18: R1.5 | D18: 5. Inversión Social | E18: C1 Retraso | F18: R1.4 C1 | G18: =AVERAGE(#REF!,#REF!,#REF!,#REF!,#REF!,#REF!,#REF!,#REF!,#REF!,#REF!) ->  | H18: =AVERAGE(#REF!,#REF!,#REF!,#REF!,#REF!,#REF!,#REF!,#REF!,#REF!,#REF!) -> 
E19: C2 Conflicto | F19: R1.4 C2 | G19: =AVERAGE(#REF!,#REF!,#REF!,#REF!,#REF!,#REF!,#REF!,#REF!,#REF!,#REF!) ->  | H19: =AVERAGE(#REF!,#REF!,#REF!,#REF!,#REF!,#REF!,#REF!,#REF!,#REF!,#REF!) -> 
B20: Dimensión Sociopolítica | C20: R2.1 | D20: 1. Mecanismos de Participación / 2. Representatividad / 3. Uso del territorio y libertad para decidir sobre él. | E20: C1 Retraso | F20: R2.1 C1 | G20: =AVERAGE(#REF!,#REF!,#REF!,#REF!,#REF!,#REF!,#REF!,#REF!,#REF!,#REF!) ->  | H20: =AVERAGE(#REF!,#REF!,#REF!,#REF!,#REF!,#REF!,#REF!,#REF!,#REF!,#REF!) -> 
E21: C2 Conflicto | F21: R2.1 C2 | G21: =AVERAGE(#REF!,#REF!,#REF!,#REF!,#REF!,#REF!,#REF!,#REF!,#REF!,#REF!) ->  | H21: =AVERAGE(#REF!,#REF!,#REF!,#REF!,#REF!,#REF!,#REF!,#REF!,#REF!,#REF!) -> 
E22: C3 Sanciones | F22: R2.1 C3 | G22: =AVERAGE(#REF!,#REF!,#REF!,#REF!,#REF!,#REF!,#REF!,#REF!,#REF!,#REF!) ->  | H22: =AVERAGE(#REF!,#REF!,#REF!,#REF!,#REF!,#REF!,#REF!,#REF!,#REF!,#REF!) -> 
E23: C4 Cancelación | F23: R2.1 C4 | G23: =AVERAGE(#REF!,#REF!,#REF!,#REF!,#REF!,#REF!,#REF!,#REF!,#REF!,#REF!) ->  | H23: =AVERAGE(#REF!,#REF!,#REF!,#REF!,#REF!,#REF!,#REF!,#REF!,#REF!,#REF!) -> 
C24: R2.2 | D24: 4. Formas de organización: Ejidos, comunidades agrarias, pueblos y comunidades indígenas y personas como propietarias del territorio. | E24: C1 Retraso | F24: R2.2 C1 | G24: =AVERAGE(#REF!,#REF!,#REF!,#REF!,#REF!,#REF!,#REF!,#REF!,#REF!,#REF!) ->  | H24: =AVERAGE(#REF!,#REF!,#REF!,#REF!,#REF!,#REF!,#REF!,#REF!,#REF!,#REF!) -> 
E25: C2 Conflicto | F25: R2.2 C2 | G25: =AVERAGE(#REF!,#REF!,#REF!,#REF!,#REF!,#REF!,#REF!,#REF!,#REF!,#REF!) ->  | H25: =AVERAGE(#REF!,#REF!,#REF!,#REF!,#REF!,#REF!,#REF!,#REF!,#REF!,#REF!) -> 
E26: C3 Sanciones | F26: R2.2 C3 | G26: =AVERAGE(#REF!,#REF!,#REF!,#REF!,#REF!,#REF!,#REF!,#REF!,#REF!,#REF!) ->  | H26: =AVERAGE(#REF!,#REF!,#REF!,#REF!,#REF!,#REF!,#REF!,#REF!,#REF!,#REF!) -> 
E27: C4 Cancelación | F27: R2.2 C4 | G27: =AVERAGE(#REF!,#REF!,#REF!,#REF!,#REF!,#REF!,#REF!,#REF!,#REF!,#REF!) ->  | H27: =AVERAGE(#REF!,#REF!,#REF!,#REF!,#REF!,#REF!,#REF!,#REF!,#REF!,#REF!) -> 
B28: Dimensión Socioambiental | C28: R3.1 | D28: 1. Uso y aprovechamiento de los recursos naturales / 2. Regulación de los recursos naturales | E28: C1 Retraso | F28: R3.1 C1 | G28: =AVERAGE(#REF!,#REF!,#REF!,#REF!,#REF!,#REF!,#REF!,#REF!,#REF!,#REF!) ->  | H28: =AVERAGE(#REF!,#REF!,#REF!,#REF!,#REF!,#REF!,#REF!,#REF!,#REF!,#REF!) -> 
E29: C2 Conflicto | F29: R3.1 C2 | G29: =AVERAGE(#REF!,#REF!,#REF!,#REF!,#REF!,#REF!,#REF!,#REF!,#REF!,#REF!) ->  | H29: =AVERAGE(#REF!,#REF!,#REF!,#REF!,#REF!,#REF!,#REF!,#REF!,#REF!,#REF!) -> 
E30: C3 Sanciones | F30: R3.1 C3 | G30: =AVERAGE(#REF!,#REF!,#REF!,#REF!,#REF!,#REF!,#REF!,#REF!,#REF!,#REF!) ->  | H30: =AVERAGE(#REF!,#REF!,#REF!,#REF!,#REF!,#REF!,#REF!,#REF!,#REF!,#REF!) -> 
C31: R3.2 | D31: 3. Manejo de Residuos / 4. Salud | E31: C1 Retraso | F31: R3.2 C1 | G31: =AVERAGE(#REF!,#REF!,#REF!,#REF!,#REF!,#REF!,#REF!,#REF!,#REF!,#REF!) ->  | H31: =AVERAGE(#REF!,#REF!,#REF!,#REF!,#REF!,#REF!,#REF!,#REF!,#REF!,#REF!) -> 
E32: C2 Conflicto | F32: R3.2 C2 | G32: =AVERAGE(#REF!,#REF!,#REF!,#REF!,#REF!,#REF!,#REF!,#REF!,#REF!,#REF!) ->  | H32: =AVERAGE(#REF!,#REF!,#REF!,#REF!,#REF!,#REF!,#REF!,#REF!,#REF!,#REF!) -> 
E33: C3 Sanciones | F33: R3.2 C3 | G33: =AVERAGE(#REF!,#REF!,#REF!,#REF!,#REF!,#REF!,#REF!,#REF!,#REF!,#REF!) ->  | H33: =AVERAGE(#REF!,#REF!,#REF!,#REF!,#REF!,#REF!,#REF!,#REF!,#REF!,#REF!) -> 
E34: C4 Cancelación | F34: R3.2 C4 | G34: =AVERAGE(#REF!,#REF!,#REF!,#REF!,#REF!,#REF!,#REF!,#REF!,#REF!,#REF!) ->  | H34: =AVERAGE(#REF!,#REF!,#REF!,#REF!,#REF!,#REF!,#REF!,#REF!,#REF!,#REF!) -> 
B35: Dimensión Sociocultural | C35: R4.1 | D35: 1. Población Indígena | E35: C1 Retraso | F35: R4.1 C1 | G35: =AVERAGE(#REF!,#REF!,#REF!,#REF!,#REF!,#REF!,#REF!,#REF!,#REF!,#REF!) ->  | H35: =AVERAGE(#REF!,#REF!,#REF!,#REF!,#REF!,#REF!,#REF!,#REF!,#REF!,#REF!) -> 
E36: C2 Conflicto | F36: R4.1 C2 | G36: =AVERAGE(#REF!,#REF!,#REF!,#REF!,#REF!,#REF!,#REF!,#REF!,#REF!,#REF!) ->  | H36: =AVERAGE(#REF!,#REF!,#REF!,#REF!,#REF!,#REF!,#REF!,#REF!,#REF!,#REF!) -> 
E37: C3 Sanciones | F37: R4.1 C3 | G37: =AVERAGE(#REF!,#REF!,#REF!,#REF!,#REF!,#REF!,#REF!,#REF!,#REF!,#REF!) ->  | H37: =AVERAGE(#REF!,#REF!,#REF!,#REF!,#REF!,#REF!,#REF!,#REF!,#REF!,#REF!) -> 
E38: C4 Cancelación | F38: R4.4 C4 | G38: =AVERAGE(#REF!,#REF!,#REF!,#REF!,#REF!,#REF!,#REF!,#REF!,#REF!,#REF!) ->  | H38: =AVERAGE(#REF!,#REF!,#REF!,#REF!,#REF!,#REF!,#REF!,#REF!,#REF!,#REF!) -> 
C39: R4.2 | D39: 2. Patrimonio cultural material / 3. Patrimonio Cultural Arqueológico / 4. Producción y reproducción del patrimonio cultural | E39: C1 Retraso | F39: R4.2 C1 | G39: =AVERAGE(#REF!,#REF!,#REF!,#REF!,#REF!,#REF!,#REF!,#REF!,#REF!,#REF!) ->  | H39: =AVERAGE(#REF!,#REF!,#REF!,#REF!,#REF!,#REF!,#REF!,#REF!,#REF!,#REF!) -> 
E40: C2 Conflicto | F40: R4.2 C2 | G40: =AVERAGE(#REF!,#REF!,#REF!,#REF!,#REF!,#REF!,#REF!,#REF!,#REF!,#REF!) ->  | H40: =AVERAGE(#REF!,#REF!,#REF!,#REF!,#REF!,#REF!,#REF!,#REF!,#REF!,#REF!) -> 
E41: C3 Sanciones | F41: R4.2 C3 | G41: =AVERAGE(#REF!,#REF!,#REF!,#REF!,#REF!,#REF!,#REF!,#REF!,#REF!,#REF!) ->  | H41: =AVERAGE(#REF!,#REF!,#REF!,#REF!,#REF!,#REF!,#REF!,#REF!,#REF!,#REF!) -> 
E42: C4 Cancelación | F42: R4.2 C4 | G42: =AVERAGE(#REF!,#REF!,#REF!,#REF!,#REF!,#REF!,#REF!,#REF!,#REF!,#REF!) ->  | H42: =AVERAGE(#REF!,#REF!,#REF!,#REF!,#REF!,#REF!,#REF!,#REF!,#REF!,#REF!) -> 
F43: TOTAL | G43: =SUM(G6:G42) ->  | H43: =SUM(H6:H42) ->  | I43: =SUM(I6:I42) -> 

Sheet Cuestionario Eólica
A1: 1 | B1: 2 | C1: 3 | D1: 4 | E1: 5 | F1: 6 | G1: 7 | H1: 8 | I1: 9 | J1: 10 | K1: 11 | L1: 12 | M1: 13 | N1: 14 | O1: 15 | P1: 16 | Q1: 17 | R1: 18 | S1: 19 | T1: 20 | U1: 21 | V1: 22 | W1: 23 | X1: 24 | Y1: 25 | Z1: 26 | AA1: 27 | AB1: 28 | AC1: 29 | AD1: 30 | AE1: 31 | AF1: 32 | AG1: 33
B2: Cuestionario para cuantificación de Riesgos Ambientales y Sociales en Proyectos Energéticos
B4: Empresa: | D4: EMPRESAS ENCUESTADAS
B6: PASO 1: Califica en una escala del 0 - 10 donde 10 es MUY GRAVE y o es NADA GRAVE los riesgos derivados de los impactos Sociales y Ambientales definidos a continuación:
B7: PASO 2: Califica en una escala del 0 - 10 donde 10 es MUY FRECUENTE y 0 es NADA FRECUENTE los riesgos derivados de los impactos Sociales y Ambientales definidos a continuación:
E8: Empresas | F8: =COUNT(G9:XFD9) -> 8 | G8: Empresa | H8: Número de Proyectos | J8: Empresa | K8: Número de Proyectos | M8: Empresa | N8: Número de Proyectos | P8: Empresa | Q8: Número de Proyectos | S8: Empresa | T8: Número de Proyectos | V8: Empresa | W8: Número de Proyectos | Y8: Empresa | Z8: Número de Proyectos | AB8: Empresa | AC8: Número de Proyectos | AE8: Empresa | AF8: Número de Proyectos | AH8: Empresa | AI8: Número de Proyectos
E9: Proyectos totales | F9: =SUM(G9:XFD9) -> 8 | G9: E1 | H9: 1 | J9: E1 | K9: 1 | M9: E1 | N9: 1 | P9: E1 | Q9: 1 | S9: E1 | T9: 1 | V9: E1 | W9: 1 | Y9: E1 | Z9: 1 | AB9: Dragon | AC9: 1 | AH9: E1
B10: Dimensión | C10: ID | D10: Impacto Genérico | E10: Relación Impacto - Riesgo | F10: Riesgo Genérico Asociado | G10: Gravedad | H10: Frecuencia | J10: Gravedad | K10: Frecuencia | M10: Gravedad | N10: Frecuencia | P10: Gravedad | Q10: Frecuencia | S10: Gravedad | T10: Frecuencia | V10: Gravedad | W10: Frecuencia | Y10: Gravedad | Z10: Frecuencia | AB10: Gravedad | AC10: Frecuencia | AE10: Gravedad | AF10: Frecuencia | AH10: Gravedad | AI10: Frecuencia
B11: Dimensión Socioeconómica | C11: R1.1 | D11: 1. Producción de bienes y servicios en lugares específicos | E11: Riesgos derivados de la modificación del área | F11: C1 Retraso | G11: 10 | H11: 2 | J11: 8 | K11: 4 | M11: 4 | N11: 4 | P11: 10 | Q11: 4 | S11: 4 | T11: 4 | V11: 10 | W11: 1 | Y11: 8 | Z11: 5 | AB11: 8 | AC11: 10
F12: C2 Conflicto | G12: 5 | H12: 2 | J12: 7 | K12: 7 | P12: 4 | Q12: 4 | S12: 6 | T12: 6 | V12: 5 | W12: 0 | Y12: 3 | Z12: 5 | AB12: 3 | AC12: 10
C13: R1.2 | D13: 2. Derrama económica por el usufructo y contraprestación de espacios. | E13: Riesgos derivados de renta o compra-venta del área dónde se desarrollará el proyecto | F13: C1 Retraso | G13: 5 | H13: 8 | J13: 7 | K13: 4 | M13: 8 | N13: 3 | P13: 4 | Q13: 3 | S13: 8 | T13: 7 | V13: 10 | W13: 1 | Y13: 8 | Z13: 5 | AB13: 8 | AC13: 10
F14: C2 Conflicto | G14: 4 | H14: 2 | J14: 7 | K14: 5 | M14: 7 | N14: 3 | P14: 4 | Q14: 6 | S14: 5 | T14: 5 | V14: 10 | W14: 10 | Y14: 3 | Z14: 5 | AB14: 3 | AC14: 10
F15: C3 Sanciones | G15: 6 | H15: 0 | J15: 9 | K15: 3 | P15: 8 | Q15: 1 | S15: 1 | T15: 1 | V15: 10 | W15: 0 | Y15: 3 | Z15: 3 | AB15: 3 | AC15: 10
F16: C4 Cancelación | G16: 9 | H16: 2 | J16: 9 | K16: 3 | M16: 10 | N16: 2 | P16: 10 | Q16: 1 | S16: 1 | T16: 1 | V16: 10 | W16: 0 | Y16: 10 | Z16: 3 | AB16: 10 | AC16: 10
C17: R1.3 | D17: 3. Seguridad | E17: Riesgos derivados de las condiciones de seguridad del personal involucrado en el proyecto y la población cercana | F17: C1 Retraso | G17: 9 | H17: 1 | J17: 6 | K17: 2 | M17: 5 | N17: 2 | P17: 4 | Q17: 2 | S17: 4 | T17: 1 | V17: 9 | W17: 1 | Y17: 4 | Z17: 4 | AB17: 4 | AC17: 10
F18: C2 Conflicto | G18: 8 | H18: 1 | J18: 7 | K18: 5 | M18: 8 | N18: 5 | P18: 4 | Q18: 3 | S18: 8 | T18: 2 | V18: 7 | W18: 0 | Y18: 3 | Z18: 4 | AB18: 3 | AC18: 10
F19: C3 Sanciones | G19: 10 | H19: 3 | J19: 9 | K19: 3 | P19: 8 | Q19: 1 | S19: 1 | T19: 1 | V19: 10 | W19: 0 | Y19: 3 | Z19: 2 | AB19: 3 | AC19: 10
C20: R1.4 | D20: 4. Entorno laboral | E20: Riesgos derivados de las condiciones Laborales del personal involucrado en el proyecto | F20: C1 Retraso | G20: 10 | H20: 3 | J20: 6 | K20: 2 | M20: 4 | N20: 5 | P20: 3 | Q20: 1 | S20: 10 | T20: 1 | V20: 10 | W20: 0 | Y20: 6 | Z20: 6 | AB20: 6 | AC20: 10
F21: C2 Conflicto | G21: 8 | H21: 0 | J21: 8 | K21: 3 | M21: 6 | N21: 5 | P21: 4 | Q21: 3 | S21: 8 | T21: 2 | V21: 8 | W21: 0 | Y21: 3 | Z21: 3 | AB21: 3 | AC21: 10
F22: C3 Sanciones | G22: 8 | H22: 0 | J22: 10 | K22: 3 | P22: 8 | Q22: 1 | S22: 1 | T22: 1 | V22: 10 | W22: 0 | Y22: 3 | Z22: 2 | AB22: 3 | AC22: 10
C23: R1.5 | D23: 5. Inversión Social | E23: Riesgos derivados de la negación de inversión social en la población con la que interactúa. | F23: C1 Retraso | G23: 7 | H23: 6 | J23: 6 | K23: 3 | M23: 7 | N23: 2 | P23: 5 | Q23: 1 | S23: 5 | T23: 5 | V23: 7 | W23: 0 | Y23: 2 | Z23: 2 | AB23: 2 | AC23: 10
F24: C2 Conflicto | G24: 7 | H24: 3 | J24: 6 | K24: 3 | M24: 4 | N24: 6 | P24: 3 | Q24: 2 | S24: 7 | T24: 3 | V24: 7 | W24: 0 | Y24: 2 | Z24: 2 | AB24: 2 | AC24: 10
B25: Dimensión Sociopolítica | C25: R2.1 | D25: 1. Mecanismos de Participación / 2. Representatividad / 3. Uso del territorio y libertad para decidir sobre él. | E25: Riesgo derivado de los procedimientos que permiten a los individuos de una sociedad involucrase en las decisiones relacionadas con el desarrollo del proyecto. | F25: C1 Retraso | G25: 10 | H25: 8 | J25: 7 | K25: 4 | M25: 9 | N25: 5 | P25: 5 | Q25: 3 | S25: 5 | T25: 5 | V25: 7 | W25: 0 | Y25: 2 | Z25: 1 | AB25: 2 | AC25: 10
F26: C2 Conflicto | G26: 7 | H26: 4 | J26: 5 | K26: 2 | M26: 4 | N26: 6 | P26: 4 | Q26: 4 | S26: 5 | T26: 5 | V26: 7 | W26: 0 | Y26: 2 | Z26: 1 | AB26: 2 | AC26: 10
F27: C3 Sanciones | G27: 2 | H27: 0 | J27: 9 | K27: 4 | P27: 7 | Q27: 1 | S27: 1 | T27: 1 | V27: 8 | W27: 0 | Y27: 4 | Z27: 2 | AB27: 4 | AC27: 10
F28: C4 Cancelación | G28: 6 | H28: 0 | J28: 9 | K28: 3 | M28: 10 | N28: 3 | P28: 10 | Q28: 1 | S28: 1 | T28: 1 | V28: 10 | W28: 0 | Y28: 8 | Z28: 2 | AB28: 8 | AC28: 10
C29: R2.2 | D29: 4. Formas de organización: Ejidos, comunidades agrarias, pueblos y comunidades indígenas y personas como propietarias del territorio. | E29: Riesgo derivado de ignorar las formas de organización local de: ejidos, comunidades agrarias, pueblos y comunidades indígenas. | F29: C1 Retraso | G29: 10 | H29: 5 | J29: 8 | K29: 4 | M29: 6 | N29: 3 | P29: 5 | Q29: 5 | S29: 8 | T29: 6 | V29: 7 | W29: 0 | Y29: 5 | Z29: 1 | AB29: 5 | AC29: 10
F30: C2 Conflicto | G30: 9 | H30: 2 | J30: 7 | K30: 4 | M30: 4 | N30: 6 | P30: 3 | Q30: 1 | S30: 8 | T30: 8 | V30: 7 | W30: 0 | Y30: 4 | Z30: 1 | AB30: 4 | AC30: 10
F31: C3 Sanciones | G31: 2 | H31: 1 | J31: 9 | K31: 4 | P31: 7 | Q31: 1 | S31: 1 | T31: 1 | V31: 8 | W31: 0 | Y31: 4 | Z31: 1 | AB31: 4 | AC31: 10
F32: C4 Cancelación | G32: 4 | H32: 0 | J32: 10 | K32: 3 | M32: 10 | N32: 3 | P32: 10 | Q32: 1 | S32: 1 | T32: 1 | V32: 10 | W32: 0 | Y32: 8 | Z32: 1 | AB32: 8 | AC32: 10
B33: Dimensión Socioambiental | C33: R3.1 | D33: 1. Uso y aprovechamiento de los recursos naturales / 2. Regulación de los recursos naturales | E33: Riesgo derivado del manejo sustentable y eficiente de los recursos existentes. | F33: C1 Retraso | G33: 7 | H33: 0 | J33: 9 | K33: 4 | M33: 5 | N33: 4 | P33: 3 | Q33: 1 | S33: 10 | T33: 3 | V33: 8 | W33: 0 | Y33: 6 | Z33: 4 | AB33: 6 | AC33: 10
F34: C2 Conflicto | G34: 7 | H34: 0 | J34: 7 | K34: 5 | M34: 3 | N34: 2 | P34: 8 | Q34: 1 | S34: 7 | T34: 5 | V34: 9 | W34: 0 | Y34: 4 | Z34: 2 | AB34: 4 | AC34: 10
F35: C3 Sanciones | G35: 8 | H35: 2 | J35: 10 | K35: 3 | P35: 8 | Q35: 1 | S35: 1 | T35: 1 | V35: 10 | W35: 0 | Y35: 6 | Z35: 3 | AB35: 6 | AC35: 10
C36: R3.2 | D36: 3. Manejo de Residuos / 4. Salud | E36: Riesgo derivado de problemas de salud por incorrecto manejo de residuos. | F36: C1 Retraso | G36: 10 | H36: 10 | J36: 9 | K36: 4 | M36: 2 | N36: 2 | P36: 3 | Q36: 1 | S36: 10 | T36: 2 | V36: 8 | W36: 0 | Y36: 4 | Z36: 2 | AB36: 4 | AC36: 10
F37: C2 Conflicto | G37: 10 | H37: 10 | J37: 7 | K37: 4 | M37: 2 | N37: 2 | P37: 8 | Q37: 1 | S37: 6 | T37: 1 | V37: 9 | W37: 0 | Y37: 4 | Z37: 1 | AB37: 4 | AC37: 10
F38: C3 Sanciones | G38: 8 | H38: 2 | J38: 10 | K38: 3 | P38: 8 | Q38: 1 | S38: 1 | T38: 1 | V38: 10 | W38: 0 | Y38: 5 | Z38: 2 | AB38: 5 | AC38: 10
F39: C4 Cancelación | G39: 10 | H39: 3 | J39: 9 | K39: 4 | M39: 10 | N39: 1 | P39: 10 | Q39: 1 | S39: 3 | T39: 3 | V39: 10 | W39: 0 | Y39: 10 | Z39: 3 | AB39: 10 | AC39: 10
B40: Dimensión Sociocultural | C40: R4.1 | D40: 1. Población Indígena | E40: Riesgo por no realizar correctamente una consulta indígena. | F40: C1 Retraso | G40: 5 | H40: 8 | J40: 9 | K40: 3 | M40: 9 | N40: 5 | P40: 6 | Q40: 3 | S40: 10 | T40: 6 | V40: 10 | W40: 0 | Y40: 5 | Z40: 2 | AB40: 5 | AC40: 10
F41: C2 Conflicto | G41: 10 | H41: 10 | J41: 7 | K41: 4 | M41: 4 | N41: 6 | P41: 4 | Q41: 2 | S41: 7 | T41: 7 | V41: 10 | W41: 0 | Y41: 4 | Z41: 2 | AB41: 4 | AC41: 10
F42: C3 Sanciones | G42: 10 | H42: 0 | J42: 9 | K42: 4 | P42: 8 | Q42: 1 | S42: 1 | T42: 1 | V42: 10 | W42: 0 | Y42: 5 | Z42: 1 | AB42: 5 | AC42: 10
F43: C4 Cancelación | G43: 10 | H43: 3 | J43: 9 | K43: 4 | M43: 10 | N43: 1 | P43: 10 | Q43: 1 | S43: 1 | T43: 1 | V43: 10 | W43: 0 | Y43: 10 | Z43: 1 | AB43: 10 | AC43: 10
C44: R4.2 | D44: 2. Patrimonio cultural material / 3. Patrimonio Cultural Arqueológico / 4. Producción y reproducción del patrimonio cultural | E44: Riesgo derivado de no identificar ni implementar mecanismos de resguardo y conservación al patrimonio cultural que tiene contacto con el proyecto. | F44: C1 Retraso | G44: 5 | H44: 5 | J44: 9 | K44: 2 | M44: 8 | N44: 4 | P44: 7 | Q44: 5 | S44: 0 | T44: 0 | V44: 10 | W44: 0 | Y44: 7 | Z44: 1 | AB44: 7 | AC44: 10
F45: C2 Conflicto | G45: 3 | H45: 1 | J45: 7 | K45: 5 | P45: 4 | Q45: 2 | S45: 5 | T45: 3 | V45: 10 | W45: 0 | Y45: 3 | Z45: 1 | AB45: 3 | AC45: 10
F46: C3 Sanciones | G46: 6 | H46: 0 | J46: 10 | K46: 4 | P46: 5 | Q46: 1 | S46: 1 | T46: 1 | V46: 10 | W46: 0 | Y46: 3 | Z46: 1 | AB46: 3 | AC46: 10
F47: C4 Cancelación | G47: 7 | H47: 1 | J47: 9 | K47: 3 | M47: 10 | N47: 3 | P47: 10 | Q47: 1 | S47: 0 | T47: 0 | V47: 10 | W47: 0 | Y47: 8 | Z47: 1 | AB47: 8 | AC47: 10

Sheet Cuestionario FV
B2: Cuestionario para cuantificación de Riesgos Ambientales y Sociales en Proyectos Energéticos
B4: Empresa: | D4: EMPRESAS ENCUESTADAS
B6: PASO 1: Califica en una escala del 0 - 10 donde 10 es MUY GRAVE y o es NADA GRAVE los riesgos derivados de los impactos Sociales y Ambientales definidos a continuación:
B7: PASO 2: Califica en una escala del 0 - 10 donde 10 es MUY FRECUENTE y 0 es NADA FRECUENTE los riesgos derivados de los impactos Sociales y Ambientales definidos a continuación:
E8: Empresas | F8: =COUNT(G9:XFD9) -> 7 | G8: Empresa | H8: Número de Proyectos | J8: Empresa | K8: Número de Proyectos | M8: Empresa | N8: Número de Proyectos | P8: Empresa | Q8: Número de Proyectos | S8: Empresa | T8: Número de Proyectos | V8: Empresa | W8: Número de Proyectos | Y8: Empresa | Z8: Número de Proyectos | AB8: Empresa | AC8: Número de Proyectos | AE8: Empresa | AF8: Número de Proyectos | AH8: Empresa | AI8: Número de Proyectos
E9: Proyectos totales | F9: =SUM(G9:XFD9) -> 7 | G9: E1 | H9: 1 | J9: E1 | K9: 1 | M9: E1 | N9: 1 | P9: E1 | Q9: 1 | S9: E1 | T9: 1 | V9: E1 | W9: 1 | Y9: E1 | Z9: 1
B10: Dimensión | C10: ID | D10: Impacto Genérico | E10: Relación Impacto - Riesgo | F10: Riesgo Genérico Asociado | G10: Gravedad | H10: Frecuencia | J10: Gravedad | K10: Frecuencia | M10: Gravedad | N10: Frecuencia | P10: Gravedad | Q10: Frecuencia | S10: Gravedad | T10: Frecuencia | V10: Gravedad | W10: Frecuencia | Y10: Gravedad | Z10: Frecuencia | AB10: Gravedad | AC10: Frecuencia | AE10: Gravedad | AF10: Frecuencia | AH10: Gravedad | AI10: Frecuencia
B11: Dimensión Socioeconómica | C11: R1.1 | D11: 1. Producción de bienes y servicios en lugares específicos | E11: Riesgos derivados de la modificación del área | F11: C1 Retraso | G11: 10 | H11: 2 | J11: 8 | K11: 4 | M11: 4 | N11: 4 | P11: 10 | Q11: 4 | S11: 4 | T11: 4 | V11: 10 | W11: 1 | Y11: 8 | Z11: 5
F12: C2 Conflicto | G12: 5 | H12: 2 | J12: 7 | K12: 7 | P12: 4 | Q12: 4 | S12: 6 | T12: 6 | V12: 5 | W12: 0 | Y12: 3 | Z12: 5
C13: R1.2 | D13: 2. Derrama económica por el usufructo y contraprestación de espacios. | E13: Riesgos derivados de renta o compra-venta del área dónde se desarrollará el proyecto | F13: C1 Retraso | G13: 5 | H13: 8 | J13: 7 | K13: 4 | M13: 8 | N13: 3 | P13: 4 | Q13: 3 | S13: 8 | T13: 7 | V13: 10 | W13: 1 | Y13: 8 | Z13: 5
F14: C2 Conflicto | G14: 4 | H14: 2 | J14: 7 | K14: 5 | M14: 7 | N14: 3 | P14: 4 | Q14: 6 | S14: 5 | T14: 5 | V14: 10 | W14: 10 | Y14: 3 | Z14: 5
F15: C3 Sanciones | G15: 6 | H15: 0 | J15: 9 | K15: 3 | P15: 8 | Q15: 1 | S15: 1 | T15: 1 | V15: 10 | W15: 0 | Y15: 3 | Z15: 3
F16: C4 Cancelación | G16: 9 | H16: 2 | J16: 9 | K16: 3 | M16: 10 | N16: 2 | P16: 10 | Q16: 1 | S16: 1 | T16: 1 | V16: 10 | W16: 0 | Y16: 10 | Z16: 3
C17: R1.3 | D17: 3. Seguridad | E17: Riesgos derivados de las condiciones de seguridad del personal involucrado en el proyecto y la población cercana | F17: C1 Retraso | G17: 9 | H17: 1 | J17: 6 | K17: 2 | M17: 5 | N17: 2 | P17: 4 | Q17: 2 | S17: 4 | T17: 1 | V17: 9 | W17: 1 | Y17: 4 | Z17: 4
F18: C2 Conflicto | G18: 8 | H18: 1 | J18: 7 | K18: 5 | M18: 8 | N18: 5 | P18: 4 | Q18: 3 | S18: 8 | T18: 2 | V18: 7 | W18: 0 | Y18: 3 | Z18: 4
F19: C3 Sanciones | G19: 10 | H19: 3 | J19: 9 | K19: 3 | P19: 8 | Q19: 1 | S19: 1 | T19: 1 | V19: 10 | W19: 0 | Y19: 3 | Z19: 2
C20: R1.4 | D20: 4. Entorno laboral | E20: Riesgos derivados de las condiciones Laborales del personal involucrado en el proyecto | F20: C1 Retraso | G20: 10 | H20: 3 | J20: 6 | K20: 2 | M20: 4 | N20: 5 | P20: 3 | Q20: 1 | S20: 10 | T20: 1 | V20: 10 | W20: 0 | Y20: 6 | Z20: 6
F21: C2 Conflicto | G21: 8 | H21: 0 | J21: 8 | K21: 3 | M21: 6 | N21: 5 | P21: 4 | Q21: 3 | S21: 8 | T21: 2 | V21: 8 | W21: 0 | Y21: 3 | Z21: 3
F22: C3 Sanciones | G22: 8 | H22: 0 | J22: 10 | K22: 3 | P22: 8 | Q22: 1 | S22: 1 | T22: 1 | V22: 10 | W22: 0 | Y22: 3 | Z22: 2
C23: R1.5 | D23: 5. Inversión Social | E23: Riesgos derivados de la negación de inversión social en la población con la que interactúa. | F23: C1 Retraso | G23: 7 | H23: 6 | J23: 6 | K23: 3 | M23: 7 | N23: 2 | P23: 5 | Q23: 1 | S23: 5 | T23: 5 | V23: 7 | W23: 0 | Y23: 2 | Z23: 2
F24: C2 Conflicto | G24: 7 | H24: 3 | J24: 6 | K24: 3 | M24: 4 | N24: 6 | P24: 3 | Q24: 2 | S24: 7 | T24: 3 | V24: 7 | W24: 0 | Y24: 2 | Z24: 2
B25: Dimensión Sociopolítica | C25: R2.1 | D25: 1. Mecanismos de Participación / 2. Representatividad / 3. Uso del territorio y libertad para decidir sobre él. | E25: Riesgo derivado de los procedimientos que permiten a los individuos de una sociedad involucrase en las decisiones relacionadas con el desarrollo del proyecto. | F25: C1 Retraso | G25: 10 | H25: 8 | J25: 7 | K25: 4 | M25: 9 | N25: 5 | P25: 5 | Q25: 3 | S25: 5 | T25: 5 | V25: 7 | W25: 0 | Y25: 2 | Z25: 1
F26: C2 Conflicto | G26: 7 | H26: 4 | J26: 5 | K26: 2 | M26: 4 | N26: 6 | P26: 4 | Q26: 4 | S26: 5 | T26: 5 | V26: 7 | W26: 0 | Y26: 2 | Z26: 1
F27: C3 Sanciones | G27: 2 | H27: 0 | J27: 9 | K27: 4 | P27: 7 | Q27: 1 | S27: 1 | T27: 1 | V27: 8 | W27: 0 | Y27: 4 | Z27: 2
F28: C4 Cancelación | G28: 6 | H28: 0 | J28: 9 | K28: 3 | M28: 10 | N28: 3 | P28: 10 | Q28: 1 | S28: 1 | T28: 1 | V28: 10 | W28: 0 | Y28: 8 | Z28: 2
C29: R2.2 | D29: 4. Formas de organización: Ejidos, comunidades agrarias, pueblos y comunidades indígenas y personas como propietarias del territorio. | E29: Riesgo derivado de ignorar las formas de organización local de: ejidos, comunidades agrarias, pueblos y comunidades indígenas. | F29: C1 Retraso | G29: 10 | H29: 5 | J29: 8 | K29: 4 | M29: 6 | N29: 3 | P29: 5 | Q29: 5 | S29: 8 | T29: 6 | V29: 7 | W29: 0 | Y29: 5 | Z29: 1
F30: C2 Conflicto | G30: 9 | H30: 2 | J30: 7 | K30: 4 | M30: 4 | N30: 6 | P30: 3 | Q30: 1 | S30: 8 | T30: 8 | V30: 7 | W30: 0 | Y30: 4 | Z30: 1
F31: C3 Sanciones | G31: 2 | H31: 1 | J31: 9 | K31: 4 | P31: 7 | Q31: 1 | S31: 1 | T31: 1 | V31: 8 | W31: 0 | Y31: 4 | Z31: 1
F32: C4 Cancelación | G32: 4 | H32: 0 | J32: 10 | K32: 3 | M32: 10 | N32: 3 | P32: 10 | Q32: 1 | S32: 1 | T32: 1 | V32: 10 | W32: 0 | Y32: 8 | Z32: 1
B33: Dimensión Socioambiental | C33: R3.1 | D33: 1. Uso y aprovechamiento de los recursos naturales / 2. Regulación de los recursos naturales | E33: Riesgo derivado del manejo sustentable y eficiente de los recursos existentes. | F33: C1 Retraso | G33: 7 | H33: 0 | J33: 9 | K33: 4 | M33: 5 | N33: 4 | P33: 3 | Q33: 1 | S33: 10 | T33: 3 | V33: 8 | W33: 0 | Y33: 6 | Z33: 4
F34: C2 Conflicto | G34: 7 | H34: 0 | J34: 7 | K34: 5 | M34: 3 | N34: 2 | P34: 8 | Q34: 1 | S34: 7 | T34: 5 | V34: 9 | W34: 0 | Y34: 4 | Z34: 2
F35: C3 Sanciones | G35: 8 | H35: 2 | J35: 10 | K35: 3 | P35: 8 | Q35: 1 | S35: 1 | T35: 1 | V35: 10 | W35: 0 | Y35: 6 | Z35: 3
C36: R3.2 | D36: 3. Manejo de Residuos / 4. Salud | E36: Riesgo derivado de problemas de salud por incorrecto manejo de residuos. | F36: C1 Retraso | G36: 10 | H36: 10 | J36: 9 | K36: 4 | M36: 2 | N36: 2 | P36: 3 | Q36: 1 | S36: 10 | T36: 2 | V36: 8 | W36: 0 | Y36: 4 | Z36: 2
F37: C2 Conflicto | G37: 10 | H37: 10 | J37: 7 | K37: 4 | M37: 2 | N37: 2 | P37: 8 | Q37: 1 | S37: 6 | T37: 1 | V37: 9 | W37: 0 | Y37: 4 | Z37: 1
F38: C3 Sanciones | G38: 8 | H38: 2 | J38: 10 | K38: 3 | P38: 8 | Q38: 1 | S38: 1 | T38: 1 | V38: 10 | W38: 0 | Y38: 5 | Z38: 2
F39: C4 Cancelación | G39: 10 | H39: 3 | J39: 9 | K39: 4 | M39: 10 | N39: 1 | P39: 10 | Q39: 1 | S39: 3 | T39: 3 | V39: 10 | W39: 0 | Y39: 10 | Z39: 3
B40: Dimensión Sociocultural | C40: R4.1 | D40: 1. Población Indígena | E40: Riesgo por no realizar correctamente una consulta indígena. | F40: C1 Retraso | G40: 5 | H40: 8 | J40: 9 | K40: 3 | M40: 9 | N40: 5 | P40: 6 | Q40: 3 | S40: 10 | T40: 6 | V40: 10 | W40: 0 | Y40: 5 | Z40: 2
F41: C2 Conflicto | G41: 10 | H41: 10 | J41: 7 | K41: 4 | M41: 4 | N41: 6 | P41: 4 | Q41: 2 | S41: 7 | T41: 7 | V41: 10 | W41: 0 | Y41: 4 | Z41: 2
F42: C3 Sanciones | G42: 10 | H42: 0 | J42: 9 | K42: 4 | P42: 8 | Q42: 1 | S42: 1 | T42: 1 | V42: 10 | W42: 0 | Y42: 5 | Z42: 1
F43: C4 Cancelación | G43: 10 | H43: 3 | J43: 9 | K43: 4 | M43: 10 | N43: 1 | P43: 10 | Q43: 1 | S43: 1 | T43: 1 | V43: 10 | W43: 0 | Y43: 10 | Z43: 1
C44: R4.2 | D44: 2. Patrimonio cultural material / 3. Patrimonio Cultural Arqueológico / 4. Producción y reproducción del patrimonio cultural | E44: Riesgo derivado de no identificar ni implementar mecanismos de resguardo y conservación al patrimonio cultural que tiene contacto con el proyecto. | F44: C1 Retraso | G44: 5 | H44: 5 | J44: 9 | K44: 2 | M44: 8 | N44: 4 | P44: 7 | Q44: 5 | S44: 0 | T44: 0 | V44: 10 | W44: 0 | Y44: 7 | Z44: 1
F45: C2 Conflicto | G45: 3 | H45: 1 | J45: 7 | K45: 5 | P45: 4 | Q45: 2 | S45: 5 | T45: 3 | V45: 10 | W45: 0 | Y45: 3 | Z45: 1
F46: C3 Sanciones | G46: 6 | H46: 0 | J46: 10 | K46: 4 | P46: 5 | Q46: 1 | S46: 1 | T46: 1 | V46: 10 | W46: 0 | Y46: 3 | Z46: 1
F47: C4 Cancelación | G47: 7 | H47: 1 | J47: 9 | K47: 3 | M47: 10 | N47: 3 | P47: 10 | Q47: 1 | S47: 0 | T47: 0 | V47: 10 | W47: 0 | Y47: 8 | Z47: 1

Sheet Cuestionario MiniHidro (hidden)
B2: Cuestionario para cuantificación de Riesgos Ambientales y Sociales en Proyectos Energéticos
B4: Empresa: | D4: EMPRESAS ENCUESTADAS
B6: PASO 1: Califica en una escala del 0 - 10 donde 10 es MUY GRAVE y o es NADA GRAVE los riesgos derivados de los impactos Sociales y Ambientales definidos a continuación:
B7: PASO 2: Califica en una escala del 0 - 10 donde 10 es MUY FRECUENTE y 0 es NADA FRECUENTE los riesgos derivados de los impactos Sociales y Ambientales definidos a continuación:
E8: Empresas | F8: =COUNT(G9:XFD9) -> 0 | G8: Empresa | H8: Número de Proyectos | J8: Empresa | K8: Número de Proyectos | M8: Empresa | N8: Número de Proyectos | P8: Empresa | Q8: Número de Proyectos | S8: Empresa | T8: Número de Proyectos | V8: Empresa | W8: Número de Proyectos | Y8: Empresa | Z8: Número de Proyectos | AB8: Empresa | AC8: Número de Proyectos | AE8: Empresa | AF8: Número de Proyectos | AH8: Empresa | AI8: Número de Proyectos
E9: Proyectos totales | F9: =SUM(G9:XFD9) -> 0 | AH9: E1
B10: Dimensión | C10: ID | D10: Impacto Genérico | E10: Relación Impacto - Riesgo | F10: Riesgo Genérico Asociado | G10: Gravedad | H10: Frecuencia | J10: Gravedad | K10: Frecuencia | M10: Gravedad | N10: Frecuencia | P10: Gravedad | Q10: Frecuencia | S10: Gravedad | T10: Frecuencia | V10: Gravedad | W10: Frecuencia | Y10: Gravedad | Z10: Frecuencia | AB10: Gravedad | AC10: Frecuencia | AE10: Gravedad | AF10: Frecuencia | AH10: Gravedad | AI10: Frecuencia
B11: Dimensión Socioeconómica | C11: R1.1 | D11: 1. Producción de bienes y servicios en lugares específicos | E11: Riesgos derivados de la modificación del área | F11: C1 Retraso
F12: C2 Conflicto
C13: R1.2 | D13: 2. Derrama económica por el usufructo y contraprestación de espacios. | E13: Riesgos derivados de renta o compra-venta del área dónde se desarrollará el proyecto | F13: C1 Retraso
F14: C2 Conflicto
F15: C3 Sanciones
F16: C4 Cancelación
C17: R1.3 | D17: 3. Seguridad | E17: Riesgos derivados de las condiciones de seguridad del personal involucrado en el proyecto y la población cercana | F17: C1 Retraso
F18: C2 Conflicto
F19: C3 Sanciones
C20: R1.4 | D20: 4. Entorno laboral | E20: Riesgos derivados de las condiciones Laborales del personal involucrado en el proyecto | F20: C1 Retraso
F21: C2 Conflicto
F22: C3 Sanciones
C23: R1.5 | D23: 5. Inversión Social | E23: Riesgos derivados de la negación de inversión social en la población con la que interactúa. | F23: C1 Retraso
F24: C2 Conflicto
B25: Dimensión Sociopolítica | C25: R2.1 | D25: 1. Mecanismos de Participación / 2. Representatividad / 3. Uso del territorio y libertad para decidir sobre él. | E25: Riesgo derivado de los procedimientos que permiten a los individuos de una sociedad involucrase en las decisiones relacionadas con el desarrollo del proyecto. | F25: C1 Retraso
F26: C2 Conflicto
F27: C3 Sanciones
F28: C4 Cancelación
C29: R2.2 | D29: 4. Formas de organización: Ejidos, comunidades agrarias, pueblos y comunidades indígenas y personas como propietarias del territorio. | E29: Riesgo derivado de ignorar las formas de organización local de: ejidos, comunidades agrarias, pueblos y comunidades indígenas. | F29: C1 Retraso
F30: C2 Conflicto
F31: C3 Sanciones
F32: C4 Cancelación
B33: Dimensión Socioambiental | C33: R3.1 | D33: 1. Uso y aprovechamiento de los recursos naturales / 2. Regulación de los recursos naturales | E33: Riesgo derivado del manejo sustentable y eficiente de los recursos existentes. | F33: C1 Retraso
F34: C2 Conflicto
F35: C3 Sanciones
C36: R3.2 | D36: 3. Manejo de Residuos / 4. Salud | E36: Riesgo derivado de problemas de salud por incorrecto manejo de residuos. | F36: C1 Retraso
F37: C2 Conflicto
F38: C3 Sanciones
F39: C4 Cancelación
B40: Dimensión Sociocultural | C40: R4.1 | D40: 1. Población Indígena | E40: Riesgo por no realizar correctamente una consulta indígena. | F40: C1 Retraso
F41: C2 Conflicto
F42: C3 Sanciones
F43: C4 Cancelación
C44: R4.2 | D44: 2. Patrimonio cultural material / 3. Patrimonio Cultural Arqueológico / 4. Producción y reproducción del patrimonio cultural | E44: Riesgo derivado de no identificar ni implementar mecanismos de resguardo y conservación al patrimonio cultural que tiene contacto con el proyecto. | F44: C1 Retraso
F45: C2 Conflicto
F46: C3 Sanciones
F47: C4 Cancelación

Sheet Mitigación (hidden)
B2: ID | C2: Posible actividad de Mitigación | D2: Descripción | E2: Impacto | F2: Disminuye el riesgo
B3: M1 Fondo de Contingencia | C3: Establecer un fondo de contingencia por el acreditado. | D3: Cantidad reservada para resolver imprevistos. | E3: Bajo | F3: 0.05
B4: M2 Garantías | C4: Definir montos de garantía. | D4: Cantidad definida en el contrato de crédito para dotar de una mayor seguridad al cumplimiento de ciertas condiciones. | E4: Bajo | F4: 0.05
B5: M3 Acciones Correctivas | C5: Presupuesto Asignado a Acciones Corretivas | D5: Una vez que el riesgo ha sido detectado o ha ocurrido, el acreditado deberá de demostrar que ha asignado recursos para aplicar medidas correctivas y dar seguimiento de las mismas. | E5: Bajo | F5: 0.05
B6: M4 Seguro (Si aplicable) | C6: Seguro Aplicable | D6: La organización deberá contar con un seguro que contemple futuro incidentes donde tenga que pagar o liquidar a la fecha de protocolo del siniestro, constituye la primera valoración de la reserva. | E6: Medio | F6: 0.1
B7: M5 Programas de Atención y Prevención | C7: Programas o campañas de atención y prevención | D7: El programa está relacionado con un inversión social definida por el acreditado, con el propósito de reducir los riesgos laborales y de salud. Estos programas están relacionados con los programas internos. | E7: Medio | F7: 0.1
B8: M6 Canales efectivos de cominicación | C8: Definir canales de comunicación con la comunidad/personal | D8: Mantener diversos canales de comunicación que le permitan acreditado identificar posibles riesgos e inconformidades previo a y durante el desarrollo del proyecto. | E8: Medio | F8: 0.1
B9: M7 Establecimiento de Proyectos Sociales | C9: Establecer proyectos sociales por el acreditado. | D9: Definir proyectos en materia de salud, seguridad, ambiental, etc. para generar capacidades y habilidades determinadas con el fin de prevenir y disminuir riesgos que interrumpan el proyecto. | E9: Alto | F9: 0.15
B10: M8 Programa de Monitoreo de Cumplimiento Regulatorio | C10: Acciones de monitoreo de cumplimiento regulatorio por parte del acreditado. | D10: Definición de un sistema de gestión por parte del acreditado que permita confirmar que los riesgos sociales se están atendiendo y no existen riesgos. | E10: Alto | F10: 0.15

Sheet PASOS LISTS (hidden)
B1: Paso 1 | D1: Paso 3 IARCS | F1: IMPACTO DE LA MITIGACIÓN
B3: Aplica | D3: M1 Fondo de Contingencia | F3: Alto
B4: No Aplica | D4: M2 Garantías | F4: Medio
D5: M3 Acciones Correctivas | F5: Bajo
D6: M4 Seguro (Si aplicable)
B7: Fotovoltaica | D7: M5 Programas de Atención y Prevención
B8: Eólica | D8: M6 Canales efectivos de comunicación
B9: Mini-Hidro | D9: M7 Establecimiento de Proyectos Sociales
D10: M8 Programa de Monitoreo de Cumplimiento Regulatorio
F13: No ocurrió | H13: 0
F14: 1 | H14: 1
F15: 2 | H15: 2
F16: 3 | H16: 3
F17: 4 | H17: 4
F18: 5 | H18: 5
F19: 6 | H19: 6
F20: 7 | H20: 7
F21: 8 | H21: 8
F22: 9 | H22: 9
F23: 10 | H23: 10
